{"text_format":"2","workbook":"xlsx","n_sheets":21,"sheets":["Capa de Contratação","RESUMO","AL","BA","DF","MA","MT","PI","Item 1-1;2 CV","Item 2 - 1;2;3-CV","Item 3 - 1 CV","Item 4 - 1;2;3 CV","Item 5 - 1;2;3 CV","Item 6 - 1 CV","Item 9 - 1;2;3 CV","Item 12 - 1;2;3 CV","Item 1 - 3 CV","Item 3 - 2 CV","Item 6 - 2 CV","Item 3 - 3 CV","Item 6 - 3 CV"],"not_rendered":{"charts":0,"images":1,"macros":0,"external_links":0,"defined_names":10,"comments":0,"pivot_tables":0},"unopened":[],"bounds":{"document_bytes":16777216,"sheet_cells":100000,"run_cost":"one","rows_first":2000,"rows_last":500,"rows_between":2000,"halvings":0,"cell_chars":16384,"cell_head_chars":4096},"cells_cut":0,"cells_raw":0,"read":"whole","date_system":"1900"}

{"sheet":"Capa de Contratação","index":0,"n_rows":29,"n_cols":13,"rows_kept":29,"cut":false,"hidden":false,"merged":[[26,0,26,11],[6,0,6,11],[10,0,10,11],[14,0,14,11],[18,0,18,11],[22,0,22,11],[24,9,24,10],[25,9,25,10],[23,2,23,7],[24,2,24,7],[25,2,25,7],[7,9,7,10],[8,9,8,10],[9,9,9,10],[11,9,11,10],[12,9,12,10],[7,2,7,7],[8,2,8,7],[9,2,9,7],[11,2,11,7],[12,2,12,7],[28,0,28,11],[13,2,13,7],[13,9,13,10],[21,2,21,7],[21,9,21,10],[15,2,15,7],[16,2,16,7],[17,2,17,7],[19,2,19,7],[20,2,20,7],[15,9,15,10],[16,9,16,10],[17,9,17,10],[19,9,19,10],[20,9,20,10],[23,9,23,10],[3,2,3,7],[3,9,3,10],[1,11,2,11],[1,12,2,12],[1,0,2,0],[1,2,2,7],[1,8,2,8],[1,9,2,10],[3,0,5,0],[4,2,4,7],[5,2,5,7],[1,1,2,1],[4,9,4,10],[5,9,5,10],[7,0,9,0],[11,0,13,0],[15,0,17,0],[19,0,21,0],[23,0,25,0]]}
[]
["Grupo ","Item","Descrição do Serviço ou Material",{"$nulls":5},"Quant.","Unidade",null,"Valor Unitário","Valor Total"]
[]
[1,1,"Sistema de Geração Solar Fotovoltaica para acionamento de motobomba de até 1 CV - para o estado de Alagoas",{"$nulls":5},16,"Unidade",null,{"$f":"AL!G37","v":12436.27},{"$f":"I4*L4","v":198980.32}]
[null,2,"Sistema de Geração Solar Fotovoltaica para acionamento de motobomba de até 2 CV - para o estado de Alagoas",{"$nulls":5},16,"Unidade",null,{"$f":"AL!G69","v":15098.68},{"$f":"I5*L5","v":241578.88}]
[null,3,"Sistema de Geração Solar Fotovoltaica para acionamento de motobomba de até 3 CV - para o estado de Alagoas",{"$nulls":5},70,"Unidade",null,{"$f":"AL!G103","v":17040.669999999998},1192846.8999999999]
["TOTAL GRUPO 1 ",{"$nulls":11},{"$f":"SUM(M4:M6)","v":1633406.1}]
[2,4,"Sistema de Geração Solar Fotovoltaica para acionamento de motobomba de até 1 CV - para o estado da Bahia",{"$nulls":5},16,"Unidade",null,{"$f":"BA!G37","v":12716.73},{"$f":"I8*L8","v":203467.68}]
[null,5,"Sistema de Geração Solar Fotovoltaica para acionamento de motobomba de até 2 CV - para o estado da Bahia",{"$nulls":5},16,"Unidade",null,{"$f":"BA!G69","v":15379.14},{"$f":"I9*L9","v":246066.24}]
[null,6,"Sistema de Geração Solar Fotovoltaica para acionamento de motobomba de até 3 CV - para o estado da Bahia",{"$nulls":5},70,"Unidade",null,{"$f":"BA!G103","v":17321.13},1212479.1000000001]
["TOTAL GRUPO 2 ",{"$nulls":11},{"$f":"SUM(M8:M10)","v":1662013.02}]
[3,7,"Sistema de Geração Solar Fotovoltaica para acionamento de motobomba de até 1 CV - para o Distrito Federal ",{"$nulls":5},16,"Unidade",null,{"$f":"DF!G37","v":12805.55},{"$f":"I12*L12","v":204888.8}]
[null,8,"Sistema de Geração Solar Fotovoltaica para acionamento de motobomba de até 2 CV - para o Distrito Federal ",{"$nulls":5},16,"Unidade",null,{"$f":"DF!G69","v":14677.68},234842.88]
[null,9,"Sistema de Geração Solar Fotovoltaica para acionamento de motobomba de até 3 CV - para o Distrito Federal ",{"$nulls":5},70,"Unidade",null,{"$f":"DF!G103","v":16569.03},1159832.1000000001]
["TOTAL GRUPO 3 ",{"$nulls":11},{"$f":"SUM(M12:M14)","v":1599563.78}]
[4,10,"Sistema de Geração Solar Fotovoltaica para acionamento de motobomba de até 1 CV - para o estado da Maranhão",{"$nulls":5},16,"Unidade",null,{"$f":"MA!G37","v":12482.83},{"$f":"L16*I16","v":199725.28}]
[null,11,"Sistema de Geração Solar Fotovoltaica para acionamento de motobomba de até 2 CV - para o estado da Maranhão",{"$nulls":5},16,"Unidade",null,{"$f":"MA!G69","v":14354.96},{"$f":"L17*I17","v":229679.35999999999}]
[null,12,"Sistema de Geração Solar Fotovoltaica para acionamento de motobomba de até 3 CV - para o estado da Maranhão",{"$nulls":5},70,"Unidade",null,{"$f":"MA!G103","v":16246.31},1137241.7]
["TOTAL GRUPO 4  ",{"$nulls":11},{"$f":"SUM(M16:M18)","v":1566646.34}]
[5,13,"Sistema de Geração Solar Fotovoltaica para acionamento de motobomba de até 1 CV - para o estado do Mato Grosso",{"$nulls":5},16,"Unidade",null,{"$f":"MT!G37","v":12394.01},198304.16]
[null,14,"Sistema de Geração Solar Fotovoltaica para acionamento de motobomba de até 2 CV - para o estado do Mato Grosso",{"$nulls":5},16,"Unidade",null,{"$f":"MT!G69","v":14266.14},228258.24]
[null,15,"Sistema de Geração Solar Fotovoltaica para acionamento de motobomba de até 3 CV - para o estado do Mato Grosso",{"$nulls":5},70,"Unidade",null,{"$f":"MT!G103","v":16157.49},1131024.3]
["TOTAL GRUPO 5  ",{"$nulls":11},{"$f":"SUM(M20:M22)","v":1557586.7}]
[6,16,"Sistema de Geração Solar Fotovoltaica para acionamento de motobomba de até 1 CV - para o estado do Piauí",{"$nulls":5},16,"Unidade",null,{"$f":"PI!G37","v":12419.97},{"$f":"I24*L24","v":198719.52}]
[null,17,"Sistema de Geração Solar Fotovoltaica para acionamento de motobomba de até 2 CV - para o estado do Piauí",{"$nulls":5},16,"Unidade",null,{"$f":"PI!G69","v":14292.1},{"$f":"I25*L25","v":228673.6}]
[null,18,"Sistema de Geração Solar Fotovoltaica para acionamento de motobomba de até 3 CV - para o estado do Piauí",{"$nulls":5},70,"Unidade",null,{"$f":"PI!G103","v":16183.45},1132841.5]
["TOTAL GRUPO 6 ",{"$nulls":11},{"$f":"SUM(M24:M26)","v":1560234.62}]
[]
["Valor Total Global R$",{"$nulls":11},{"$f":"M7+M11+M15+M19+M23+M27","v":9579450.5600000005}]

{"sheet":"RESUMO","index":1,"n_rows":9,"n_cols":6,"rows_kept":9,"cut":false,"hidden":true,"merged":[[8,0,8,1]]}
[]
["UF","SR","Quantidade","1 CV","2 CV","3Cv"]
["Alagoas","5ª",100,"15- Unidades","15- unidades","70 - unidades"]
["Bahia","2ª",100,"15- Unidades","15- unidades","70 - unidades"]
["Distrito Federal","Sede",100,"15- Unidades","15- unidades","70 - unidades"]
["Maranhão","8ª",100,"15- Unidades","15- unidades","70 - unidades"]
["Mato Grosso","Sede",100,"15- Unidades","15- unidades","70 - unidades"]
["Piaui","7ª",100,"15- Unidades","15- unidades","70 - unidades"]
["Total ",null,{"$f":"SUM(C3:C8)","v":600},90,90,420]

{"sheet":"AL","index":2,"n_rows":117,"n_cols":7,"rows_kept":117,"cut":false,"hidden":false,"merged":[[95,0,95,6],[99,0,99,6],[102,0,102,5],[111,0,116,0],[116,1,116,5],[106,0,109,0],[109,1,109,5],[84,0,84,6],[90,0,90,6],[91,0,94,0],[91,3,94,3],[91,4,94,4],[91,5,94,5],[91,6,94,6],[73,0,73,6],[79,0,83,0],[79,3,83,3],[79,4,83,4],[79,5,83,5],[79,6,83,6],[61,0,61,6],[65,0,65,6],[68,0,68,5],[71,0,71,6],[72,0,72,6],[57,0,60,0],[57,3,60,3],[57,4,60,4],[57,5,60,5],[57,6,60,6],[6,0,6,6],[7,0,7,6],[25,0,28,0],[13,6,17,6],[5,0,5,6],[18,0,18,6],[24,0,24,6],[0,0,0,6],[25,5,28,5],[25,6,28,6],[13,0,17,0],[13,3,17,3],[13,4,17,4],[3,0,4,0],[3,2,4,2],[3,3,4,3],[3,4,4,4],[3,5,4,5],[3,6,4,6],[13,1,17,1],[13,5,17,5],[1,0,2,6],[3,1,4,1],[50,0,50,6],[56,0,56,6],[29,0,29,6],[33,0,33,6],[25,3,28,3],[25,4,28,4],[36,0,36,5],[37,0,37,6],[38,0,38,6],[39,0,39,6],[45,0,49,0],[45,3,49,3],[45,4,49,4],[45,5,49,5],[45,6,49,6]]}
[]
["SISTEMA DE GERAÇÃO SOLAR FOTOVOLTAICA, OFF-GRID, SEM BATERIAS, PARA SISTEMA DE IRRIGAÇÃO COM MOTOBOMBA PARA O ESTADO DE ALAGOAS"]
[]
["ITEM","CÓD","DESCRIÇÃO","UNID.","QUANT.","Valor Unitario (R$)","Valor Total (R$)"]
[]
["SISTEMA DE GERAÇÃO SOLAR FOTOVOLTAICA, OFF-GRID, SEM BATERIAS, PARA SISTEMA DE IRRIGAÇÃO COM MOTOBOMBA DE ATÉ 1CV"]
["MATERIAL ELÉTRICO - A"]
["ARRANJO FOTOVOLTAICO"]
[1,null,"Módulo Fotovoltaico, com potência de 570 Wp STC (ou de potência suficiente para o correto funcionamento do sistema), estrutura em liga de alumínio anodizado, caixa de junção IP 68, três diodos, eficiência superior a 19%, degradação no primeiro ano inferior a 3%, degradação do ano 2 ao 30 inferior a 0,5% ao ano, 10 anos de garantia, 20 anos de garantia de potência linear.","unid.",4,{"$f":"'Item 1-1;2 CV'!L39","v":790.28},{"$f":"E9*F9","v":3161.12}]
[2,null,"Par (macho e fêmea) de conectores terminais tipo MC4, de 2,5 a 6 mm², 1.500 Vcc, 30 A, IP67, próprio para instalações fotovoltaicas.","unid.",1,{"$f":"'Item 2 - 1;2;3-CV'!L38","v":44.51},44.51]
[3,null,"Estrutura de solo para módulos fotovoltaicos, 5 módulos instalados, pilastra travessa e mão francesa em aço galvanizado a fogo, longarina e acessórios em alumínio. Inclui todos os acessórios para correta fixação dos painéis.","unid.",1,{"$f":"'Item 3 - 1 CV'!L39","v":1102.96},1102.96]
[4,null,"Condutor de 4 mm², fios de cobre, têmpera mole, encordoamento classe 5 (extraflexível), isolação em composto termofixo livre de halogênio, retardante a chamas, cobertura em composto termofixo livre de halogênio, resistente a UV. Na cor vermelha.","metro",10,{"$f":"'Item 4 - 1;2;3 CV'!L39","v":5.19},51.9]
[5,null,"Condutor de 4 mm², fios de cobre, têmpera mole, encordoamento classe 5 (extraflexível), isolação em composto termofixo livre de halogênio, retardante a chamas, cobertura em composto termofixo livre de halogênio, resistente a UV. Na cor preta","metro",10,{"$f":"'Item 5 - 1;2;3 CV'!L39","v":4.96},49.6]
[6,null,"Driver solar fotovoltaico, apropriado para motores de 1 CV, operação off-grid:","und.",1,{"$f":"'Item 6 - 1 CV'!L39","v":1589.67},1589.67]
[null,null,"Eficiência mínima 95%, grau de proteção IP20, resfriamento natural ou com cooler integrado, garantia mínima de 5 anos, tensão de saída compatível com a motobomba, frequência 60 Hz, com sistema de partida suave da bomba e controle de velocidade, atender em plenitude os requisitos do sistema a ser instalado."]
[null,null,"Entrada de corrente contínua (CC) compatível com a quantidade de painéis fotovoltaicos propostos, com no mínimo 1 MPPT (maximum power point tracking) com faixa de tensão de operação compatível com os módulos fotovoltaicos, baixa tensão mínima para funcionamento."]
[null,null,"Saída de corrente alternada (CA) compatível com o sistema projetado, até 1 CV, temperatura de operação até 60 ºc, trifásico ou monofásico."]
[null,null,"Possuir, no mínimo as seguintes proteções: Sub e sobre tensão CC, sobreaquecimento, surtos de tensão (CC), proteção de bomba travada, proteção de curto-circuito, proteção contra funcionamento a seco e sobrecarga."]
["ATERRAMENTO"]
[7,867,"Cabo de cobre nu 50mm², composto por 7 fios x Ø 3,00 mm","metro",20,65.8,{"$f":"E20*F20","v":1316}]
[8,34643,"Caixa de inspeção para aterramento, em PVC, com tampa","und.",4,36.6,{"$f":"E21*F21","v":146.4}]
[9,null,"Haste para aterramento, cobreada alta camada, Ø 3/4″ x 2,40 m (Ø 17,3 mm – Efetivo)","und.",2,{"$f":"'Item 9 - 1;2;3 CV'!L39","v":141.84},283.68]
[10,416,"Conector Cabo-Haste em Latão Estanhado para 1 Cabo com Acessórios","und.",2,7.2,14.4]
[11,1578,"Terminal olhal para condutor de 50 mm²","und.",2,6.12,12.24]
["QUADRO DE PROTEÇÃO CC (STRINGBOX)"]
[12,null,"String-box CC, composta de:","und.",1,{"$f":"'Item 12 - 1;2;3 CV'!L39","v":515.03},{"$f":"E26*F26","v":515.03}]
[null,null,"1 conjunto de DPS por string, com proteção classe II, apropriado para uso em sistemas fotovoltaicos, 1040 Vdc, corrente de descarga máxima 40 kA, corrente de descarga nominal de 18 kA, nível de proteção inferior a 3,5 kV, 3 polos (positivo, negativo e terra), com indicador de operação verde (em serviço) e vermelho (defeito)."]
[null,null,"1 chave seccionadora de até 32A, para corrente contínua, 1.000 Vdc, 2 polos, adequado para uso em sistemas fotovoltaicos com conexão de condutores de 2,5 até 10 mm², para instalação em trilho DIN e com jumpers tipo barramento."]
[null,null,"1 caixa de proteção para stringbox em policarbonato, de sobrepor, trilho DIN, IP 65, proteção UV, e adequada para uso em sistemas fotovoltaicos. Deverão ser fixados através de trilho DIN"]
["ALIMENTAÇÃO DO MOTOR "]
[13,1014,"Condutor isolado 450/750V, seção nominal de 2,5 mm², condutor de cobre têmpera mole, encordoamento classe 4 ou 5, com isolação em composto termoplástico de PVC/A (cor azul, verde, preto, branco ou vermelho, conforme aplicação)","metro",80,2.79,{"$f":"E31*F31","v":223.2}]
[14,40400,"Duto PEAD corrugado 3/4\", fabricado em Polietileno de Alta Densidade (PEAD), sendo flexível, anelar e impermeável, na cor preta, apropriado para passagens da condutores elétricos","metro",20,2.59,{"$f":"E32*F32","v":51.8}]
[15,41627,"Caixa de passagem/inspeção em concreto, sem fundo, com tampa, 30X30 centímetros","Und.",2,131.36000000000001,{"$f":"E33*F33","v":262.72000000000003}]
["MONTAGEM E INSTALAÇÃO"]
[16,null,"Comissionamento das instalações ","Unid.",1,{"$f":"G110","v":359.12},{"$f":"E35*F35","v":359.12}]
[17,null,"Execução das instalações ","Unid.",1,{"$f":"G117","v":3251.92},{"$f":"E36*F36","v":3251.92}]
["Total Geral - KIT 1 CV",{"$nulls":5},{"$f":"SUM(G9:G36)","v":12436.27}]
["SISTEMA DE GERAÇÃO SOLAR FOTOVOLTAICA, OFF-GRID, SEM BATERIAS, PARA SISTEMA DE IRRIGAÇÃO COM MOTOBOMBA DE ATÉ 2CV"]
["MATERIAL ELÉTRICO - A"]
["ARRANJO FOTOVOLTAICO"]
[1,null,"Módulo Fotovoltaico, com potência de 570 Wp STC, (ou de potência suficiente para o correto funcionamento do sistema), estrutura em liga de alumínio anodizado, caixa de junção IP 68, três diodos, eficiência superior a 19%, degradação no primeiro ano inferior a 3%, degradação do ano 2 ao 30 inferior a 0,5% ao ano, 10 anos de garantia, 20 anos de garantia de potência linear.","unid.",7,{"$f":"'Item 1-1;2 CV'!L39","v":790.28},{"$f":"E41*F41","v":5531.96}]
[2,null,"Par (macho e fêmea) de conectores terminais tipo MC4, de 2,5 a 6 mm², 1.500 Vcc, 30 A, IP67, próprio para instalações fotovoltaicas.","unid.",1,{"$f":"'Item 2 - 1;2;3-CV'!L38","v":44.51},{"$f":"E42*F42","v":44.51}]
[3,null,"Estrutura de solo para módulos fotovoltaicos, 6 módulos instalados, pilastra travessa e mão francesa em aço galvanizado a fogo, longarina e acessórios em alumínio. Inclui todos os acessórios para correta fixação dos painéis.","unid.",1,{"$f":"'Item 3 - 2 CV'!L38","v":1426.53},{"$f":"E43*F43","v":1426.53}]
[4,null,"Condutor de 4 mm², fios de cobre, têmpera mole, encordoamento classe 5 (extraflexível), isolação em composto termofixo livre de halogênio, retardante a chamas, cobertura em composto termofixo livre de halogênio, resistente a UV. Na cor vermelha.","metro",15,{"$f":"'Item 4 - 1;2;3 CV'!L39","v":5.19},{"$f":"E44*F44","v":77.849999999999994}]
[5,null,"Condutor de 4 mm², fios de cobre, têmpera mole, encordoamento classe 5 (extraflexível), isolação em composto termofixo livre de halogênio, retardante a chamas, cobertura em composto termofixo livre de halogênio, resistente a UV. Na cor preta","metro",15,{"$f":"'Item 5 - 1;2;3 CV'!L39","v":4.96},{"$f":"E45*F45","v":74.400000000000006}]
[6,null,"Driver solar fotovoltaico, apropriado para motores de 2 CV, operação off-grid:","und.",1,{"$f":"'Item 6 - 2 CV'!L37","v":1506.92},{"$f":"E46*F46","v":1506.92}]
[null,null,"Eficiência mínima 95%, grau de proteção IP20, resfriamento natural ou com cooler integrado, garantia mínima de 5 anos, tensão de saída compatível com a motobomba, frequência 60 Hz, com sistema de partida suave da bomba e controle de velocidade, atender em plenitude os requisitos do sistema a ser instalado."]
[null,null,"Entrada de corrente contínua (CC) compatível com a quantidade de painéis fotovoltaicos propostos, com no mínimo 1 MPPT (maximum power point tracking) com faixa de tensão de operação compatível com os módulos fotovoltaicos, baixa tensão mínima para funcionamento."]
[null,null,"Saída de corrente alternada (CA) compatível com o sistema projetado, até 2 CV, temperatura de operação até 60 ºC, trifásico ou monofásico."]
[null,null,"Possuir, no mínimo as seguintes proteções: Sub e sobre tensão CC, sobreaquecimento, surtos de tensão (CC), proteção de bomba travada, proteção de curto-circuito, proteção contra funcionamento a seco e sobrecarga."]
["ATERRAMENTO"]
[7,867,"Cabo de cobre nu 50mm², composto por 7 fios x Ø 3,00 mm","metro",20,65.8,{"$f":"E52*F52","v":1316}]
[8,34643,"Caixa de inspeção para aterramento, em PVC, com tampa","und.",4,36.6,{"$f":"E53*F53","v":146.4}]
[9,null,"Haste para aterramento, cobreada alta camada, Ø 3/4″ x 2,40 m (Ø 17,3 mm – Efetivo)","und.",2,{"$f":"'Item 9 - 1;2;3 CV'!L39","v":141.84},283.68]
[10,416,"Conector Cabo-Haste em Latão Estanhado para 1 Cabo com Acessórios","und.",2,7.2,14.4]
[11,1578,"Terminal olhal para condutor de 50 mm²","und.",2,6.12,12.24]
["QUADRO DE PROTEÇÃO CC (STRINGBOX)"]
[12,null,"String-box CC, composta de:","und.",1,{"$f":"'Item 12 - 1;2;3 CV'!L39","v":515.03},{"$f":"E58*F58","v":515.03}]
[null,null,"1 conjunto de DPS por string, com proteção classe II, apropriado para uso em sistemas fotovoltaicos, 1040 Vdc, corrente de descarga máxima 40 kA, corrente de descarga nominal de 18 kA, nível de proteção inferior a 3,5 kV, 3 polos (positivo, negativo e terra), com indicador de operação verde (em serviço) e vermelho (defeito)."]
[null,null,"1 chave seccionadora de até 32A, para corrente contínua, 1.000 Vdc, 2 polos, adequado para uso em sistemas fotovoltaicos com conexão de condutores de 2,5 até 10 mm², para instalação em trilho DIN e com jumpers tipo barramento."]
[null,null,"1 caixa de proteção para stringbox em policarbonato, de sobrepor, trilho DIN, IP 65, proteção UV, e adequada para uso em sistemas fotovoltaicos. Deverão ser fixados através de trilho DIN"]
["ALIMENTAÇÃO DO MOTOR "]
[13,1014,"Condutor isolado 450/750V, seção nominal de 2,5 mm², condutor de cobre têmpera mole, encordoamento classe 4 ou 5, com isolação em composto termoplástico de PVC/A (cor azul, verde, preto, branco ou vermelho, conforme aplicação)","metro",80,2.79,{"$f":"E63*F63","v":223.2}]
[14,40400,"Duto PEAD corrugado 3/4\", fabricado em Polietileno de Alta Densidade (PEAD), sendo flexível, anelar e impermeável, na cor preta, apropriado para passagens da condutores elétricos","metro",20,2.59,{"$f":"E64*F64","v":51.8}]
[15,41627,"Caixa de passagem/inspeção em concreto, sem fundo, com tampa, 30X30 centímetros","Und.",2,131.36000000000001,{"$f":"E65*F65","v":262.72000000000003}]
["MONTAGEM E INSTALAÇÃO"]
[16,null,"Comissionamento das instalações ","Unid.",1,{"$f":"G110","v":359.12},{"$f":"E67*F67","v":359.12}]
[17,null,"Execução das instalações ","Unid.",1,{"$f":"G117","v":3251.92},{"$f":"E68*F68","v":3251.92}]
["Total Geral - KIT 2 CV",{"$nulls":5},{"$f":"SUM(G41:G68)","v":15098.68}]
[]
[]
["SISTEMA DE GERAÇÃO SOLAR FOTOVOLTAICA, OFF-GRID, SEM BATERIAS, PARA SISTEMA DE IRRIGAÇÃO COM MOTOBOMBA DE ATÉ 3CV"]
["MATERIAL ELÉTRICO - A"]
["ARRANJO FOTOVOLTAICO"]
[1,null,"Módulo Fotovoltaico, com potência de 700 Wp STC, (ou de potência suficiente para o correto funcionamento do sistema), estrutura em liga de alumínio anodizado, caixa de junção IP 68, três diodos, eficiência superior a 19%, degradação no primeiro ano inferior a 3%, degradação do ano 2 ao 30 inferior a 0,5% ao ano, 10 anos de garantia, 20 anos de garantia de potência linear.","unid.",8,{"$f":"'Item 1 - 3 CV'!L39","v":840.92},{"$f":"E75*F75","v":6727.36}]
[2,null,"Par (macho e fêmea) de conectores terminais tipo MC4, de 2,5 a 6 mm², 1.500 Vcc, 30 A, IP67, próprio para instalações fotovoltaicas.","unid.",2,{"$f":"'Item 2 - 1;2;3-CV'!L38","v":44.51},{"$f":"E76*F76","v":89.02}]
[3,null,"Estrutura de solo para módulos fotovoltaicos, 8 módulos instalados, pilastra travessa e mão francesa em aço galvanizado a fogo, longarina e acessórios em alumínio. Inclui todos os acessórios para correta fixação dos painéis.","unid.",1,{"$f":"'Item 3 - 3 CV'!L38","v":1508.78},1508.78]
[4,null,"Condutor de 4 mm², fios de cobre, têmpera mole, encordoamento classe 5 (extraflexível), isolação em composto termofixo livre de halogênio, retardante a chamas, cobertura em composto termofixo livre de halogênio, resistente a UV. Na cor vermelha.","metro",20,{"$f":"'Item 4 - 1;2;3 CV'!L39","v":5.19},103.8]
[5,null,"Condutor de 4 mm², fios de cobre, têmpera mole, encordoamento classe 5 (extraflexível), isolação em composto termofixo livre de halogênio, retardante a chamas, cobertura em composto termofixo livre de halogênio, resistente a UV. Na cor preta","metro",20,{"$f":"'Item 5 - 1;2;3 CV'!L39","v":4.96},99.2]
[6,null,"Driver solar fotovoltaico, apropriado para motores de 3 CV, operação off-grid:","und.",1,{"$f":"'Item 6 - 3 CV'!L36","v":2076},2076]
[null,null,"Eficiência mínima 95%, grau de proteção IP20, resfriamento natural ou com cooler integrado, garantia mínima de 5 anos, tensão de saída compatível com a motobomba, frequência 60 Hz, com sistema de partida suave da bomba e controle de velocidade, atender em plenitude os requisitos do sistema a ser instalado."]
[null,null,"Entrada de corrente contínua (CC) compatível com a quantidade de painéis fotovoltaicos propostos, com no mínimo 1 MPPT (maximum power point tracking) com faixa de tensão de operação compatível com os módulos fotovoltaicos, baixa tensão mínima para funcionamento."]
[null,null,"Saída de corrente alternada (CA) compatível com o sistema projetado, até 3 CV, temperatura de operação até 60 ºC, trifásico ou monofásico."]
[null,null,"Possuir, no mínimo as seguintes proteções: Sub e sobre tensão CC, sobreaquecimento, surtos de tensão (CC), proteção de bomba travada, proteção de curto-circuito, proteção contra funcionamento a seco e sobrecarga."]
["ATERRAMENTO"]
[7,867,"Cabo de cobre nu 50mm², composto por 7 fios x Ø 3,00 mm","metro",20,65.8,{"$f":"E86*F86","v":1316}]
[8,34643,"Caixa de inspeção para aterramento, em PVC, com tampa","und.",4,36.6,{"$f":"E87*F87","v":146.4}]
[9,null,"Haste para aterramento, cobreada alta camada, Ø 3/4″ x 2,40 m (Ø 17,3 mm – Efetivo)","und.",2,{"$f":"'Item 9 - 1;2;3 CV'!L39","v":141.84},{"$f":"E88*F88","v":283.68}]
[10,416,"Conector Cabo-Haste em Latão Estanhado para 1 Cabo com Acessórios","und.",2,7.2,{"$f":"E89*F89","v":14.4}]
[11,1578,"Terminal olhal para condutor de 50 mm²","und.",2,6.12,{"$f":"E90*F90","v":12.24}]
["QUADRO DE PROTEÇÃO CC (STRINGBOX)"]
[12,null,"String-box CC, composta de:","und.",1,{"$f":"'Item 12 - 1;2;3 CV'!L39","v":515.03},{"$f":"E92*F92","v":515.03}]
[null,null,"1 conjunto de DPS por string, com proteção classe II, apropriado para uso em sistemas fotovoltaicos, 1040 Vdc, corrente de descarga máxima 40 kA, corrente de descarga nominal de 18 kA, nível de proteção inferior a 3,5 kV, 3 polos (positivo, negativo e terra), com indicador de operação verde (em serviço) e vermelho (defeito)."]
[null,null,"1 chave seccionadora de até 32A, para corrente contínua, 1.000 Vdc, 2 polos, adequado para uso em sistemas fotovoltaicos com conexão de condutores de 2,5 até 10 mm², para instalação em trilho DIN e com jumpers tipo barramento."]
[null,null,"1 caixa de proteção para stringbox em policarbonato, de sobrepor, trilho DIN, IP 65, proteção UV, e adequada para uso em sistemas fotovoltaicos. Deverão ser fixados através de trilho DIN"]
["ALIMENTAÇÃO DO MOTOR "]
[13,1014,"Condutor isolado 450/750V, seção nominal de 4 mm², condutor de cobre têmpera mole, encordoamento classe 4 ou 5, com isolação em composto termoplástico de PVC/A (cor azul, verde, preto, branco ou vermelho, conforme aplicação)","metro",80,2.79,{"$f":"E97*F97","v":223.2}]
[14,40400,"Duto PEAD corrugado 1\", fabricado em Polietileno de Alta Densidade (PEAD), sendo flexível, anelar e impermeável, na cor preta, apropriado para passagens da condutores elétricos","metro",20,2.59,{"$f":"E98*F98","v":51.8}]
[15,41627,"Caixa de passagem/inspeção em concreto, sem fundo, com tampa, 30X30 centímetros","Und.",2,131.36000000000001,262.72000000000003]
["MONTAGEM E INSTALAÇÃO"]
[16,null,"Comissionamento das instalações ","Unid.",1,{"$f":"G110","v":359.12},{"$f":"E101*F101","v":359.12}]
[17,null,"Execução das instalações ","Unid.",1,{"$f":"G117","v":3251.92},{"$f":"E102*F102","v":3251.92}]
["Total Geral - KIT 3CV",{"$nulls":5},{"$f":"SUM(G75:G102)","v":17040.669999999998}]
[]
[]
[]
["item 16 ",null,null,"Unidade","valor unitário","Quant","Valor total"]
[null,90778,"Engenheiro eletricista - Pleno ","Hora",143.99,2,{"$f":"E108*F108","v":287.98}]
[null,88266,"Técnico eletrotécnico","Hora",35.57,2,{"$f":"E109*F109","v":71.14}]
[null,"Total Geral - item 16",{"$nulls":4},{"$f":"SUM(G108:G109)","v":359.12}]
[]
["item 17 ",null,null,"Unidade","valor unitário","Quant","Valor total"]
[null,90778,"Engenheiro eletricista - Pleno ","Hora",143.99,8,{"$f":"E113*F113","v":1151.92}]
[null,88266,"Técnico eletrotécnico","Hora",35.869999999999997,24,{"$f":"E114*F114","v":860.88}]
[null,90776,"Encarregado ","Hora",28.8,24,691.2]
[null,88247,"Ajudante","Hora",22.83,24,547.91999999999996]
[null,"Total Geral - item 17",{"$nulls":4},{"$f":"SUM(G113:G116)","v":3251.92}]

{"sheet":"BA","index":3,"n_rows":117,"n_cols":7,"rows_kept":117,"cut":false,"hidden":false,"merged":[[111,0,116,0],[106,0,109,0],[109,1,109,5],[116,1,116,5],[72,0,72,6],[73,0,73,6],[79,0,83,0],[79,3,83,3],[79,4,83,4],[79,5,83,5],[79,6,83,6],[84,0,84,6],[90,0,90,6],[91,0,94,0],[91,3,94,3],[91,4,94,4],[91,5,94,5],[91,6,94,6],[95,0,95,6],[99,0,99,6],[102,0,102,5],[71,0,71,6],[61,0,61,6],[65,0,65,6],[68,0,68,5],[50,0,50,6],[56,0,56,6],[57,0,60,0],[57,3,60,3],[57,4,60,4],[57,5,60,5],[57,6,60,6],[39,0,39,6],[45,0,49,0],[45,3,49,3],[45,4,49,4],[45,5,49,5],[45,6,49,6],[29,0,29,6],[33,0,33,6],[36,0,36,5],[37,0,37,6],[38,0,38,6],[18,0,18,6],[24,0,24,6],[25,0,28,0],[25,3,28,3],[25,4,28,4],[25,5,28,5],[25,6,28,6],[0,0,0,6],[1,0,2,6],[3,0,4,0],[3,2,4,2],[3,3,4,3],[3,4,4,4],[3,5,4,5],[3,6,4,6],[3,1,4,1],[5,0,5,6],[6,0,6,6],[7,0,7,6],[13,0,17,0],[13,1,17,1],[13,3,17,3],[13,4,17,4],[13,5,17,5],[13,6,17,6]]}
[]
["SISTEMA DE GERAÇÃO SOLAR FOTOVOLTAICA, OFF-GRID, SEM BATERIAS, PARA SISTEMA DE IRRIGAÇÃO COM MOTOBOMBA PARA O ESTADO DA BAHIA"]
[]
["ITEM","CÓD","DESCRIÇÃO","UNID.","QUANT.","Valor Unitario (R$)","Valor Total (R$)"]
[]
["SISTEMA DE GERAÇÃO SOLAR FOTOVOLTAICA, OFF-GRID, SEM BATERIAS, PARA SISTEMA DE IRRIGAÇÃO COM MOTOBOMBA DE ATÉ 1CV"]
["MATERIAL ELÉTRICO - A"]
["ARRANJO FOTOVOLTAICO"]
[1,null,"Módulo Fotovoltaico, com potência de 570 Wp STC (ou de potência suficiente para o correto funcionamento do sistema), estrutura em liga de alumínio anodizado, caixa de junção IP 68, três diodos, eficiência superior a 19%, degradação no primeiro ano inferior a 3%, degradação do ano 2 ao 30 inferior a 0,5% ao ano, 10 anos de garantia, 20 anos de garantia de potência linear.","unid.",4,{"$f":"'Item 1-1;2 CV'!L39","v":790.28},{"$f":"E9*F9","v":3161.12}]
[2,null,"Par (macho e fêmea) de conectores terminais tipo MC4, de 2,5 a 6 mm², 1.500 Vcc, 30 A, IP67, próprio para instalações fotovoltaicas.","unid.",1,{"$f":"'Item 2 - 1;2;3-CV'!L38","v":44.51},44.51]
[3,null,"Estrutura de solo para módulos fotovoltaicos, 5 módulos instalados, pilastra travessa e mão francesa em aço galvanizado a fogo, longarina e acessórios em alumínio. Inclui todos os acessórios para correta fixação dos painéis.","unid.",1,{"$f":"'Item 3 - 1 CV'!L39","v":1102.96},1102.96]
[4,null,"Condutor de 4 mm², fios de cobre, têmpera mole, encordoamento classe 5 (extraflexível), isolação em composto termofixo livre de halogênio, retardante a chamas, cobertura em composto termofixo livre de halogênio, resistente a UV. Na cor vermelha.","metro",10,{"$f":"'Item 4 - 1;2;3 CV'!L39","v":5.19},51.9]
[5,null,"Condutor de 4 mm², fios de cobre, têmpera mole, encordoamento classe 5 (extraflexível), isolação em composto termofixo livre de halogênio, retardante a chamas, cobertura em composto termofixo livre de halogênio, resistente a UV. Na cor preta","metro",10,{"$f":"'Item 5 - 1;2;3 CV'!L39","v":4.96},49.6]
[6,null,"Driver solar fotovoltaico, apropriado para motores de 1 CV, operação off-grid:","und.",1,{"$f":"'Item 6 - 1 CV'!L39","v":1589.67},1589.67]
[null,null,"Eficiência mínima 95%, grau de proteção IP20, resfriamento natural ou com cooler integrado, garantia mínima de 5 anos, tensão de saída compatível com a motobomba, frequência 60 Hz, com sistema de partida suave da bomba e controle de velocidade, atender em plenitude os requisitos do sistema a ser instalado."]
[null,null,"Entrada de corrente contínua (CC) compatível com a quantidade de painéis fotovoltaicos propostos, com no mínimo 1 MPPT (maximum power point tracking) com faixa de tensão de operação compatível com os módulos fotovoltaicos, baixa tensão mínima para funcionamento."]
[null,null,"Saída de corrente alternada (CA) compatível com o sistema projetado, até 1 CV, temperatura de operação até 60 ºc, trifásico ou monofásico."]
[null,null,"Possuir, no mínimo as seguintes proteções: Sub e sobre tensão CC, sobreaquecimento, surtos de tensão (CC), proteção de bomba travada, proteção de curto-circuito, proteção contra funcionamento a seco e sobrecarga."]
["ATERRAMENTO"]
[7,867,"Cabo de cobre nu 50mm², composto por 7 fios x Ø 3,00 mm","metro",20,56.7,{"$f":"E20*F20","v":1134}]
[8,34643,"Caixa de inspeção para aterramento, em PVC, com tampa","und.",4,35.19,{"$f":"E21*F21","v":140.76}]
[9,null,"Haste para aterramento, cobreada alta camada, Ø 3/4″ x 2,40 m (Ø 17,3 mm – Efetivo)","und.",2,{"$f":"'Item 9 - 1;2;3 CV'!L39","v":141.84},283.68]
[10,416,"Conector Cabo-Haste em Latão Estanhado para 1 Cabo com Acessórios","und.",2,10.69,21.38]
[11,1578,"Terminal olhal para condutor de 50 mm²","und.",2,4.66,9.32]
["QUADRO DE PROTEÇÃO CC (STRINGBOX)"]
[12,null,"String-box CC, composta de:","und.",1,{"$f":"'Item 12 - 1;2;3 CV'!L39","v":515.03},{"$f":"E26*F26","v":515.03}]
[null,null,"1 conjunto de DPS por string, com proteção classe II, apropriado para uso em sistemas fotovoltaicos, 1040 Vdc, corrente de descarga máxima 40 kA, corrente de descarga nominal de 18 kA, nível de proteção inferior a 3,5 kV, 3 polos (positivo, negativo e terra), com indicador de operação verde (em serviço) e vermelho (defeito)."]
[null,null,"1 chave seccionadora de até 32A, para corrente contínua, 1.000 Vdc, 2 polos, adequado para uso em sistemas fotovoltaicos com conexão de condutores de 2,5 até 10 mm², para instalação em trilho DIN e com jumpers tipo barramento."]
[null,null,"1 caixa de proteção para stringbox em policarbonato, de sobrepor, trilho DIN, IP 65, proteção UV, e adequada para uso em sistemas fotovoltaicos. Deverão ser fixados através de trilho DIN"]
["ALIMENTAÇÃO DO MOTOR "]
[13,1014,"Condutor isolado 450/750V, seção nominal de 2,5 mm², condutor de cobre têmpera mole, encordoamento classe 4 ou 5, com isolação em composto termoplástico de PVC/A (cor azul, verde, preto, branco ou vermelho, conforme aplicação)","metro",80,2.41,{"$f":"E31*F31","v":192.8}]
[14,40400,"Duto PEAD corrugado 3/4\", fabricado em Polietileno de Alta Densidade (PEAD), sendo flexível, anelar e impermeável, na cor preta, apropriado para passagens da condutores elétricos","metro",20,1.91,{"$f":"E32*F32","v":38.200000000000003}]
[15,41627,"Caixa de passagem/inspeção em concreto, sem fundo, com tampa, 30X30 centímetros","Und.",2,183.44,{"$f":"E33*F33","v":366.88}]
["MONTAGEM E INSTALAÇÃO"]
[16,null,"Comissionamento das instalações ","Unid.",1,{"$f":"G110","v":352.44},{"$f":"E35*F35","v":352.44}]
[17,null,"Execução das instalações ","Unid.",1,{"$f":"G117","v":3662.48},{"$f":"E36*F36","v":3662.48}]
["Total Geral - KIT 1 CV",{"$nulls":5},{"$f":"SUM(G9:G36)","v":12716.73}]
["SISTEMA DE GERAÇÃO SOLAR FOTOVOLTAICA, OFF-GRID, SEM BATERIAS, PARA SISTEMA DE IRRIGAÇÃO COM MOTOBOMBA DE ATÉ 2CV"]
["MATERIAL ELÉTRICO - A"]
["ARRANJO FOTOVOLTAICO"]
[1,null,"Módulo Fotovoltaico, com potência de 570 Wp STC, (ou de potência suficiente para o correto funcionamento do sistema), estrutura em liga de alumínio anodizado, caixa de junção IP 68, três diodos, eficiência superior a 19%, degradação no primeiro ano inferior a 3%, degradação do ano 2 ao 30 inferior a 0,5% ao ano, 10 anos de garantia, 20 anos de garantia de potência linear.","unid.",7,{"$f":"'Item 1-1;2 CV'!L39","v":790.28},{"$f":"E41*F41","v":5531.96}]
[2,null,"Par (macho e fêmea) de conectores terminais tipo MC4, de 2,5 a 6 mm², 1.500 Vcc, 30 A, IP67, próprio para instalações fotovoltaicas.","unid.",1,{"$f":"'Item 2 - 1;2;3-CV'!L38","v":44.51},{"$f":"E42*F42","v":44.51}]
[3,null,"Estrutura de solo para módulos fotovoltaicos, 6 módulos instalados, pilastra travessa e mão francesa em aço galvanizado a fogo, longarina e acessórios em alumínio. Inclui todos os acessórios para correta fixação dos painéis.","unid.",1,{"$f":"'Item 3 - 2 CV'!L38","v":1426.53},{"$f":"E43*F43","v":1426.53}]
[4,null,"Condutor de 4 mm², fios de cobre, têmpera mole, encordoamento classe 5 (extraflexível), isolação em composto termofixo livre de halogênio, retardante a chamas, cobertura em composto termofixo livre de halogênio, resistente a UV. Na cor vermelha.","metro",15,{"$f":"'Item 4 - 1;2;3 CV'!L39","v":5.19},{"$f":"E44*F44","v":77.849999999999994}]
[5,null,"Condutor de 4 mm², fios de cobre, têmpera mole, encordoamento classe 5 (extraflexível), isolação em composto termofixo livre de halogênio, retardante a chamas, cobertura em composto termofixo livre de halogênio, resistente a UV. Na cor preta","metro",15,{"$f":"'Item 5 - 1;2;3 CV'!L39","v":4.96},{"$f":"E45*F45","v":74.400000000000006}]
[6,null,"Driver solar fotovoltaico, apropriado para motores de 2 CV, operação off-grid:","und.",1,{"$f":"'Item 6 - 2 CV'!L37","v":1506.92},{"$f":"E46*F46","v":1506.92}]
[null,null,"Eficiência mínima 95%, grau de proteção IP20, resfriamento natural ou com cooler integrado, garantia mínima de 5 anos, tensão de saída compatível com a motobomba, frequência 60 Hz, com sistema de partida suave da bomba e controle de velocidade, atender em plenitude os requisitos do sistema a ser instalado."]
[null,null,"Entrada de corrente contínua (CC) compatível com a quantidade de painéis fotovoltaicos propostos, com no mínimo 1 MPPT (maximum power point tracking) com faixa de tensão de operação compatível com os módulos fotovoltaicos, baixa tensão mínima para funcionamento."]
[null,null,"Saída de corrente alternada (CA) compatível com o sistema projetado, até 2 CV, temperatura de operação até 60 ºC, trifásico ou monofásico."]
[null,null,"Possuir, no mínimo as seguintes proteções: Sub e sobre tensão CC, sobreaquecimento, surtos de tensão (CC), proteção de bomba travada, proteção de curto-circuito, proteção contra funcionamento a seco e sobrecarga."]
["ATERRAMENTO"]
[7,867,"Cabo de cobre nu 50mm², composto por 7 fios x Ø 3,00 mm","metro",20,56.7,{"$f":"E52*F52","v":1134}]
[8,34643,"Caixa de inspeção para aterramento, em PVC, com tampa","und.",4,35.19,{"$f":"E53*F53","v":140.76}]
[9,null,"Haste para aterramento, cobreada alta camada, Ø 3/4″ x 2,40 m (Ø 17,3 mm – Efetivo)","und.",2,{"$f":"'Item 9 - 1;2;3 CV'!L39","v":141.84},283.68]
[10,416,"Conector Cabo-Haste em Latão Estanhado para 1 Cabo com Acessórios","und.",2,10.69,21.38]
[11,1578,"Terminal olhal para condutor de 50 mm²","und.",2,4.66,9.32]
["QUADRO DE PROTEÇÃO CC (STRINGBOX)"]
[12,null,"String-box CC, composta de:","und.",1,{"$f":"'Item 12 - 1;2;3 CV'!L39","v":515.03},{"$f":"E58*F58","v":515.03}]
[null,null,"1 conjunto de DPS por string, com proteção classe II, apropriado para uso em sistemas fotovoltaicos, 1040 Vdc, corrente de descarga máxima 40 kA, corrente de descarga nominal de 18 kA, nível de proteção inferior a 3,5 kV, 3 polos (positivo, negativo e terra), com indicador de operação verde (em serviço) e vermelho (defeito)."]
[null,null,"1 chave seccionadora de até 32A, para corrente contínua, 1.000 Vdc, 2 polos, adequado para uso em sistemas fotovoltaicos com conexão de condutores de 2,5 até 10 mm², para instalação em trilho DIN e com jumpers tipo barramento."]
[null,null,"1 caixa de proteção para stringbox em policarbonato, de sobrepor, trilho DIN, IP 65, proteção UV, e adequada para uso em sistemas fotovoltaicos. Deverão ser fixados através de trilho DIN"]
["ALIMENTAÇÃO DO MOTOR "]
[13,1014,"Condutor isolado 450/750V, seção nominal de 2,5 mm², condutor de cobre têmpera mole, encordoamento classe 4 ou 5, com isolação em composto termoplástico de PVC/A (cor azul, verde, preto, branco ou vermelho, conforme aplicação)","metro",80,2.41,{"$f":"E63*F63","v":192.8}]
[14,40400,"Duto PEAD corrugado 3/4\", fabricado em Polietileno de Alta Densidade (PEAD), sendo flexível, anelar e impermeável, na cor preta, apropriado para passagens da condutores elétricos","metro",20,1.91,{"$f":"E64*F64","v":38.200000000000003}]
[15,41627,"Caixa de passagem/inspeção em concreto, sem fundo, com tampa, 30X30 centímetros","Und.",2,183.44,{"$f":"E65*F65","v":366.88}]
["MONTAGEM E INSTALAÇÃO"]
[16,null,"Comissionamento das instalações ","Unid.",1,{"$f":"G110","v":352.44},{"$f":"E67*F67","v":352.44}]
[17,null,"Execução das instalações ","Unid.",1,{"$f":"G117","v":3662.48},{"$f":"E68*F68","v":3662.48}]
["Total Geral - KIT 2 CV",{"$nulls":5},{"$f":"SUM(G41:G68)","v":15379.14}]
[]
[]
["SISTEMA DE GERAÇÃO SOLAR FOTOVOLTAICA, OFF-GRID, SEM BATERIAS, PARA SISTEMA DE IRRIGAÇÃO COM MOTOBOMBA DE ATÉ 3CV"]
["MATERIAL ELÉTRICO - A"]
["ARRANJO FOTOVOLTAICO"]
[1,null,"Módulo Fotovoltaico, com potência de 700 Wp STC, (ou de potência suficiente para o correto funcionamento do sistema), estrutura em liga de alumínio anodizado, caixa de junção IP 68, três diodos, eficiência superior a 19%, degradação no primeiro ano inferior a 3%, degradação do ano 2 ao 30 inferior a 0,5% ao ano, 10 anos de garantia, 20 anos de garantia de potência linear.","unid.",8,{"$f":"'Item 1 - 3 CV'!L39","v":840.92},{"$f":"E75*F75","v":6727.36}]
[2,null,"Par (macho e fêmea) de conectores terminais tipo MC4, de 2,5 a 6 mm², 1.500 Vcc, 30 A, IP67, próprio para instalações fotovoltaicas.","unid.",2,{"$f":"'Item 2 - 1;2;3-CV'!L38","v":44.51},{"$f":"E76*F76","v":89.02}]
[3,null,"Estrutura de solo para módulos fotovoltaicos, 8 módulos instalados, pilastra travessa e mão francesa em aço galvanizado a fogo, longarina e acessórios em alumínio. Inclui todos os acessórios para correta fixação dos painéis.","unid.",1,{"$f":"'Item 3 - 3 CV'!L38","v":1508.78},1508.78]
[4,null,"Condutor de 4 mm², fios de cobre, têmpera mole, encordoamento classe 5 (extraflexível), isolação em composto termofixo livre de halogênio, retardante a chamas, cobertura em composto termofixo livre de halogênio, resistente a UV. Na cor vermelha.","metro",20,{"$f":"'Item 4 - 1;2;3 CV'!L39","v":5.19},103.8]
[5,null,"Condutor de 4 mm², fios de cobre, têmpera mole, encordoamento classe 5 (extraflexível), isolação em composto termofixo livre de halogênio, retardante a chamas, cobertura em composto termofixo livre de halogênio, resistente a UV. Na cor preta","metro",20,{"$f":"'Item 5 - 1;2;3 CV'!L39","v":4.96},99.2]
[6,null,"Driver solar fotovoltaico, apropriado para motores de 3 CV, operação off-grid:","und.",1,{"$f":"'Item 6 - 3 CV'!L36","v":2076},2076]
[null,null,"Eficiência mínima 95%, grau de proteção IP20, resfriamento natural ou com cooler integrado, garantia mínima de 5 anos, tensão de saída compatível com a motobomba, frequência 60 Hz, com sistema de partida suave da bomba e controle de velocidade, atender em plenitude os requisitos do sistema a ser instalado."]
[null,null,"Entrada de corrente contínua (CC) compatível com a quantidade de painéis fotovoltaicos propostos, com no mínimo 1 MPPT (maximum power point tracking) com faixa de tensão de operação compatível com os módulos fotovoltaicos, baixa tensão mínima para funcionamento."]
[null,null,"Saída de corrente alternada (CA) compatível com o sistema projetado, até 3 CV, temperatura de operação até 60 ºC, trifásico ou monofásico."]
[null,null,"Possuir, no mínimo as seguintes proteções: Sub e sobre tensão CC, sobreaquecimento, surtos de tensão (CC), proteção de bomba travada, proteção de curto-circuito, proteção contra funcionamento a seco e sobrecarga."]
["ATERRAMENTO"]
[7,867,"Cabo de cobre nu 50mm², composto por 7 fios x Ø 3,00 mm","metro",20,56.7,{"$f":"E86*F86","v":1134}]
[8,34643,"Caixa de inspeção para aterramento, em PVC, com tampa","und.",4,35.19,{"$f":"E87*F87","v":140.76}]
[9,null,"Haste para aterramento, cobreada alta camada, Ø 3/4″ x 2,40 m (Ø 17,3 mm – Efetivo)","und.",2,{"$f":"'Item 9 - 1;2;3 CV'!L39","v":141.84},{"$f":"E88*F88","v":283.68}]
[10,416,"Conector Cabo-Haste em Latão Estanhado para 1 Cabo com Acessórios","und.",2,10.69,{"$f":"E89*F89","v":21.38}]
[11,1578,"Terminal olhal para condutor de 50 mm²","und.",2,4.66,{"$f":"E90*F90","v":9.32}]
["QUADRO DE PROTEÇÃO CC (STRINGBOX)"]
[12,null,"String-box CC, composta de:","und.",1,{"$f":"'Item 12 - 1;2;3 CV'!L39","v":515.03},{"$f":"E92*F92","v":515.03}]
[null,null,"1 conjunto de DPS por string, com proteção classe II, apropriado para uso em sistemas fotovoltaicos, 1040 Vdc, corrente de descarga máxima 40 kA, corrente de descarga nominal de 18 kA, nível de proteção inferior a 3,5 kV, 3 polos (positivo, negativo e terra), com indicador de operação verde (em serviço) e vermelho (defeito)."]
[null,null,"1 chave seccionadora de até 32A, para corrente contínua, 1.000 Vdc, 2 polos, adequado para uso em sistemas fotovoltaicos com conexão de condutores de 2,5 até 10 mm², para instalação em trilho DIN e com jumpers tipo barramento."]
[null,null,"1 caixa de proteção para stringbox em policarbonato, de sobrepor, trilho DIN, IP 65, proteção UV, e adequada para uso em sistemas fotovoltaicos. Deverão ser fixados através de trilho DIN"]
["ALIMENTAÇÃO DO MOTOR "]
[13,1014,"Condutor isolado 450/750V, seção nominal de 4 mm², condutor de cobre têmpera mole, encordoamento classe 4 ou 5, com isolação em composto termoplástico de PVC/A (cor azul, verde, preto, branco ou vermelho, conforme aplicação)","metro",80,2.41,{"$f":"E97*F97","v":192.8}]
[14,40400,"Duto PEAD corrugado 1\", fabricado em Polietileno de Alta Densidade (PEAD), sendo flexível, anelar e impermeável, na cor preta, apropriado para passagens da condutores elétricos","metro",20,1.91,{"$f":"E98*F98","v":38.200000000000003}]
[15,41627,"Caixa de passagem/inspeção em concreto, sem fundo, com tampa, 30X30 centímetros","Und.",2,183.44,366.88]
["MONTAGEM E INSTALAÇÃO"]
[16,null,"Comissionamento das instalações ","Unid.",1,{"$f":"G110","v":352.44},{"$f":"E101*F101","v":352.44}]
[17,null,"Execução das instalações ","Unid.",1,{"$f":"G117","v":3662.48},{"$f":"E102*F102","v":3662.48}]
["Total Geral - KIT 3CV",{"$nulls":5},{"$f":"SUM(G75:G102)","v":17321.13}]
[]
[]
[]
["item 16 ",null,null,"Unidade","valor unitário","Quant","Valor total"]
[null,90778,"Engenheiro eletricista - Pleno ","Hora",135.07,2,{"$f":"E108*F108","v":270.14}]
[null,88266,"Técnico eletrotécnico","Hora",41.15,2,{"$f":"E109*F109","v":82.3}]
[null,"Total Geral - item 16",{"$nulls":4},{"$f":"SUM(G108:G109)","v":352.44}]
[]
["item 17 ",null,null,"Unidade","valor unitário","Quant","Valor total"]
[null,90778,"Engenheiro eletricista - Pleno ","Hora",135.07,8,{"$f":"E113*F113","v":1080.56}]
[null,88266,"Técnico eletrotécnico","Hora",41.15,24,{"$f":"E114*F114","v":987.6}]
[null,90776,"Encarregado ","Hora",40.869999999999997,24,980.88]
[null,88247,"Ajudante","Hora",25.56,24,613.44000000000005]
[null,"Total Geral - item 17",{"$nulls":4},{"$f":"SUM(G113:G116)","v":3662.48}]

{"sheet":"DF","index":4,"n_rows":117,"n_cols":7,"rows_kept":117,"cut":false,"hidden":false,"merged":[[106,0,109,0],[109,1,109,5],[111,0,116,0],[116,1,116,5],[72,0,72,6],[73,0,73,6],[79,0,83,0],[79,3,83,3],[79,4,83,4],[79,5,83,5],[79,6,83,6],[84,0,84,6],[90,0,90,6],[91,0,94,0],[91,3,94,3],[91,4,94,4],[91,5,94,5],[91,6,94,6],[95,0,95,6],[99,0,99,6],[102,0,102,5],[71,0,71,6],[61,0,61,6],[65,0,65,6],[68,0,68,5],[50,0,50,6],[56,0,56,6],[57,0,60,0],[57,3,60,3],[57,4,60,4],[57,5,60,5],[57,6,60,6],[39,0,39,6],[45,0,49,0],[45,3,49,3],[45,4,49,4],[45,5,49,5],[45,6,49,6],[29,0,29,6],[33,0,33,6],[36,0,36,5],[37,0,37,6],[38,0,38,6],[18,0,18,6],[24,0,24,6],[25,0,28,0],[25,3,28,3],[25,4,28,4],[25,5,28,5],[25,6,28,6],[0,0,0,6],[1,0,2,6],[3,0,4,0],[3,2,4,2],[3,3,4,3],[3,4,4,4],[3,5,4,5],[3,6,4,6],[3,1,4,1],[5,0,5,6],[6,0,6,6],[7,0,7,6],[13,0,17,0],[13,1,17,1],[13,3,17,3],[13,4,17,4],[13,5,17,5],[13,6,17,6]]}
[]
["SISTEMA DE GERAÇÃO SOLAR FOTOVOLTAICA, OFF-GRID, SEM BATERIAS, PARA SISTEMA DE IRRIGAÇÃO COM MOTOBOMBA PARA O DISTRITO FEDERAL"]
[]
["ITEM","CÓD","DESCRIÇÃO","UNID.","QUANT.","Valor Unitario (R$)","Valor Total (R$)"]
[]
["SISTEMA DE GERAÇÃO SOLAR FOTOVOLTAICA, OFF-GRID, SEM BATERIAS, PARA SISTEMA DE IRRIGAÇÃO COM MOTOBOMBA DE ATÉ 1CV"]
["MATERIAL ELÉTRICO - A"]
["ARRANJO FOTOVOLTAICO"]
[1,null,"Módulo Fotovoltaico, com potência de 570 Wp STC (ou de potência suficiente para o correto funcionamento do sistema), estrutura em liga de alumínio anodizado, caixa de junção IP 68, três diodos, eficiência superior a 19%, degradação no primeiro ano inferior a 3%, degradação do ano 2 ao 30 inferior a 0,5% ao ano, 10 anos de garantia, 20 anos de garantia de potência linear.","unid.",4,{"$f":"'Item 1-1;2 CV'!L39","v":790.28},{"$f":"E9*F9","v":3161.12}]
[2,null,"Par (macho e fêmea) de conectores terminais tipo MC4, de 2,5 a 6 mm², 1.500 Vcc, 30 A, IP67, próprio para instalações fotovoltaicas.","unid.",1,{"$f":"'Item 2 - 1;2;3-CV'!L38","v":44.51},44.51]
[3,null,"Estrutura de solo para módulos fotovoltaicos, 5 módulos instalados, pilastra travessa e mão francesa em aço galvanizado a fogo, longarina e acessórios em alumínio. Inclui todos os acessórios para correta fixação dos painéis.","unid.",1,{"$f":"'Item 3 - 1 CV'!L39","v":1102.96},1102.96]
[4,null,"Condutor de 4 mm², fios de cobre, têmpera mole, encordoamento classe 5 (extraflexível), isolação em composto termofixo livre de halogênio, retardante a chamas, cobertura em composto termofixo livre de halogênio, resistente a UV. Na cor vermelha.","metro",10,{"$f":"'Item 4 - 1;2;3 CV'!L39","v":5.19},51.9]
[5,null,"Condutor de 4 mm², fios de cobre, têmpera mole, encordoamento classe 5 (extraflexível), isolação em composto termofixo livre de halogênio, retardante a chamas, cobertura em composto termofixo livre de halogênio, resistente a UV. Na cor preta","metro",10,{"$f":"'Item 5 - 1;2;3 CV'!L39","v":4.96},49.6]
[6,null,"Driver solar fotovoltaico, apropriado para motores de 1 CV, operação off-grid:","und.",1,{"$f":"'Item 6 - 1 CV'!L39","v":1589.67},1589.67]
[null,null,"Eficiência mínima 95%, grau de proteção IP20, resfriamento natural ou com cooler integrado, garantia mínima de 5 anos, tensão de saída compatível com a motobomba, frequência 60 Hz, com sistema de partida suave da bomba e controle de velocidade, atender em plenitude os requisitos do sistema a ser instalado."]
[null,null,"Entrada de corrente contínua (CC) compatível com a quantidade de painéis fotovoltaicos propostos, com no mínimo 1 MPPT (maximum power point tracking) com faixa de tensão de operação compatível com os módulos fotovoltaicos, baixa tensão mínima para funcionamento."]
[null,null,"Saída de corrente alternada (CA) compatível com o sistema projetado, até 1 CV, temperatura de operação até 60 ºc, trifásico ou monofásico."]
[null,null,"Possuir, no mínimo as seguintes proteções: Sub e sobre tensão CC, sobreaquecimento, surtos de tensão (CC), proteção de bomba travada, proteção de curto-circuito, proteção contra funcionamento a seco e sobrecarga."]
["ATERRAMENTO"]
[7,867,"Cabo de cobre nu 50mm², composto por 7 fios x Ø 3,00 mm","metro",20,65.37,{"$f":"E20*F20","v":1307.4000000000001}]
[8,34643,"Caixa de inspeção para aterramento, em PVC, com tampa","und.",4,58.29,{"$f":"E21*F21","v":233.16}]
[9,"COT","Haste para aterramento, cobreada alta camada, Ø 3/4″ x 2,40 m (Ø 17,3 mm – Efetivo)","und.",2,{"$f":"'Item 9 - 1;2;3 CV'!L39","v":141.84},283.68]
[10,416,"Conector Cabo-Haste em Latão Estanhado para 1 Cabo com Acessórios","und.",2,8.4700000000000006,16.940000000000001]
[11,1578,"Terminal olhal para condutor de 50 mm²","und.",2,6.11,12.22]
["QUADRO DE PROTEÇÃO CC (STRINGBOX)"]
[12,null,"String-box CC, composta de:","und.",1,{"$f":"'Item 12 - 1;2;3 CV'!L39","v":515.03},{"$f":"E26*F26","v":515.03}]
[null,null,"1 conjunto de DPS por string, com proteção classe II, apropriado para uso em sistemas fotovoltaicos, 1040 Vdc, corrente de descarga máxima 40 kA, corrente de descarga nominal de 18 kA, nível de proteção inferior a 3,5 kV, 3 polos (positivo, negativo e terra), com indicador de operação verde (em serviço) e vermelho (defeito)."]
[null,null,"1 chave seccionadora de até 32A, para corrente contínua, 1.000 Vdc, 2 polos, adequado para uso em sistemas fotovoltaicos com conexão de condutores de 2,5 até 10 mm², para instalação em trilho DIN e com jumpers tipo barramento."]
[null,null,"1 caixa de proteção para stringbox em policarbonato, de sobrepor, trilho DIN, IP 65, proteção UV, e adequada para uso em sistemas fotovoltaicos. Deverão ser fixados através de trilho DIN"]
["ALIMENTAÇÃO DO MOTOR "]
[13,1014,"Condutor isolado 450/750V, seção nominal de 2,5 mm², condutor de cobre têmpera mole, encordoamento classe 4 ou 5, com isolação em composto termoplástico de PVC/A (cor azul, verde, preto, branco ou vermelho, conforme aplicação)","metro",80,2.77,{"$f":"E31*F31","v":221.6}]
[14,40400,"Duto PEAD corrugado 3/4\", fabricado em Polietileno de Alta Densidade (PEAD), sendo flexível, anelar e impermeável, na cor preta, apropriado para passagens da condutores elétricos","metro",20,1.7,{"$f":"E32*F32","v":34}]
[15,41627,"Caixa de passagem/inspeção em concreto, sem fundo, com tampa, 30X30 centímetros","Und.",2,185.77,{"$f":"E33*F33","v":371.54}]
["MONTAGEM E INSTALAÇÃO"]
[16,null,"Comissionamento das instalações ","Unid.",1,{"$f":"G110","v":380.62},{"$f":"E35*F35","v":380.62}]
[17,null,"Execução das instalações ","Unid.",1,{"$f":"G117","v":3429.6},{"$f":"E36*F36","v":3429.6}]
["Total Geral - KIT 1 CV",{"$nulls":5},{"$f":"SUM(G9:G36)","v":12805.55}]
["SISTEMA DE GERAÇÃO SOLAR FOTOVOLTAICA, OFF-GRID, SEM BATERIAS, PARA SISTEMA DE IRRIGAÇÃO COM MOTOBOMBA DE ATÉ 2CV"]
["MATERIAL ELÉTRICO - A"]
["ARRANJO FOTOVOLTAICO"]
[1,null,"Módulo Fotovoltaico, com potência de 570 Wp STC, (ou de potência suficiente para o correto funcionamento do sistema), estrutura em liga de alumínio anodizado, caixa de junção IP 68, três diodos, eficiência superior a 19%, degradação no primeiro ano inferior a 3%, degradação do ano 2 ao 30 inferior a 0,5% ao ano, 10 anos de garantia, 20 anos de garantia de potência linear.","unid.",6,{"$f":"'Item 1-1;2 CV'!L39","v":790.28},{"$f":"E41*F41","v":4741.68}]
[2,null,"Par (macho e fêmea) de conectores terminais tipo MC4, de 2,5 a 6 mm², 1.500 Vcc, 30 A, IP67, próprio para instalações fotovoltaicas.","unid.",1,{"$f":"'Item 2 - 1;2;3-CV'!L38","v":44.51},{"$f":"E42*F42","v":44.51}]
[3,null,"Estrutura de solo para módulos fotovoltaicos, 6 módulos instalados, pilastra travessa e mão francesa em aço galvanizado a fogo, longarina e acessórios em alumínio. Inclui todos os acessórios para correta fixação dos painéis.","unid.",1,{"$f":"'Item 3 - 2 CV'!L38","v":1426.53},{"$f":"E43*F43","v":1426.53}]
[4,null,"Condutor de 4 mm², fios de cobre, têmpera mole, encordoamento classe 5 (extraflexível), isolação em composto termofixo livre de halogênio, retardante a chamas, cobertura em composto termofixo livre de halogênio, resistente a UV. Na cor vermelha.","metro",15,{"$f":"'Item 4 - 1;2;3 CV'!L39","v":5.19},{"$f":"E44*F44","v":77.849999999999994}]
[5,null,"Condutor de 4 mm², fios de cobre, têmpera mole, encordoamento classe 5 (extraflexível), isolação em composto termofixo livre de halogênio, retardante a chamas, cobertura em composto termofixo livre de halogênio, resistente a UV. Na cor preta","metro",15,{"$f":"'Item 5 - 1;2;3 CV'!L39","v":4.96},{"$f":"E45*F45","v":74.400000000000006}]
[6,null,"Driver solar fotovoltaico, apropriado para motores de 2 CV, operação off-grid:","und.",1,{"$f":"'Item 6 - 2 CV'!L37","v":1506.92},{"$f":"E46*F46","v":1506.92}]
[null,null,"Eficiência mínima 95%, grau de proteção IP20, resfriamento natural ou com cooler integrado, garantia mínima de 5 anos, tensão de saída compatível com a motobomba, frequência 60 Hz, com sistema de partida suave da bomba e controle de velocidade, atender em plenitude os requisitos do sistema a ser instalado."]
[null,null,"Entrada de corrente contínua (CC) compatível com a quantidade de painéis fotovoltaicos propostos, com no mínimo 1 MPPT (maximum power point tracking) com faixa de tensão de operação compatível com os módulos fotovoltaicos, baixa tensão mínima para funcionamento."]
[null,null,"Saída de corrente alternada (CA) compatível com o sistema projetado, até 2 CV, temperatura de operação até 60 ºC, trifásico ou monofásico."]
[null,null,"Possuir, no mínimo as seguintes proteções: Sub e sobre tensão CC, sobreaquecimento, surtos de tensão (CC), proteção de bomba travada, proteção de curto-circuito, proteção contra funcionamento a seco e sobrecarga."]
["ATERRAMENTO"]
[7,867,"Cabo de cobre nu 50mm², composto por 7 fios x Ø 3,00 mm","metro",20,65.37,{"$f":"E52*F52","v":1307.4000000000001}]
[8,34643,"Caixa de inspeção para aterramento, em PVC, com tampa","und.",4,58.29,{"$f":"E53*F53","v":233.16}]
[9,null,"Haste para aterramento, cobreada alta camada, Ø 3/4″ x 2,40 m (Ø 17,3 mm – Efetivo)","und.",2,{"$f":"'Item 9 - 1;2;3 CV'!L39","v":141.84},283.68]
[10,416,"Conector Cabo-Haste em Latão Estanhado para 1 Cabo com Acessórios","und.",2,8.4700000000000006,16.940000000000001]
[11,1578,"Terminal olhal para condutor de 50 mm²","und.",2,6.11,12.22]
["QUADRO DE PROTEÇÃO CC (STRINGBOX)"]
[12,null,"String-box CC, composta de:","und.",1,{"$f":"'Item 12 - 1;2;3 CV'!L39","v":515.03},{"$f":"E58*F58","v":515.03}]
[null,null,"1 conjunto de DPS por string, com proteção classe II, apropriado para uso em sistemas fotovoltaicos, 1040 Vdc, corrente de descarga máxima 40 kA, corrente de descarga nominal de 18 kA, nível de proteção inferior a 3,5 kV, 3 polos (positivo, negativo e terra), com indicador de operação verde (em serviço) e vermelho (defeito)."]
[null,null,"1 chave seccionadora de até 32A, para corrente contínua, 1.000 Vdc, 2 polos, adequado para uso em sistemas fotovoltaicos com conexão de condutores de 2,5 até 10 mm², para instalação em trilho DIN e com jumpers tipo barramento."]
[null,null,"1 caixa de proteção para stringbox em policarbonato, de sobrepor, trilho DIN, IP 65, proteção UV, e adequada para uso em sistemas fotovoltaicos. Deverão ser fixados através de trilho DIN"]
["ALIMENTAÇÃO DO MOTOR "]
[13,1014,"Condutor isolado 450/750V, seção nominal de 2,5 mm², condutor de cobre têmpera mole, encordoamento classe 4 ou 5, com isolação em composto termoplástico de PVC/A (cor azul, verde, preto, branco ou vermelho, conforme aplicação)","metro",80,2.77,{"$f":"E63*F63","v":221.6}]
[14,40400,"Duto PEAD corrugado 3/4\", fabricado em Polietileno de Alta Densidade (PEAD), sendo flexível, anelar e impermeável, na cor preta, apropriado para passagens da condutores elétricos","metro",20,1.7,{"$f":"E64*F64","v":34}]
[15,41627,"Caixa de passagem/inspeção em concreto, sem fundo, com tampa, 30X30 centímetros","Und.",2,185.77,{"$f":"E65*F65","v":371.54}]
["MONTAGEM E INSTALAÇÃO"]
[16,null,"Comissionamento das instalações ","Unid.",1,{"$f":"G110","v":380.62},{"$f":"E67*F67","v":380.62}]
[17,null,"Execução das instalações ","Unid.",1,{"$f":"G117","v":3429.6},{"$f":"E68*F68","v":3429.6}]
["Total Geral - KIT 2 CV",{"$nulls":5},{"$f":"SUM(G41:G68)","v":14677.68}]
[]
[]
["SISTEMA DE GERAÇÃO SOLAR FOTOVOLTAICA, OFF-GRID, SEM BATERIAS, PARA SISTEMA DE IRRIGAÇÃO COM MOTOBOMBA DE ATÉ 3CV"]
["MATERIAL ELÉTRICO - A"]
["ARRANJO FOTOVOLTAICO"]
[1,null,"Módulo Fotovoltaico, com potência de 700 Wp STC, (ou de potência suficiente para o correto funcionamento do sistema), estrutura em liga de alumínio anodizado, caixa de junção IP 68, três diodos, eficiência superior a 19%, degradação no primeiro ano inferior a 3%, degradação do ano 2 ao 30 inferior a 0,5% ao ano, 10 anos de garantia, 20 anos de garantia de potência linear.","unid.",7,{"$f":"'Item 1 - 3 CV'!L39","v":840.92},{"$f":"E75*F75","v":5886.44}]
[2,null,"Par (macho e fêmea) de conectores terminais tipo MC4, de 2,5 a 6 mm², 1.500 Vcc, 30 A, IP67, próprio para instalações fotovoltaicas.","unid.",2,{"$f":"'Item 2 - 1;2;3-CV'!L38","v":44.51},{"$f":"E76*F76","v":89.02}]
[3,null,"Estrutura de solo para módulos fotovoltaicos, 8 módulos instalados, pilastra travessa e mão francesa em aço galvanizado a fogo, longarina e acessórios em alumínio. Inclui todos os acessórios para correta fixação dos painéis.","unid.",1,{"$f":"'Item 3 - 3 CV'!L38","v":1508.78},1508.78]
[4,null,"Condutor de 4 mm², fios de cobre, têmpera mole, encordoamento classe 5 (extraflexível), isolação em composto termofixo livre de halogênio, retardante a chamas, cobertura em composto termofixo livre de halogênio, resistente a UV. Na cor vermelha.","metro",20,{"$f":"'Item 4 - 1;2;3 CV'!L39","v":5.19},103.8]
[5,null,"Condutor de 4 mm², fios de cobre, têmpera mole, encordoamento classe 5 (extraflexível), isolação em composto termofixo livre de halogênio, retardante a chamas, cobertura em composto termofixo livre de halogênio, resistente a UV. Na cor preta","metro",20,{"$f":"'Item 5 - 1;2;3 CV'!L39","v":4.96},99.2]
[6,null,"Driver solar fotovoltaico, apropriado para motores de 3 CV, operação off-grid:","und.",1,{"$f":"'Item 6 - 3 CV'!L36","v":2076},2076]
[null,null,"Eficiência mínima 95%, grau de proteção IP20, resfriamento natural ou com cooler integrado, garantia mínima de 5 anos, tensão de saída compatível com a motobomba, frequência 60 Hz, com sistema de partida suave da bomba e controle de velocidade, atender em plenitude os requisitos do sistema a ser instalado."]
[null,null,"Entrada de corrente contínua (CC) compatível com a quantidade de painéis fotovoltaicos propostos, com no mínimo 1 MPPT (maximum power point tracking) com faixa de tensão de operação compatível com os módulos fotovoltaicos, baixa tensão mínima para funcionamento."]
[null,null,"Saída de corrente alternada (CA) compatível com o sistema projetado, até 3 CV, temperatura de operação até 60 ºC, trifásico ou monofásico."]
[null,null,"Possuir, no mínimo as seguintes proteções: Sub e sobre tensão CC, sobreaquecimento, surtos de tensão (CC), proteção de bomba travada, proteção de curto-circuito, proteção contra funcionamento a seco e sobrecarga."]
["ATERRAMENTO"]
[7,867,"Cabo de cobre nu 50mm², composto por 7 fios x Ø 3,00 mm","metro",20,65.37,{"$f":"E86*F86","v":1307.4000000000001}]
[8,34643,"Caixa de inspeção para aterramento, em PVC, com tampa","und.",4,58.29,{"$f":"E87*F87","v":233.16}]
[9,null,"Haste para aterramento, cobreada alta camada, Ø 3/4″ x 2,40 m (Ø 17,3 mm – Efetivo)","und.",2,{"$f":"'Item 9 - 1;2;3 CV'!L39","v":141.84},{"$f":"E88*F88","v":283.68}]
[10,416,"Conector Cabo-Haste em Latão Estanhado para 1 Cabo com Acessórios","und.",2,8.4700000000000006,{"$f":"E89*F89","v":16.940000000000001}]
[11,1578,"Terminal olhal para condutor de 50 mm²","und.",2,6.11,{"$f":"E90*F90","v":12.22}]
["QUADRO DE PROTEÇÃO CC (STRINGBOX)"]
[12,null,"String-box CC, composta de:","und.",1,{"$f":"'Item 12 - 1;2;3 CV'!L39","v":515.03},{"$f":"E92*F92","v":515.03}]
[null,null,"1 conjunto de DPS por string, com proteção classe II, apropriado para uso em sistemas fotovoltaicos, 1040 Vdc, corrente de descarga máxima 40 kA, corrente de descarga nominal de 18 kA, nível de proteção inferior a 3,5 kV, 3 polos (positivo, negativo e terra), com indicador de operação verde (em serviço) e vermelho (defeito)."]
[null,null,"1 chave seccionadora de até 32A, para corrente contínua, 1.000 Vdc, 2 polos, adequado para uso em sistemas fotovoltaicos com conexão de condutores de 2,5 até 10 mm², para instalação em trilho DIN e com jumpers tipo barramento."]
[null,null,"1 caixa de proteção para stringbox em policarbonato, de sobrepor, trilho DIN, IP 65, proteção UV, e adequada para uso em sistemas fotovoltaicos. Deverão ser fixados através de trilho DIN"]
["ALIMENTAÇÃO DO MOTOR "]
[13,1014,"Condutor isolado 450/750V, seção nominal de 4 mm², condutor de cobre têmpera mole, encordoamento classe 4 ou 5, com isolação em composto termoplástico de PVC/A (cor azul, verde, preto, branco ou vermelho, conforme aplicação)","metro",80,2.77,{"$f":"E97*F97","v":221.6}]
[14,40400,"Duto PEAD corrugado 1\", fabricado em Polietileno de Alta Densidade (PEAD), sendo flexível, anelar e impermeável, na cor preta, apropriado para passagens da condutores elétricos","metro",20,1.7,{"$f":"E98*F98","v":34}]
[15,41627,"Caixa de passagem/inspeção em concreto, sem fundo, com tampa, 30X30 centímetros","Und.",2,185.77,371.54]
["MONTAGEM E INSTALAÇÃO"]
[16,null,"Comissionamento das instalações ","Unid.",1,{"$f":"G110","v":380.62},{"$f":"E101*F101","v":380.62}]
[17,null,"Execução das instalações ","Unid.",1,{"$f":"G117","v":3429.6},{"$f":"E102*F102","v":3429.6}]
["Total Geral - KIT 3CV",{"$nulls":5},{"$f":"SUM(G75:G102)","v":16569.03}]
[]
[]
[]
["item 16 ",null,null,"Unidade","valor unitário","Quant","Valor total"]
[null,90778,"Engenheiro eletricista - Pleno ","Hora",150.27000000000001,2,{"$f":"E108*F108","v":300.54000000000002}]
[null,88266,"Técnico eletrotécnico","Hora",40.04,2,{"$f":"E109*F109","v":80.08}]
["Total Geral - item 16","Total Geral - item 16",{"$nulls":4},{"$f":"SUM(G108:G109)","v":380.62}]
[]
["item 17 ",null,null,"Unidade","valor unitário","Quant","Valor total"]
[null,90778,"Engenheiro eletricista - Pleno ","Hora",150.27000000000001,8,{"$f":"E113*F113","v":1202.1600000000001}]
[null,88266,"Técnico eletrotécnico","Hora",40.04,24,{"$f":"E114*F114","v":960.96}]
[null,90776,"Encarregado ","Hora",26.51,24,636.24]
[null,88247,"Ajudante","Hora",26.26,24,630.24]
["Total Geral - item 17","Total Geral - item 17",{"$nulls":4},{"$f":"SUM(G113:G116)","v":3429.6}]

{"sheet":"MA","index":5,"n_rows":117,"n_cols":7,"rows_kept":117,"cut":false,"hidden":false,"merged":[[106,0,109,0],[109,1,109,5],[111,0,116,0],[116,1,116,5],[95,0,95,6],[99,0,99,6],[102,0,102,5],[72,0,72,6],[73,0,73,6],[79,0,83,0],[79,3,83,3],[79,4,83,4],[79,5,83,5],[79,6,83,6],[84,0,84,6],[90,0,90,6],[91,0,94,0],[91,3,94,3],[91,4,94,4],[91,5,94,5],[91,6,94,6],[61,0,61,6],[65,0,65,6],[68,0,68,5],[71,0,71,6],[56,0,56,6],[57,0,60,0],[57,3,60,3],[57,4,60,4],[57,5,60,5],[57,6,60,6],[50,0,50,6],[29,0,29,6],[33,0,33,6],[36,0,36,5],[37,0,37,6],[38,0,38,6],[39,0,39,6],[45,0,49,0],[45,3,49,3],[45,4,49,4],[45,5,49,5],[45,6,49,6],[18,0,18,6],[24,0,24,6],[25,0,28,0],[25,3,28,3],[25,4,28,4],[25,5,28,5],[25,6,28,6],[5,0,5,6],[6,0,6,6],[7,0,7,6],[13,0,17,0],[13,1,17,1],[13,3,17,3],[13,4,17,4],[13,5,17,5],[13,6,17,6],[0,0,0,6],[1,0,2,6],[3,0,4,0],[3,1,4,1],[3,2,4,2],[3,3,4,3],[3,4,4,4],[3,5,4,5],[3,6,4,6]]}
[]
["SISTEMA DE GERAÇÃO SOLAR FOTOVOLTAICA, OFF-GRID, SEM BATERIAS, PARA SISTEMA DE IRRIGAÇÃO COM MOTOBOMBA PARA O ESTADO DO MARANHÃO"]
[]
["ITEM","CÓD","DESCRIÇÃO","UNID.","QUANT.","Valor Unitario (R$)","Valor Total (R$)"]
[]
["SISTEMA DE GERAÇÃO SOLAR FOTOVOLTAICA, OFF-GRID, SEM BATERIAS, PARA SISTEMA DE IRRIGAÇÃO COM MOTOBOMBA DE ATÉ 1CV"]
["MATERIAL ELÉTRICO - A"]
["ARRANJO FOTOVOLTAICO"]
[1,null,"Módulo Fotovoltaico, com potência de 570 Wp STC (ou de potência suficiente para o correto funcionamento do sistema), estrutura em liga de alumínio anodizado, caixa de junção IP 68, três diodos, eficiência superior a 19%, degradação no primeiro ano inferior a 3%, degradação do ano 2 ao 30 inferior a 0,5% ao ano, 10 anos de garantia, 20 anos de garantia de potência linear.","unid.",4,{"$f":"'Item 1-1;2 CV'!L39","v":790.28},{"$f":"E9*F9","v":3161.12}]
[2,null,"Par (macho e fêmea) de conectores terminais tipo MC4, de 2,5 a 6 mm², 1.500 Vcc, 30 A, IP67, próprio para instalações fotovoltaicas.","unid.",1,{"$f":"'Item 2 - 1;2;3-CV'!L38","v":44.51},44.51]
[3,null,"Estrutura de solo para módulos fotovoltaicos, 5 módulos instalados, pilastra travessa e mão francesa em aço galvanizado a fogo, longarina e acessórios em alumínio. Inclui todos os acessórios para correta fixação dos painéis.","unid.",1,{"$f":"'Item 3 - 1 CV'!L39","v":1102.96},1102.96]
[4,null,"Condutor de 4 mm², fios de cobre, têmpera mole, encordoamento classe 5 (extraflexível), isolação em composto termofixo livre de halogênio, retardante a chamas, cobertura em composto termofixo livre de halogênio, resistente a UV. Na cor vermelha.","metro",10,{"$f":"'Item 4 - 1;2;3 CV'!L39","v":5.19},51.9]
[5,null,"Condutor de 4 mm², fios de cobre, têmpera mole, encordoamento classe 5 (extraflexível), isolação em composto termofixo livre de halogênio, retardante a chamas, cobertura em composto termofixo livre de halogênio, resistente a UV. Na cor preta","metro",10,{"$f":"'Item 5 - 1;2;3 CV'!L39","v":4.96},49.6]
[6,null,"Driver solar fotovoltaico, apropriado para motores de 1 CV, operação off-grid:","und.",1,{"$f":"'Item 6 - 1 CV'!L39","v":1589.67},1589.67]
[null,null,"Eficiência mínima 95%, grau de proteção IP20, resfriamento natural ou com cooler integrado, garantia mínima de 5 anos, tensão de saída compatível com a motobomba, frequência 60 Hz, com sistema de partida suave da bomba e controle de velocidade, atender em plenitude os requisitos do sistema a ser instalado."]
[null,null,"Entrada de corrente contínua (CC) compatível com a quantidade de painéis fotovoltaicos propostos, com no mínimo 1 MPPT (maximum power point tracking) com faixa de tensão de operação compatível com os módulos fotovoltaicos, baixa tensão mínima para funcionamento."]
[null,null,"Saída de corrente alternada (CA) compatível com o sistema projetado, até 1 CV, temperatura de operação até 60 ºc, trifásico ou monofásico."]
[null,null,"Possuir, no mínimo as seguintes proteções: Sub e sobre tensão CC, sobreaquecimento, surtos de tensão (CC), proteção de bomba travada, proteção de curto-circuito, proteção contra funcionamento a seco e sobrecarga."]
["ATERRAMENTO"]
[7,867,"Cabo de cobre nu 50mm², composto por 7 fios x Ø 3,00 mm","metro",20,63.95,{"$f":"E20*F20","v":1279}]
[8,34643,"Caixa de inspeção para aterramento, em PVC, com tampa","und.",4,45.5,{"$f":"E21*F21","v":182}]
[9,null,"Haste para aterramento, cobreada alta camada, Ø 3/4″ x 2,40 m (Ø 17,3 mm – Efetivo)","und.",2,{"$f":"'Item 9 - 1;2;3 CV'!L39","v":141.84},283.68]
[10,416,"Conector Cabo-Haste em Latão Estanhado para 1 Cabo com Acessórios","und.",2,10.77,21.54]
[11,1578,"Terminal olhal para condutor de 50 mm²","und.",2,6.18,12.36]
["QUADRO DE PROTEÇÃO CC (STRINGBOX)"]
[12,null,"String-box CC, composta de:","und.",1,{"$f":"'Item 12 - 1;2;3 CV'!L39","v":515.03},{"$f":"E26*F26","v":515.03}]
[null,null,"1 conjunto de DPS por string, com proteção classe II, apropriado para uso em sistemas fotovoltaicos, 1040 Vdc, corrente de descarga máxima 40 kA, corrente de descarga nominal de 18 kA, nível de proteção inferior a 3,5 kV, 3 polos (positivo, negativo e terra), com indicador de operação verde (em serviço) e vermelho (defeito)."]
[null,null,"1 chave seccionadora de até 32A, para corrente contínua, 1.000 Vdc, 2 polos, adequado para uso em sistemas fotovoltaicos com conexão de condutores de 2,5 até 10 mm², para instalação em trilho DIN e com jumpers tipo barramento."]
[null,null,"1 caixa de proteção para stringbox em policarbonato, de sobrepor, trilho DIN, IP 65, proteção UV, e adequada para uso em sistemas fotovoltaicos. Deverão ser fixados através de trilho DIN"]
["ALIMENTAÇÃO DO MOTOR "]
[13,1014,"Condutor isolado 450/750V, seção nominal de 2,5 mm², condutor de cobre têmpera mole, encordoamento classe 4 ou 5, com isolação em composto termoplástico de PVC/A (cor azul, verde, preto, branco ou vermelho, conforme aplicação)","metro",80,2.71,{"$f":"E31*F31","v":216.8}]
[14,40400,"Duto PEAD corrugado 3/4\", fabricado em Polietileno de Alta Densidade (PEAD), sendo flexível, anelar e impermeável, na cor preta, apropriado para passagens da condutores elétricos","metro",20,1.9,{"$f":"E32*F32","v":38}]
[15,41627,"Caixa de passagem/inspeção em concreto, sem fundo, com tampa, 30X30 centímetros","Und.",2,200.54,{"$f":"E33*F33","v":401.08}]
["MONTAGEM E INSTALAÇÃO"]
[16,null,"Comissionamento das instalações ","Unid.",1,{"$f":"G110","v":326.38},{"$f":"E35*F35","v":326.38}]
[17,null,"Execução das instalações ","Unid.",1,{"$f":"G117","v":3207.2},{"$f":"E36*F36","v":3207.2}]
["Total Geral - KIT 1 CV",{"$nulls":5},{"$f":"SUM(G9:G36)","v":12482.83}]
["SISTEMA DE GERAÇÃO SOLAR FOTOVOLTAICA, OFF-GRID, SEM BATERIAS, PARA SISTEMA DE IRRIGAÇÃO COM MOTOBOMBA DE ATÉ 2CV"]
["MATERIAL ELÉTRICO - A"]
["ARRANJO FOTOVOLTAICO"]
[1,null,"Módulo Fotovoltaico, com potência de 570 Wp STC, (ou de potência suficiente para o correto funcionamento do sistema), estrutura em liga de alumínio anodizado, caixa de junção IP 68, três diodos, eficiência superior a 19%, degradação no primeiro ano inferior a 3%, degradação do ano 2 ao 30 inferior a 0,5% ao ano, 10 anos de garantia, 20 anos de garantia de potência linear.","unid.",6,{"$f":"'Item 1-1;2 CV'!L39","v":790.28},{"$f":"E41*F41","v":4741.68}]
[2,null,"Par (macho e fêmea) de conectores terminais tipo MC4, de 2,5 a 6 mm², 1.500 Vcc, 30 A, IP67, próprio para instalações fotovoltaicas.","unid.",1,{"$f":"'Item 2 - 1;2;3-CV'!L38","v":44.51},{"$f":"E42*F42","v":44.51}]
[3,null,"Estrutura de solo para módulos fotovoltaicos, 6 módulos instalados, pilastra travessa e mão francesa em aço galvanizado a fogo, longarina e acessórios em alumínio. Inclui todos os acessórios para correta fixação dos painéis.","unid.",1,{"$f":"'Item 3 - 2 CV'!L38","v":1426.53},{"$f":"E43*F43","v":1426.53}]
[4,null,"Condutor de 4 mm², fios de cobre, têmpera mole, encordoamento classe 5 (extraflexível), isolação em composto termofixo livre de halogênio, retardante a chamas, cobertura em composto termofixo livre de halogênio, resistente a UV. Na cor vermelha.","metro",15,{"$f":"'Item 4 - 1;2;3 CV'!L39","v":5.19},{"$f":"E44*F44","v":77.849999999999994}]
[5,null,"Condutor de 4 mm², fios de cobre, têmpera mole, encordoamento classe 5 (extraflexível), isolação em composto termofixo livre de halogênio, retardante a chamas, cobertura em composto termofixo livre de halogênio, resistente a UV. Na cor preta","metro",15,{"$f":"'Item 5 - 1;2;3 CV'!L39","v":4.96},{"$f":"E45*F45","v":74.400000000000006}]
[6,null,"Driver solar fotovoltaico, apropriado para motores de 2 CV, operação off-grid:","und.",1,{"$f":"'Item 6 - 2 CV'!L37","v":1506.92},{"$f":"E46*F46","v":1506.92}]
[null,null,"Eficiência mínima 95%, grau de proteção IP20, resfriamento natural ou com cooler integrado, garantia mínima de 5 anos, tensão de saída compatível com a motobomba, frequência 60 Hz, com sistema de partida suave da bomba e controle de velocidade, atender em plenitude os requisitos do sistema a ser instalado."]
[null,null,"Entrada de corrente contínua (CC) compatível com a quantidade de painéis fotovoltaicos propostos, com no mínimo 1 MPPT (maximum power point tracking) com faixa de tensão de operação compatível com os módulos fotovoltaicos, baixa tensão mínima para funcionamento."]
[null,null,"Saída de corrente alternada (CA) compatível com o sistema projetado, até 2 CV, temperatura de operação até 60 ºC, trifásico ou monofásico."]
[null,null,"Possuir, no mínimo as seguintes proteções: Sub e sobre tensão CC, sobreaquecimento, surtos de tensão (CC), proteção de bomba travada, proteção de curto-circuito, proteção contra funcionamento a seco e sobrecarga."]
["ATERRAMENTO"]
[7,867,"Cabo de cobre nu 50mm², composto por 7 fios x Ø 3,00 mm","metro",20,63.95,{"$f":"E52*F52","v":1279}]
[8,34643,"Caixa de inspeção para aterramento, em PVC, com tampa","und.",4,45.5,{"$f":"E53*F53","v":182}]
[9,null,"Haste para aterramento, cobreada alta camada, Ø 3/4″ x 2,40 m (Ø 17,3 mm – Efetivo)","und.",2,{"$f":"'Item 9 - 1;2;3 CV'!L39","v":141.84},283.68]
[10,416,"Conector Cabo-Haste em Latão Estanhado para 1 Cabo com Acessórios","und.",2,10.77,21.54]
[11,1578,"Terminal olhal para condutor de 50 mm²","und.",2,6.18,12.36]
["QUADRO DE PROTEÇÃO CC (STRINGBOX)"]
[12,null,"String-box CC, composta de:","und.",1,{"$f":"'Item 12 - 1;2;3 CV'!L39","v":515.03},{"$f":"E58*F58","v":515.03}]
[null,null,"1 conjunto de DPS por string, com proteção classe II, apropriado para uso em sistemas fotovoltaicos, 1040 Vdc, corrente de descarga máxima 40 kA, corrente de descarga nominal de 18 kA, nível de proteção inferior a 3,5 kV, 3 polos (positivo, negativo e terra), com indicador de operação verde (em serviço) e vermelho (defeito)."]
[null,null,"1 chave seccionadora de até 32A, para corrente contínua, 1.000 Vdc, 2 polos, adequado para uso em sistemas fotovoltaicos com conexão de condutores de 2,5 até 10 mm², para instalação em trilho DIN e com jumpers tipo barramento."]
[null,null,"1 caixa de proteção para stringbox em policarbonato, de sobrepor, trilho DIN, IP 65, proteção UV, e adequada para uso em sistemas fotovoltaicos. Deverão ser fixados através de trilho DIN"]
["ALIMENTAÇÃO DO MOTOR "]
[13,1014,"Condutor isolado 450/750V, seção nominal de 2,5 mm², condutor de cobre têmpera mole, encordoamento classe 4 ou 5, com isolação em composto termoplástico de PVC/A (cor azul, verde, preto, branco ou vermelho, conforme aplicação)","metro",80,2.71,{"$f":"E63*F63","v":216.8}]
[14,40400,"Duto PEAD corrugado 3/4\", fabricado em Polietileno de Alta Densidade (PEAD), sendo flexível, anelar e impermeável, na cor preta, apropriado para passagens da condutores elétricos","metro",20,1.9,{"$f":"E64*F64","v":38}]
[15,41627,"Caixa de passagem/inspeção em concreto, sem fundo, com tampa, 30X30 centímetros","Und.",2,200.54,{"$f":"E65*F65","v":401.08}]
["MONTAGEM E INSTALAÇÃO"]
[16,null,"Comissionamento das instalações ","Unid.",1,{"$f":"G110","v":326.38},{"$f":"E67*F67","v":326.38}]
[17,null,"Execução das instalações ","Unid.",1,{"$f":"G117","v":3207.2},{"$f":"E68*F68","v":3207.2}]
["Total Geral - KIT 2 CV",{"$nulls":5},{"$f":"SUM(G41:G68)","v":14354.96}]
[]
[]
["SISTEMA DE GERAÇÃO SOLAR FOTOVOLTAICA, OFF-GRID, SEM BATERIAS, PARA SISTEMA DE IRRIGAÇÃO COM MOTOBOMBA DE ATÉ 3CV"]
["MATERIAL ELÉTRICO - A"]
["ARRANJO FOTOVOLTAICO"]
[1,null,"Módulo Fotovoltaico, com potência de 700 Wp STC, (ou de potência suficiente para o correto funcionamento do sistema), estrutura em liga de alumínio anodizado, caixa de junção IP 68, três diodos, eficiência superior a 19%, degradação no primeiro ano inferior a 3%, degradação do ano 2 ao 30 inferior a 0,5% ao ano, 10 anos de garantia, 20 anos de garantia de potência linear.","unid.",7,{"$f":"'Item 1 - 3 CV'!L39","v":840.92},{"$f":"E75*F75","v":5886.44}]
[2,null,"Par (macho e fêmea) de conectores terminais tipo MC4, de 2,5 a 6 mm², 1.500 Vcc, 30 A, IP67, próprio para instalações fotovoltaicas.","unid.",2,{"$f":"'Item 2 - 1;2;3-CV'!L38","v":44.51},{"$f":"E76*F76","v":89.02}]
[3,null,"Estrutura de solo para módulos fotovoltaicos, 8 módulos instalados, pilastra travessa e mão francesa em aço galvanizado a fogo, longarina e acessórios em alumínio. Inclui todos os acessórios para correta fixação dos painéis.","unid.",1,{"$f":"'Item 3 - 3 CV'!L38","v":1508.78},1508.78]
[4,null,"Condutor de 4 mm², fios de cobre, têmpera mole, encordoamento classe 5 (extraflexível), isolação em composto termofixo livre de halogênio, retardante a chamas, cobertura em composto termofixo livre de halogênio, resistente a UV. Na cor vermelha.","metro",20,{"$f":"'Item 4 - 1;2;3 CV'!L39","v":5.19},103.8]
[5,null,"Condutor de 4 mm², fios de cobre, têmpera mole, encordoamento classe 5 (extraflexível), isolação em composto termofixo livre de halogênio, retardante a chamas, cobertura em composto termofixo livre de halogênio, resistente a UV. Na cor preta","metro",20,{"$f":"'Item 5 - 1;2;3 CV'!L39","v":4.96},99.2]
[6,null,"Driver solar fotovoltaico, apropriado para motores de 3 CV, operação off-grid:","und.",1,{"$f":"'Item 6 - 3 CV'!L36","v":2076},2076]
[null,null,"Eficiência mínima 95%, grau de proteção IP20, resfriamento natural ou com cooler integrado, garantia mínima de 5 anos, tensão de saída compatível com a motobomba, frequência 60 Hz, com sistema de partida suave da bomba e controle de velocidade, atender em plenitude os requisitos do sistema a ser instalado."]
[null,null,"Entrada de corrente contínua (CC) compatível com a quantidade de painéis fotovoltaicos propostos, com no mínimo 1 MPPT (maximum power point tracking) com faixa de tensão de operação compatível com os módulos fotovoltaicos, baixa tensão mínima para funcionamento."]
[null,null,"Saída de corrente alternada (CA) compatível com o sistema projetado, até 3 CV, temperatura de operação até 60 ºC, trifásico ou monofásico."]
[null,null,"Possuir, no mínimo as seguintes proteções: Sub e sobre tensão CC, sobreaquecimento, surtos de tensão (CC), proteção de bomba travada, proteção de curto-circuito, proteção contra funcionamento a seco e sobrecarga."]
["ATERRAMENTO"]
[7,867,"Cabo de cobre nu 50mm², composto por 7 fios x Ø 3,00 mm","metro",20,63.95,{"$f":"E86*F86","v":1279}]
[8,34643,"Caixa de inspeção para aterramento, em PVC, com tampa","und.",4,45.5,{"$f":"E87*F87","v":182}]
[9,null,"Haste para aterramento, cobreada alta camada, Ø 3/4″ x 2,40 m (Ø 17,3 mm – Efetivo)","und.",2,{"$f":"'Item 9 - 1;2;3 CV'!L39","v":141.84},{"$f":"E88*F88","v":283.68}]
[10,416,"Conector Cabo-Haste em Latão Estanhado para 1 Cabo com Acessórios","und.",2,10.77,{"$f":"E89*F89","v":21.54}]
[11,1578,"Terminal olhal para condutor de 50 mm²","und.",2,6.18,{"$f":"E90*F90","v":12.36}]
["QUADRO DE PROTEÇÃO CC (STRINGBOX)"]
[12,null,"String-box CC, composta de:","und.",1,{"$f":"'Item 12 - 1;2;3 CV'!L39","v":515.03},{"$f":"E92*F92","v":515.03}]
[null,null,"1 conjunto de DPS por string, com proteção classe II, apropriado para uso em sistemas fotovoltaicos, 1040 Vdc, corrente de descarga máxima 40 kA, corrente de descarga nominal de 18 kA, nível de proteção inferior a 3,5 kV, 3 polos (positivo, negativo e terra), com indicador de operação verde (em serviço) e vermelho (defeito)."]
[null,null,"1 chave seccionadora de até 32A, para corrente contínua, 1.000 Vdc, 2 polos, adequado para uso em sistemas fotovoltaicos com conexão de condutores de 2,5 até 10 mm², para instalação em trilho DIN e com jumpers tipo barramento."]
[null,null,"1 caixa de proteção para stringbox em policarbonato, de sobrepor, trilho DIN, IP 65, proteção UV, e adequada para uso em sistemas fotovoltaicos. Deverão ser fixados através de trilho DIN"]
["ALIMENTAÇÃO DO MOTOR "]
[13,1014,"Condutor isolado 450/750V, seção nominal de 4 mm², condutor de cobre têmpera mole, encordoamento classe 4 ou 5, com isolação em composto termoplástico de PVC/A (cor azul, verde, preto, branco ou vermelho, conforme aplicação)","metro",80,2.71,{"$f":"E97*F97","v":216.8}]
[14,40400,"Duto PEAD corrugado 1\", fabricado em Polietileno de Alta Densidade (PEAD), sendo flexível, anelar e impermeável, na cor preta, apropriado para passagens da condutores elétricos","metro",20,1.9,{"$f":"E98*F98","v":38}]
[15,41627,"Caixa de passagem/inspeção em concreto, sem fundo, com tampa, 30X30 centímetros","Und.",2,200.54,401.08]
["MONTAGEM E INSTALAÇÃO"]
[16,null,"Comissionamento das instalações ","Unid.",1,{"$f":"G110","v":326.38},{"$f":"E101*F101","v":326.38}]
[17,null,"Execução das instalações ","Unid.",1,{"$f":"G117","v":3207.2},{"$f":"E102*F102","v":3207.2}]
["Total Geral - KIT 3CV",{"$nulls":5},{"$f":"SUM(G75:G102)","v":16246.31}]
[]
[]
[]
["item 16 ",null,null,"Unidade","valor unitário","Quant","Valor total"]
[null,90778,"Engenheiro eletricista - Pleno ","Hora",129.13,2,{"$f":"E108*F108","v":258.26}]
[null,88266,"Técnico eletrotécnico","Hora",34.06,2,{"$f":"E109*F109","v":68.12}]
["Total Geral - item 16","Total Geral - item 16",{"$nulls":4},{"$f":"SUM(G108:G109)","v":326.38}]
[]
["item 17 ",null,null,"Unidade","valor unitário","Quant","Valor total"]
[null,90778,"Engenheiro eletricista - Pleno ","Hora",129.13,8,{"$f":"E113*F113","v":1033.04}]
[null,88266,"Técnico eletrotécnico","Hora",34.06,24,{"$f":"E114*F114","v":817.44}]
[null,90776,"Encarregado ","Hora",31.47,24,755.28]
[null,88247,"Ajudante","Hora",25.06,24,601.44000000000005]
["Total Geral - item 17","Total Geral - item 17",{"$nulls":4},{"$f":"SUM(G113:G116)","v":3207.2}]

{"sheet":"MT","index":6,"n_rows":117,"n_cols":7,"rows_kept":117,"cut":false,"hidden":false,"merged":[[106,0,109,0],[109,1,109,5],[111,0,116,0],[116,1,116,5],[95,0,95,6],[99,0,99,6],[102,0,102,5],[72,0,72,6],[73,0,73,6],[79,0,83,0],[79,3,83,3],[79,4,83,4],[79,5,83,5],[79,6,83,6],[84,0,84,6],[90,0,90,6],[91,0,94,0],[91,3,94,3],[91,4,94,4],[91,5,94,5],[91,6,94,6],[61,0,61,6],[65,0,65,6],[68,0,68,5],[71,0,71,6],[56,0,56,6],[57,0,60,0],[57,3,60,3],[57,4,60,4],[57,5,60,5],[57,6,60,6],[50,0,50,6],[29,0,29,6],[33,0,33,6],[36,0,36,5],[37,0,37,6],[38,0,38,6],[39,0,39,6],[45,0,49,0],[45,3,49,3],[45,4,49,4],[45,5,49,5],[45,6,49,6],[18,0,18,6],[24,0,24,6],[25,0,28,0],[25,3,28,3],[25,4,28,4],[25,5,28,5],[25,6,28,6],[5,0,5,6],[6,0,6,6],[7,0,7,6],[13,0,17,0],[13,1,17,1],[13,3,17,3],[13,4,17,4],[13,5,17,5],[13,6,17,6],[0,0,0,6],[1,0,2,6],[3,0,4,0],[3,1,4,1],[3,2,4,2],[3,3,4,3],[3,4,4,4],[3,5,4,5],[3,6,4,6]]}
[]
["SISTEMA DE GERAÇÃO SOLAR FOTOVOLTAICA, OFF-GRID, SEM BATERIAS, PARA SISTEMA DE IRRIGAÇÃO COM MOTOBOMBA PARA O ESTADO DO MATO GROSSO"]
[]
["ITEM","CÓD","DESCRIÇÃO","UNID.","QUANT.","Valor Unitario (R$)","Valor Total (R$)"]
[]
["SISTEMA DE GERAÇÃO SOLAR FOTOVOLTAICA, OFF-GRID, SEM BATERIAS, PARA SISTEMA DE IRRIGAÇÃO COM MOTOBOMBA DE ATÉ 1CV"]
["MATERIAL ELÉTRICO - A"]
["ARRANJO FOTOVOLTAICO"]
[1,null,"Módulo Fotovoltaico, com potência de 570 Wp STC (ou de potência suficiente para o correto funcionamento do sistema), estrutura em liga de alumínio anodizado, caixa de junção IP 68, três diodos, eficiência superior a 19%, degradação no primeiro ano inferior a 3%, degradação do ano 2 ao 30 inferior a 0,5% ao ano, 10 anos de garantia, 20 anos de garantia de potência linear.","unid.",4,{"$f":"'Item 1-1;2 CV'!L39","v":790.28},{"$f":"E9*F9","v":3161.12}]
[2,null,"Par (macho e fêmea) de conectores terminais tipo MC4, de 2,5 a 6 mm², 1.500 Vcc, 30 A, IP67, próprio para instalações fotovoltaicas.","unid.",1,{"$f":"'Item 2 - 1;2;3-CV'!L38","v":44.51},44.51]
[3,null,"Estrutura de solo para módulos fotovoltaicos, 5 módulos instalados, pilastra travessa e mão francesa em aço galvanizado a fogo, longarina e acessórios em alumínio. Inclui todos os acessórios para correta fixação dos painéis.","unid.",1,{"$f":"'Item 3 - 1 CV'!L39","v":1102.96},1102.96]
[4,null,"Condutor de 4 mm², fios de cobre, têmpera mole, encordoamento classe 5 (extraflexível), isolação em composto termofixo livre de halogênio, retardante a chamas, cobertura em composto termofixo livre de halogênio, resistente a UV. Na cor vermelha.","metro",10,{"$f":"'Item 4 - 1;2;3 CV'!L39","v":5.19},51.9]
[5,null,"Condutor de 4 mm², fios de cobre, têmpera mole, encordoamento classe 5 (extraflexível), isolação em composto termofixo livre de halogênio, retardante a chamas, cobertura em composto termofixo livre de halogênio, resistente a UV. Na cor preta","metro",10,{"$f":"'Item 5 - 1;2;3 CV'!L39","v":4.96},49.6]
[6,null,"Driver solar fotovoltaico, apropriado para motores de 1 CV, operação off-grid:","und.",1,{"$f":"'Item 6 - 1 CV'!L39","v":1589.67},1589.67]
[null,null,"Eficiência mínima 95%, grau de proteção IP20, resfriamento natural ou com cooler integrado, garantia mínima de 5 anos, tensão de saída compatível com a motobomba, frequência 60 Hz, com sistema de partida suave da bomba e controle de velocidade, atender em plenitude os requisitos do sistema a ser instalado."]
[null,null,"Entrada de corrente contínua (CC) compatível com a quantidade de painéis fotovoltaicos propostos, com no mínimo 1 MPPT (maximum power point tracking) com faixa de tensão de operação compatível com os módulos fotovoltaicos, baixa tensão mínima para funcionamento."]
[null,null,"Saída de corrente alternada (CA) compatível com o sistema projetado, até 1 CV, temperatura de operação até 60 ºc, trifásico ou monofásico."]
[null,null,"Possuir, no mínimo as seguintes proteções: Sub e sobre tensão CC, sobreaquecimento, surtos de tensão (CC), proteção de bomba travada, proteção de curto-circuito, proteção contra funcionamento a seco e sobrecarga."]
["ATERRAMENTO"]
[7,867,"Cabo de cobre nu 50mm², composto por 7 fios x Ø 3,00 mm","metro",20,60.11,{"$f":"E20*F20","v":1202.2}]
[8,34643,"Caixa de inspeção para aterramento, em PVC, com tampa","und.",4,48.6,{"$f":"E21*F21","v":194.4}]
[9,null,"Haste para aterramento, cobreada alta camada, Ø 3/4″ x 2,40 m (Ø 17,3 mm – Efetivo)","und.",2,{"$f":"'Item 9 - 1;2;3 CV'!L39","v":141.84},283.68]
[10,416,"Conector Cabo-Haste em Latão Estanhado para 1 Cabo com Acessórios","und.",2,9.0500000000000007,18.100000000000001]
[11,1578,"Terminal olhal para condutor de 50 mm²","und.",2,7.01,14.02]
["QUADRO DE PROTEÇÃO CC (STRINGBOX)"]
[12,null,"String-box CC, composta de:","und.",1,{"$f":"'Item 12 - 1;2;3 CV'!L39","v":515.03},{"$f":"E26*F26","v":515.03}]
[null,null,"1 conjunto de DPS por string, com proteção classe II, apropriado para uso em sistemas fotovoltaicos, 1040 Vdc, corrente de descarga máxima 40 kA, corrente de descarga nominal de 18 kA, nível de proteção inferior a 3,5 kV, 3 polos (positivo, negativo e terra), com indicador de operação verde (em serviço) e vermelho (defeito)."]
[null,null,"1 chave seccionadora de até 32A, para corrente contínua, 1.000 Vdc, 2 polos, adequado para uso em sistemas fotovoltaicos com conexão de condutores de 2,5 até 10 mm², para instalação em trilho DIN e com jumpers tipo barramento."]
[null,null,"1 caixa de proteção para stringbox em policarbonato, de sobrepor, trilho DIN, IP 65, proteção UV, e adequada para uso em sistemas fotovoltaicos. Deverão ser fixados através de trilho DIN"]
["ALIMENTAÇÃO DO MOTOR "]
[13,1014,"Condutor isolado 450/750V, seção nominal de 2,5 mm², condutor de cobre têmpera mole, encordoamento classe 4 ou 5, com isolação em composto termoplástico de PVC/A (cor azul, verde, preto, branco ou vermelho, conforme aplicação)","metro",80,2.5499999999999998,{"$f":"E31*F31","v":204}]
[14,40400,"Duto PEAD corrugado 3/4\", fabricado em Polietileno de Alta Densidade (PEAD), sendo flexível, anelar e impermeável, na cor preta, apropriado para passagens da condutores elétricos","metro",20,1.61,{"$f":"E32*F32","v":32.200000000000003}]
[15,41627,"Caixa de passagem/inspeção em concreto, sem fundo, com tampa, 30X30 centímetros","Und.",2,236.3,{"$f":"E33*F33","v":472.6}]
["MONTAGEM E INSTALAÇÃO"]
[16,null,"Comissionamento das instalações ","Unid.",1,{"$f":"G110","v":331.38},{"$f":"E35*F35","v":331.38}]
[17,null,"Execução das instalações ","Unid.",1,{"$f":"G117","v":3126.64},{"$f":"E36*F36","v":3126.64}]
["Total Geral - KIT 1 CV",{"$nulls":5},{"$f":"SUM(G9:G36)","v":12394.01}]
["SISTEMA DE GERAÇÃO SOLAR FOTOVOLTAICA, OFF-GRID, SEM BATERIAS, PARA SISTEMA DE IRRIGAÇÃO COM MOTOBOMBA DE ATÉ 2CV"]
["MATERIAL ELÉTRICO - A"]
["ARRANJO FOTOVOLTAICO"]
[1,null,"Módulo Fotovoltaico, com potência de 570 Wp STC, (ou de potência suficiente para o correto funcionamento do sistema), estrutura em liga de alumínio anodizado, caixa de junção IP 68, três diodos, eficiência superior a 19%, degradação no primeiro ano inferior a 3%, degradação do ano 2 ao 30 inferior a 0,5% ao ano, 10 anos de garantia, 20 anos de garantia de potência linear.","unid.",6,{"$f":"'Item 1-1;2 CV'!L39","v":790.28},{"$f":"E41*F41","v":4741.68}]
[2,null,"Par (macho e fêmea) de conectores terminais tipo MC4, de 2,5 a 6 mm², 1.500 Vcc, 30 A, IP67, próprio para instalações fotovoltaicas.","unid.",1,{"$f":"'Item 2 - 1;2;3-CV'!L38","v":44.51},{"$f":"E42*F42","v":44.51}]
[3,null,"Estrutura de solo para módulos fotovoltaicos, 6 módulos instalados, pilastra travessa e mão francesa em aço galvanizado a fogo, longarina e acessórios em alumínio. Inclui todos os acessórios para correta fixação dos painéis.","unid.",1,{"$f":"'Item 3 - 2 CV'!L38","v":1426.53},{"$f":"E43*F43","v":1426.53}]
[4,null,"Condutor de 4 mm², fios de cobre, têmpera mole, encordoamento classe 5 (extraflexível), isolação em composto termofixo livre de halogênio, retardante a chamas, cobertura em composto termofixo livre de halogênio, resistente a UV. Na cor vermelha.","metro",15,{"$f":"'Item 4 - 1;2;3 CV'!L39","v":5.19},{"$f":"E44*F44","v":77.849999999999994}]
[5,null,"Condutor de 4 mm², fios de cobre, têmpera mole, encordoamento classe 5 (extraflexível), isolação em composto termofixo livre de halogênio, retardante a chamas, cobertura em composto termofixo livre de halogênio, resistente a UV. Na cor preta","metro",15,{"$f":"'Item 5 - 1;2;3 CV'!L39","v":4.96},{"$f":"E45*F45","v":74.400000000000006}]
[6,null,"Driver solar fotovoltaico, apropriado para motores de 2 CV, operação off-grid:","und.",1,{"$f":"'Item 6 - 2 CV'!L37","v":1506.92},{"$f":"E46*F46","v":1506.92}]
[null,null,"Eficiência mínima 95%, grau de proteção IP20, resfriamento natural ou com cooler integrado, garantia mínima de 5 anos, tensão de saída compatível com a motobomba, frequência 60 Hz, com sistema de partida suave da bomba e controle de velocidade, atender em plenitude os requisitos do sistema a ser instalado."]
[null,null,"Entrada de corrente contínua (CC) compatível com a quantidade de painéis fotovoltaicos propostos, com no mínimo 1 MPPT (maximum power point tracking) com faixa de tensão de operação compatível com os módulos fotovoltaicos, baixa tensão mínima para funcionamento."]
[null,null,"Saída de corrente alternada (CA) compatível com o sistema projetado, até 2 CV, temperatura de operação até 60 ºC, trifásico ou monofásico."]
[null,null,"Possuir, no mínimo as seguintes proteções: Sub e sobre tensão CC, sobreaquecimento, surtos de tensão (CC), proteção de bomba travada, proteção de curto-circuito, proteção contra funcionamento a seco e sobrecarga."]
["ATERRAMENTO"]
[7,867,"Cabo de cobre nu 50mm², composto por 7 fios x Ø 3,00 mm","metro",20,60.11,{"$f":"E52*F52","v":1202.2}]
[8,34643,"Caixa de inspeção para aterramento, em PVC, com tampa","und.",4,48.6,{"$f":"E53*F53","v":194.4}]
[9,null,"Haste para aterramento, cobreada alta camada, Ø 3/4″ x 2,40 m (Ø 17,3 mm – Efetivo)","und.",2,{"$f":"'Item 9 - 1;2;3 CV'!L39","v":141.84},283.68]
[10,416,"Conector Cabo-Haste em Latão Estanhado para 1 Cabo com Acessórios","und.",2,9.0500000000000007,18.100000000000001]
[11,1578,"Terminal olhal para condutor de 50 mm²","und.",2,7.01,14.02]
["QUADRO DE PROTEÇÃO CC (STRINGBOX)"]
[12,null,"String-box CC, composta de:","und.",1,{"$f":"'Item 12 - 1;2;3 CV'!L39","v":515.03},{"$f":"E58*F58","v":515.03}]
[null,null,"1 conjunto de DPS por string, com proteção classe II, apropriado para uso em sistemas fotovoltaicos, 1040 Vdc, corrente de descarga máxima 40 kA, corrente de descarga nominal de 18 kA, nível de proteção inferior a 3,5 kV, 3 polos (positivo, negativo e terra), com indicador de operação verde (em serviço) e vermelho (defeito)."]
[null,null,"1 chave seccionadora de até 32A, para corrente contínua, 1.000 Vdc, 2 polos, adequado para uso em sistemas fotovoltaicos com conexão de condutores de 2,5 até 10 mm², para instalação em trilho DIN e com jumpers tipo barramento."]
[null,null,"1 caixa de proteção para stringbox em policarbonato, de sobrepor, trilho DIN, IP 65, proteção UV, e adequada para uso em sistemas fotovoltaicos. Deverão ser fixados através de trilho DIN"]
["ALIMENTAÇÃO DO MOTOR "]
[13,1014,"Condutor isolado 450/750V, seção nominal de 2,5 mm², condutor de cobre têmpera mole, encordoamento classe 4 ou 5, com isolação em composto termoplástico de PVC/A (cor azul, verde, preto, branco ou vermelho, conforme aplicação)","metro",80,2.5499999999999998,{"$f":"E63*F63","v":204}]
[14,40400,"Duto PEAD corrugado 3/4\", fabricado em Polietileno de Alta Densidade (PEAD), sendo flexível, anelar e impermeável, na cor preta, apropriado para passagens da condutores elétricos","metro",20,1.61,{"$f":"E64*F64","v":32.200000000000003}]
[15,41627,"Caixa de passagem/inspeção em concreto, sem fundo, com tampa, 30X30 centímetros","Und.",2,236.3,{"$f":"E65*F65","v":472.6}]
["MONTAGEM E INSTALAÇÃO"]
[16,null,"Comissionamento das instalações ","Unid.",1,{"$f":"G110","v":331.38},{"$f":"E67*F67","v":331.38}]
[17,null,"Execução das instalações ","Unid.",1,{"$f":"G117","v":3126.64},{"$f":"E68*F68","v":3126.64}]
["Total Geral - KIT 2 CV",{"$nulls":5},{"$f":"SUM(G41:G68)","v":14266.14}]
[]
[]
["SISTEMA DE GERAÇÃO SOLAR FOTOVOLTAICA, OFF-GRID, SEM BATERIAS, PARA SISTEMA DE IRRIGAÇÃO COM MOTOBOMBA DE ATÉ 3CV"]
["MATERIAL ELÉTRICO - A"]
["ARRANJO FOTOVOLTAICO"]
[1,null,"Módulo Fotovoltaico, com potência de 700 Wp STC, (ou de potência suficiente para o correto funcionamento do sistema), estrutura em liga de alumínio anodizado, caixa de junção IP 68, três diodos, eficiência superior a 19%, degradação no primeiro ano inferior a 3%, degradação do ano 2 ao 30 inferior a 0,5% ao ano, 10 anos de garantia, 20 anos de garantia de potência linear.","unid.",7,{"$f":"'Item 1 - 3 CV'!L39","v":840.92},{"$f":"E75*F75","v":5886.44}]
[2,null,"Par (macho e fêmea) de conectores terminais tipo MC4, de 2,5 a 6 mm², 1.500 Vcc, 30 A, IP67, próprio para instalações fotovoltaicas.","unid.",2,{"$f":"'Item 2 - 1;2;3-CV'!L38","v":44.51},{"$f":"E76*F76","v":89.02}]
[3,null,"Estrutura de solo para módulos fotovoltaicos, 8 módulos instalados, pilastra travessa e mão francesa em aço galvanizado a fogo, longarina e acessórios em alumínio. Inclui todos os acessórios para correta fixação dos painéis.","unid.",1,{"$f":"'Item 3 - 3 CV'!L38","v":1508.78},1508.78]
[4,null,"Condutor de 4 mm², fios de cobre, têmpera mole, encordoamento classe 5 (extraflexível), isolação em composto termofixo livre de halogênio, retardante a chamas, cobertura em composto termofixo livre de halogênio, resistente a UV. Na cor vermelha.","metro",20,{"$f":"'Item 4 - 1;2;3 CV'!L39","v":5.19},103.8]
[5,null,"Condutor de 4 mm², fios de cobre, têmpera mole, encordoamento classe 5 (extraflexível), isolação em composto termofixo livre de halogênio, retardante a chamas, cobertura em composto termofixo livre de halogênio, resistente a UV. Na cor preta","metro",20,{"$f":"'Item 5 - 1;2;3 CV'!L39","v":4.96},99.2]
[6,null,"Driver solar fotovoltaico, apropriado para motores de 3 CV, operação off-grid:","und.",1,{"$f":"'Item 6 - 3 CV'!L36","v":2076},2076]
[null,null,"Eficiência mínima 95%, grau de proteção IP20, resfriamento natural ou com cooler integrado, garantia mínima de 5 anos, tensão de saída compatível com a motobomba, frequência 60 Hz, com sistema de partida suave da bomba e controle de velocidade, atender em plenitude os requisitos do sistema a ser instalado."]
[null,null,"Entrada de corrente contínua (CC) compatível com a quantidade de painéis fotovoltaicos propostos, com no mínimo 1 MPPT (maximum power point tracking) com faixa de tensão de operação compatível com os módulos fotovoltaicos, baixa tensão mínima para funcionamento."]
[null,null,"Saída de corrente alternada (CA) compatível com o sistema projetado, até 3 CV, temperatura de operação até 60 ºC, trifásico ou monofásico."]
[null,null,"Possuir, no mínimo as seguintes proteções: Sub e sobre tensão CC, sobreaquecimento, surtos de tensão (CC), proteção de bomba travada, proteção de curto-circuito, proteção contra funcionamento a seco e sobrecarga."]
["ATERRAMENTO"]
[7,867,"Cabo de cobre nu 50mm², composto por 7 fios x Ø 3,00 mm","metro",20,60.11,{"$f":"E86*F86","v":1202.2}]
[8,34643,"Caixa de inspeção para aterramento, em PVC, com tampa","und.",4,48.6,{"$f":"E87*F87","v":194.4}]
[9,null,"Haste para aterramento, cobreada alta camada, Ø 3/4″ x 2,40 m (Ø 17,3 mm – Efetivo)","und.",2,{"$f":"'Item 9 - 1;2;3 CV'!L39","v":141.84},{"$f":"E88*F88","v":283.68}]
[10,416,"Conector Cabo-Haste em Latão Estanhado para 1 Cabo com Acessórios","und.",2,9.0500000000000007,{"$f":"E89*F89","v":18.100000000000001}]
[11,1578,"Terminal olhal para condutor de 50 mm²","und.",2,7.01,{"$f":"E90*F90","v":14.02}]
["QUADRO DE PROTEÇÃO CC (STRINGBOX)"]
[12,null,"String-box CC, composta de:","und.",1,{"$f":"'Item 12 - 1;2;3 CV'!L39","v":515.03},{"$f":"E92*F92","v":515.03}]
[null,null,"1 conjunto de DPS por string, com proteção classe II, apropriado para uso em sistemas fotovoltaicos, 1040 Vdc, corrente de descarga máxima 40 kA, corrente de descarga nominal de 18 kA, nível de proteção inferior a 3,5 kV, 3 polos (positivo, negativo e terra), com indicador de operação verde (em serviço) e vermelho (defeito)."]
[null,null,"1 chave seccionadora de até 32A, para corrente contínua, 1.000 Vdc, 2 polos, adequado para uso em sistemas fotovoltaicos com conexão de condutores de 2,5 até 10 mm², para instalação em trilho DIN e com jumpers tipo barramento."]
[null,null,"1 caixa de proteção para stringbox em policarbonato, de sobrepor, trilho DIN, IP 65, proteção UV, e adequada para uso em sistemas fotovoltaicos. Deverão ser fixados através de trilho DIN"]
["ALIMENTAÇÃO DO MOTOR "]
[13,1014,"Condutor isolado 450/750V, seção nominal de 4 mm², condutor de cobre têmpera mole, encordoamento classe 4 ou 5, com isolação em composto termoplástico de PVC/A (cor azul, verde, preto, branco ou vermelho, conforme aplicação)","metro",80,2.5499999999999998,{"$f":"E97*F97","v":204}]
[14,40400,"Duto PEAD corrugado 1\", fabricado em Polietileno de Alta Densidade (PEAD), sendo flexível, anelar e impermeável, na cor preta, apropriado para passagens da condutores elétricos","metro",20,1.61,{"$f":"E98*F98","v":32.200000000000003}]
[15,41627,"Caixa de passagem/inspeção em concreto, sem fundo, com tampa, 30X30 centímetros","Und.",2,236.3,472.6]
["MONTAGEM E INSTALAÇÃO"]
[16,null,"Comissionamento das instalações ","Unid.",1,{"$f":"G110","v":331.38},{"$f":"E101*F101","v":331.38}]
[17,null,"Execução das instalações ","Unid.",1,{"$f":"G117","v":3126.64},{"$f":"E102*F102","v":3126.64}]
["Total Geral - KIT 3CV",{"$nulls":5},{"$f":"SUM(G75:G102)","v":16157.49}]
[]
[]
[]
["item 16 ",null,null,"Unidade","valor unitário","Quant","Valor total"]
[null,90778,"Engenheiro eletricista - Pleno ","Hora",132.08000000000001,2,{"$f":"E108*F108","v":264.16000000000003}]
[null,88266,"Técnico eletrotécnico","Hora",33.61,2,{"$f":"E109*F109","v":67.22}]
["Total Geral - item 16","Total Geral - item 16",{"$nulls":4},{"$f":"SUM(G108:G109)","v":331.38}]
[]
["item 17 ",null,null,"Unidade","valor unitário","Quant","Valor total"]
[null,90778,"Engenheiro eletricista - Pleno ","Hora",132.08000000000001,8,{"$f":"E113*F113","v":1056.6400000000001}]
[null,88266,"Técnico eletrotécnico","Hora",33.61,24,{"$f":"E114*F114","v":806.64}]
[null,90776,"Encarregado ","Hora",29.87,24,716.88]
[null,88247,"Ajudante","Hora",22.77,24,546.48]
["Total Geral - item 17","Total Geral - item 17",{"$nulls":4},{"$f":"SUM(G113:G116)","v":3126.64}]

{"sheet":"PI","index":7,"n_rows":117,"n_cols":7,"rows_kept":117,"cut":false,"hidden":false,"merged":[[106,0,109,0],[109,1,109,5],[111,0,116,0],[116,1,116,5],[25,1,28,1],[95,0,95,6],[99,0,99,6],[102,0,102,5],[72,0,72,6],[73,0,73,6],[79,0,83,0],[79,3,83,3],[79,4,83,4],[79,5,83,5],[79,6,83,6],[84,0,84,6],[91,0,94,0],[91,3,94,3],[91,4,94,4],[91,5,94,5],[90,0,90,6],[91,6,94,6],[61,0,61,6],[65,0,65,6],[68,0,68,5],[71,0,71,6],[56,0,56,6],[57,0,60,0],[57,3,60,3],[57,4,60,4],[57,5,60,5],[57,6,60,6],[50,0,50,6],[29,0,29,6],[33,0,33,6],[36,0,36,5],[37,0,37,6],[38,0,38,6],[39,0,39,6],[45,0,49,0],[45,3,49,3],[45,4,49,4],[45,5,49,5],[45,6,49,6],[18,0,18,6],[24,0,24,6],[25,0,28,0],[25,3,28,3],[25,4,28,4],[25,5,28,5],[25,6,28,6],[5,0,5,6],[6,0,6,6],[7,0,7,6],[13,0,17,0],[13,1,17,1],[13,3,17,3],[13,4,17,4],[13,5,17,5],[13,6,17,6],[0,0,0,6],[1,0,2,6],[3,0,4,0],[3,1,4,1],[3,2,4,2],[3,3,4,3],[3,4,4,4],[3,5,4,5],[3,6,4,6]]}
[]
["SISTEMA DE GERAÇÃO SOLAR FOTOVOLTAICA, OFF-GRID, SEM BATERIAS, PARA SISTEMA DE IRRIGAÇÃO COM MOTOBOMBA PARA O ESTADO DO PIAUÍ"]
[]
["ITEM","CÓD","DESCRIÇÃO","UNID.","QUANT.","Valor Unitario (R$)","Valor Total (R$)"]
[]
["SISTEMA DE GERAÇÃO SOLAR FOTOVOLTAICA, OFF-GRID, SEM BATERIAS, PARA SISTEMA DE IRRIGAÇÃO COM MOTOBOMBA DE ATÉ 1CV"]
["MATERIAL ELÉTRICO - A"]
["ARRANJO FOTOVOLTAICO"]
[1,null,"Módulo Fotovoltaico, com potência de 570 Wp STC (ou de potência suficiente para o correto funcionamento do sistema), estrutura em liga de alumínio anodizado, caixa de junção IP 68, três diodos, eficiência superior a 19%, degradação no primeiro ano inferior a 3%, degradação do ano 2 ao 30 inferior a 0,5% ao ano, 10 anos de garantia, 20 anos de garantia de potência linear.","unid.",4,{"$f":"'Item 1-1;2 CV'!L39","v":790.28},{"$f":"E9*F9","v":3161.12}]
[2,null,"Par (macho e fêmea) de conectores terminais tipo MC4, de 2,5 a 6 mm², 1.500 Vcc, 30 A, IP67, próprio para instalações fotovoltaicas.","unid.",1,{"$f":"'Item 2 - 1;2;3-CV'!L38","v":44.51},44.51]
[3,null,"Estrutura de solo para módulos fotovoltaicos, 5 módulos instalados, pilastra travessa e mão francesa em aço galvanizado a fogo, longarina e acessórios em alumínio. Inclui todos os acessórios para correta fixação dos painéis.","unid.",1,{"$f":"'Item 3 - 1 CV'!L39","v":1102.96},1102.96]
[4,null,"Condutor de 4 mm², fios de cobre, têmpera mole, encordoamento classe 5 (extraflexível), isolação em composto termofixo livre de halogênio, retardante a chamas, cobertura em composto termofixo livre de halogênio, resistente a UV. Na cor vermelha.","metro",10,{"$f":"'Item 4 - 1;2;3 CV'!L39","v":5.19},51.9]
[5,null,"Condutor de 4 mm², fios de cobre, têmpera mole, encordoamento classe 5 (extraflexível), isolação em composto termofixo livre de halogênio, retardante a chamas, cobertura em composto termofixo livre de halogênio, resistente a UV. Na cor preta","metro",10,{"$f":"'Item 5 - 1;2;3 CV'!L39","v":4.96},49.6]
[6,null,"Driver solar fotovoltaico, apropriado para motores de 1 CV, operação off-grid:","und.",1,{"$f":"'Item 6 - 1 CV'!L39","v":1589.67},1589.67]
[null,null,"Eficiência mínima 95%, grau de proteção IP20, resfriamento natural ou com cooler integrado, garantia mínima de 5 anos, tensão de saída compatível com a motobomba, frequência 60 Hz, com sistema de partida suave da bomba e controle de velocidade, atender em plenitude os requisitos do sistema a ser instalado."]
[null,null,"Entrada de corrente contínua (CC) compatível com a quantidade de painéis fotovoltaicos propostos, com no mínimo 1 MPPT (maximum power point tracking) com faixa de tensão de operação compatível com os módulos fotovoltaicos, baixa tensão mínima para funcionamento."]
[null,null,"Saída de corrente alternada (CA) compatível com o sistema projetado, até 1 CV, temperatura de operação até 60 ºc, trifásico ou monofásico."]
[null,null,"Possuir, no mínimo as seguintes proteções: Sub e sobre tensão CC, sobreaquecimento, surtos de tensão (CC), proteção de bomba travada, proteção de curto-circuito, proteção contra funcionamento a seco e sobrecarga."]
["ATERRAMENTO"]
[7,867,"Cabo de cobre nu 50mm², composto por 7 fios x Ø 3,00 mm","metro",20,59.54,{"$f":"E20*F52","v":1190.8}]
[8,34643,"Caixa de inspeção para aterramento, em PVC, com tampa","und.",4,41.92,{"$f":"E21*F53","v":167.68}]
[9,null,"Haste para aterramento, cobreada alta camada, Ø 3/4″ x 2,40 m (Ø 17,3 mm – Efetivo)","und.",2,{"$f":"'Item 9 - 1;2;3 CV'!L39","v":141.84},{"$f":"E22*F22","v":283.68}]
[10,416,"Conector Cabo-Haste em Latão Estanhado para 1 Cabo com Acessórios","und.",2,11.24,22.48]
[11,1578,"Terminal olhal para condutor de 50 mm²","und.",2,6.89,13.78]
["QUADRO DE PROTEÇÃO CC (STRINGBOX)"]
[12,null,"String-box CC, composta de:","und.",1,{"$f":"'Item 12 - 1;2;3 CV'!L39","v":515.03},{"$f":"E26*F26","v":515.03}]
[null,null,"1 conjunto de DPS por string, com proteção classe II, apropriado para uso em sistemas fotovoltaicos, 1040 Vdc, corrente de descarga máxima 40 kA, corrente de descarga nominal de 18 kA, nível de proteção inferior a 3,5 kV, 3 polos (positivo, negativo e terra), com indicador de operação verde (em serviço) e vermelho (defeito)."]
[null,null,"1 chave seccionadora de até 32A, para corrente contínua, 1.000 Vdc, 2 polos, adequado para uso em sistemas fotovoltaicos com conexão de condutores de 2,5 até 10 mm², para instalação em trilho DIN e com jumpers tipo barramento."]
[null,null,"1 caixa de proteção para stringbox em policarbonato, de sobrepor, trilho DIN, IP 65, proteção UV, e adequada para uso em sistemas fotovoltaicos. Deverão ser fixados através de trilho DIN"]
["ALIMENTAÇÃO DO MOTOR "]
[13,1014,"Condutor isolado 450/750V, seção nominal de 2,5 mm², condutor de cobre têmpera mole, encordoamento classe 4 ou 5, com isolação em composto termoplástico de PVC/A (cor azul, verde, preto, branco ou vermelho, conforme aplicação)","metro",80,2.5299999999999998,{"$f":"E31*F31","v":202.4}]
[14,40400,"Duto PEAD corrugado 3/4\", fabricado em Polietileno de Alta Densidade (PEAD), sendo flexível, anelar e impermeável, na cor preta, apropriado para passagens da condutores elétricos","metro",20,2.98,{"$f":"E32*F32","v":59.6}]
[15,41627,"Caixa de passagem/inspeção em concreto, sem fundo, com tampa, 30X30 centímetros","Und.",2,171,{"$f":"E33*F33","v":342}]
["MONTAGEM E INSTALAÇÃO"]
[16,null,"Comissionamento das instalações ","Unid.",1,{"$f":"G110","v":330.6},{"$f":"E35*F35","v":330.6}]
[17,null,"Execução das instalações ","Unid.",1,{"$f":"G117","v":3292.16},{"$f":"E36*F36","v":3292.16}]
["Total Geral - KIT 1 CV",{"$nulls":5},{"$f":"SUM(G9:G36)","v":12419.97}]
["SISTEMA DE GERAÇÃO SOLAR FOTOVOLTAICA, OFF-GRID, SEM BATERIAS, PARA SISTEMA DE IRRIGAÇÃO COM MOTOBOMBA DE ATÉ 2CV"]
["MATERIAL ELÉTRICO - A"]
["ARRANJO FOTOVOLTAICO"]
[1,null,"Módulo Fotovoltaico, com potência de 570 Wp STC, (ou de potência suficiente para o correto funcionamento do sistema), estrutura em liga de alumínio anodizado, caixa de junção IP 68, três diodos, eficiência superior a 19%, degradação no primeiro ano inferior a 3%, degradação do ano 2 ao 30 inferior a 0,5% ao ano, 10 anos de garantia, 20 anos de garantia de potência linear.","unid.",6,{"$f":"'Item 1-1;2 CV'!L39","v":790.28},{"$f":"E41*F41","v":4741.68}]
[2,null,"Par (macho e fêmea) de conectores terminais tipo MC4, de 2,5 a 6 mm², 1.500 Vcc, 30 A, IP67, próprio para instalações fotovoltaicas.","unid.",1,{"$f":"'Item 2 - 1;2;3-CV'!L38","v":44.51},{"$f":"E42*F42","v":44.51}]
[3,null,"Estrutura de solo para módulos fotovoltaicos, 6 módulos instalados, pilastra travessa e mão francesa em aço galvanizado a fogo, longarina e acessórios em alumínio. Inclui todos os acessórios para correta fixação dos painéis.","unid.",1,{"$f":"'Item 3 - 2 CV'!L38","v":1426.53},{"$f":"E43*F43","v":1426.53}]
[4,null,"Condutor de 4 mm², fios de cobre, têmpera mole, encordoamento classe 5 (extraflexível), isolação em composto termofixo livre de halogênio, retardante a chamas, cobertura em composto termofixo livre de halogênio, resistente a UV. Na cor vermelha.","metro",15,{"$f":"'Item 4 - 1;2;3 CV'!L39","v":5.19},{"$f":"E44*F44","v":77.849999999999994}]
[5,null,"Condutor de 4 mm², fios de cobre, têmpera mole, encordoamento classe 5 (extraflexível), isolação em composto termofixo livre de halogênio, retardante a chamas, cobertura em composto termofixo livre de halogênio, resistente a UV. Na cor preta","metro",15,{"$f":"'Item 5 - 1;2;3 CV'!L39","v":4.96},{"$f":"E45*F45","v":74.400000000000006}]
[6,null,"Driver solar fotovoltaico, apropriado para motores de 2 CV, operação off-grid:","und.",1,{"$f":"'Item 6 - 2 CV'!L37","v":1506.92},{"$f":"E46*F46","v":1506.92}]
[null,null,"Eficiência mínima 95%, grau de proteção IP20, resfriamento natural ou com cooler integrado, garantia mínima de 5 anos, tensão de saída compatível com a motobomba, frequência 60 Hz, com sistema de partida suave da bomba e controle de velocidade, atender em plenitude os requisitos do sistema a ser instalado."]
[null,null,"Entrada de corrente contínua (CC) compatível com a quantidade de painéis fotovoltaicos propostos, com no mínimo 1 MPPT (maximum power point tracking) com faixa de tensão de operação compatível com os módulos fotovoltaicos, baixa tensão mínima para funcionamento."]
[null,null,"Saída de corrente alternada (CA) compatível com o sistema projetado, até 2 CV, temperatura de operação até 60 ºC, trifásico ou monofásico."]
[null,null,"Possuir, no mínimo as seguintes proteções: Sub e sobre tensão CC, sobreaquecimento, surtos de tensão (CC), proteção de bomba travada, proteção de curto-circuito, proteção contra funcionamento a seco e sobrecarga."]
["ATERRAMENTO"]
[7,867,"Cabo de cobre nu 50mm², composto por 7 fios x Ø 3,00 mm","metro",20,59.54,{"$f":"E52*F52","v":1190.8}]
[8,34643,"Caixa de inspeção para aterramento, em PVC, com tampa","und.",4,41.92,{"$f":"E53*F53","v":167.68}]
[9,null,"Haste para aterramento, cobreada alta camada, Ø 3/4″ x 2,40 m (Ø 17,3 mm – Efetivo)","und.",2,{"$f":"'Item 9 - 1;2;3 CV'!L39","v":141.84},{"$f":"E54*F54","v":283.68}]
[10,416,"Conector Cabo-Haste em Latão Estanhado para 1 Cabo com Acessórios","und.",2,11.24,22.48]
[11,1578,"Terminal olhal para condutor de 50 mm²","und.",2,6.89,13.78]
["QUADRO DE PROTEÇÃO CC (STRINGBOX)"]
[12,null,"String-box CC, composta de:","und.",1,{"$f":"'Item 12 - 1;2;3 CV'!L39","v":515.03},{"$f":"E58*F58","v":515.03}]
[null,null,"1 conjunto de DPS por string, com proteção classe II, apropriado para uso em sistemas fotovoltaicos, 1040 Vdc, corrente de descarga máxima 40 kA, corrente de descarga nominal de 18 kA, nível de proteção inferior a 3,5 kV, 3 polos (positivo, negativo e terra), com indicador de operação verde (em serviço) e vermelho (defeito)."]
[null,null,"1 chave seccionadora de até 32A, para corrente contínua, 1.000 Vdc, 2 polos, adequado para uso em sistemas fotovoltaicos com conexão de condutores de 2,5 até 10 mm², para instalação em trilho DIN e com jumpers tipo barramento."]
[null,null,"1 caixa de proteção para stringbox em policarbonato, de sobrepor, trilho DIN, IP 65, proteção UV, e adequada para uso em sistemas fotovoltaicos. Deverão ser fixados através de trilho DIN"]
["ALIMENTAÇÃO DO MOTOR "]
[13,1014,"Condutor isolado 450/750V, seção nominal de 2,5 mm², condutor de cobre têmpera mole, encordoamento classe 4 ou 5, com isolação em composto termoplástico de PVC/A (cor azul, verde, preto, branco ou vermelho, conforme aplicação)","metro",80,2.5299999999999998,{"$f":"E63*F63","v":202.4}]
[14,40400,"Duto PEAD corrugado 3/4\", fabricado em Polietileno de Alta Densidade (PEAD), sendo flexível, anelar e impermeável, na cor preta, apropriado para passagens da condutores elétricos","metro",20,2.98,{"$f":"E64*F64","v":59.6}]
[15,41627,"Caixa de passagem/inspeção em concreto, sem fundo, com tampa, 30X30 centímetros","Und.",2,171,{"$f":"E65*F65","v":342}]
["MONTAGEM E INSTALAÇÃO"]
[16,null,"Comissionamento das instalações ","Unid.",1,{"$f":"G110","v":330.6},{"$f":"E67*F67","v":330.6}]
[17,null,"Execução das instalações ","Unid.",1,{"$f":"G117","v":3292.16},{"$f":"E68*F68","v":3292.16}]
["Total Geral - KIT 2 CV",{"$nulls":5},{"$f":"SUM(G41:G68)","v":14292.1}]
[]
[]
["SISTEMA DE GERAÇÃO SOLAR FOTOVOLTAICA, OFF-GRID, SEM BATERIAS, PARA SISTEMA DE IRRIGAÇÃO COM MOTOBOMBA DE ATÉ 3CV"]
["MATERIAL ELÉTRICO - A"]
["ARRANJO FOTOVOLTAICO"]
[1,null,"Módulo Fotovoltaico, com potência de 700 Wp STC, (ou de potência suficiente para o correto funcionamento do sistema), estrutura em liga de alumínio anodizado, caixa de junção IP 68, três diodos, eficiência superior a 19%, degradação no primeiro ano inferior a 3%, degradação do ano 2 ao 30 inferior a 0,5% ao ano, 10 anos de garantia, 20 anos de garantia de potência linear.","unid.",7,{"$f":"'Item 1 - 3 CV'!L39","v":840.92},{"$f":"E75*F75","v":5886.44}]
[2,null,"Par (macho e fêmea) de conectores terminais tipo MC4, de 2,5 a 6 mm², 1.500 Vcc, 30 A, IP67, próprio para instalações fotovoltaicas.","unid.",2,{"$f":"'Item 2 - 1;2;3-CV'!L38","v":44.51},{"$f":"E76*F76","v":89.02}]
[3,null,"Estrutura de solo para módulos fotovoltaicos, 8 módulos instalados, pilastra travessa e mão francesa em aço galvanizado a fogo, longarina e acessórios em alumínio. Inclui todos os acessórios para correta fixação dos painéis.","unid.",1,{"$f":"'Item 3 - 3 CV'!L38","v":1508.78},1508.78]
[4,null,"Condutor de 4 mm², fios de cobre, têmpera mole, encordoamento classe 5 (extraflexível), isolação em composto termofixo livre de halogênio, retardante a chamas, cobertura em composto termofixo livre de halogênio, resistente a UV. Na cor vermelha.","metro",20,{"$f":"'Item 4 - 1;2;3 CV'!L39","v":5.19},103.8]
[5,null,"Condutor de 4 mm², fios de cobre, têmpera mole, encordoamento classe 5 (extraflexível), isolação em composto termofixo livre de halogênio, retardante a chamas, cobertura em composto termofixo livre de halogênio, resistente a UV. Na cor preta","metro",20,{"$f":"'Item 5 - 1;2;3 CV'!L39","v":4.96},99.2]
[6,null,"Driver solar fotovoltaico, apropriado para motores de 3 CV, operação off-grid:","und.",1,{"$f":"'Item 6 - 3 CV'!L36","v":2076},2076]
[null,null,"Eficiência mínima 95%, grau de proteção IP20, resfriamento natural ou com cooler integrado, garantia mínima de 5 anos, tensão de saída compatível com a motobomba, frequência 60 Hz, com sistema de partida suave da bomba e controle de velocidade, atender em plenitude os requisitos do sistema a ser instalado."]
[null,null,"Entrada de corrente contínua (CC) compatível com a quantidade de painéis fotovoltaicos propostos, com no mínimo 1 MPPT (maximum power point tracking) com faixa de tensão de operação compatível com os módulos fotovoltaicos, baixa tensão mínima para funcionamento."]
[null,null,"Saída de corrente alternada (CA) compatível com o sistema projetado, até 3 CV, temperatura de operação até 60 ºC, trifásico ou monofásico."]
[null,null,"Possuir, no mínimo as seguintes proteções: Sub e sobre tensão CC, sobreaquecimento, surtos de tensão (CC), proteção de bomba travada, proteção de curto-circuito, proteção contra funcionamento a seco e sobrecarga."]
["ATERRAMENTO"]
[7,867,"Cabo de cobre nu 50mm², composto por 7 fios x Ø 3,00 mm","metro",20,59.54,{"$f":"E86*F86","v":1190.8}]
[8,34643,"Caixa de inspeção para aterramento, em PVC, com tampa","und.",4,41.92,{"$f":"E87*F87","v":167.68}]
[9,null,"Haste para aterramento, cobreada alta camada, Ø 3/4″ x 2,40 m (Ø 17,3 mm – Efetivo)","und.",2,{"$f":"'Item 9 - 1;2;3 CV'!L39","v":141.84},{"$f":"E88*F88","v":283.68}]
[10,416,"Conector Cabo-Haste em Latão Estanhado para 1 Cabo com Acessórios","und.",2,11.24,{"$f":"E89*F89","v":22.48}]
[11,1578,"Terminal olhal para condutor de 50 mm²","und.",2,6.89,{"$f":"E90*F90","v":13.78}]
["QUADRO DE PROTEÇÃO CC (STRINGBOX)"]
[12,null,"String-box CC, composta de:","und.",1,{"$f":"'Item 12 - 1;2;3 CV'!L39","v":515.03},{"$f":"E92*F92","v":515.03}]
[null,null,"1 conjunto de DPS por string, com proteção classe II, apropriado para uso em sistemas fotovoltaicos, 1040 Vdc, corrente de descarga máxima 40 kA, corrente de descarga nominal de 18 kA, nível de proteção inferior a 3,5 kV, 3 polos (positivo, negativo e terra), com indicador de operação verde (em serviço) e vermelho (defeito)."]
[null,null,"1 chave seccionadora de até 32A, para corrente contínua, 1.000 Vdc, 2 polos, adequado para uso em sistemas fotovoltaicos com conexão de condutores de 2,5 até 10 mm², para instalação em trilho DIN e com jumpers tipo barramento."]
[null,null,"1 caixa de proteção para stringbox em policarbonato, de sobrepor, trilho DIN, IP 65, proteção UV, e adequada para uso em sistemas fotovoltaicos. Deverão ser fixados através de trilho DIN"]
["ALIMENTAÇÃO DO MOTOR "]
[13,1014,"Condutor isolado 450/750V, seção nominal de 4 mm², condutor de cobre têmpera mole, encordoamento classe 4 ou 5, com isolação em composto termoplástico de PVC/A (cor azul, verde, preto, branco ou vermelho, conforme aplicação)","metro",80,2.5299999999999998,{"$f":"E97*F97","v":202.4}]
[14,40400,"Duto PEAD corrugado 1\", fabricado em Polietileno de Alta Densidade (PEAD), sendo flexível, anelar e impermeável, na cor preta, apropriado para passagens da condutores elétricos","metro",20,2.98,{"$f":"E98*F98","v":59.6}]
[15,41627,"Caixa de passagem/inspeção em concreto, sem fundo, com tampa, 30X30 centímetros","Und.",2,171,342]
["MONTAGEM E INSTALAÇÃO"]
[16,null,"Comissionamento das instalações ","Unid.",1,{"$f":"G110","v":330.6},{"$f":"E101*F101","v":330.6}]
[17,null,"Execução das instalações ","Unid.",1,{"$f":"G117","v":3292.16},{"$f":"E102*F102","v":3292.16}]
["Total Geral - KIT 3CV",{"$nulls":5},{"$f":"SUM(G75:G102)","v":16183.45}]
[]
[]
[]
["item 16 ",null,null,"Unidade","valor unitário","Quant","Valor total"]
[null,90778,"Engenheiro eletricista - Pleno ","Hora",129.49,2,{"$f":"E108*F108","v":258.98}]
[null,88266,"Técnico eletrotécnico","Hora",35.81,2,{"$f":"E109*F109","v":71.62}]
["Total Geral - item 16","Total Geral - item 16",{"$nulls":4},{"$f":"SUM(G108:G109)","v":330.6}]
[]
["item 17 ",null,null,"Unidade","valor unitário","Quant","Valor total"]
[null,90778,"Engenheiro eletricista - Pleno ","Hora",129.49,8,{"$f":"E113*F113","v":1035.92}]
[null,88266,"Técnico eletrotécnico","Hora",35.81,24,{"$f":"E114*F114","v":859.44}]
[null,90776,"Encarregado ","Hora",35.39,24,849.36]
[null,88247,"Ajudante","Hora",22.81,24,547.44000000000005]
["Total Geral - item 17","Total Geral - item 17",{"$nulls":4},{"$f":"SUM(G113:G116)","v":3292.16}]

{"sheet":"Item 1-1;2 CV","index":8,"n_rows":42,"n_cols":16,"rows_kept":42,"cut":false,"hidden":false,"merged":[[33,1,35,10],[33,11,35,11],[36,1,37,10],[36,11,37,11],[38,1,38,10],[30,1,30,8],[19,1,19,8],[20,1,20,8],[21,1,21,8],[22,1,22,8],[23,1,23,8],[24,1,24,8],[25,1,25,8],[26,1,26,8],[27,1,27,8],[28,1,28,8],[29,1,29,8],[18,1,18,11],[18,14,18,15],[0,0,0,6],[8,2,8,7],[8,14,8,15],[9,1,9,11],[9,14,9,15]]}
[]
[]
[]
[null,"Processo","59500.003319/2025-65"]
[null,"Responsável","Renato Chaves"]
[null,"Área de Origem","AI/GEE/UEE"]
[null,"Data da pesquisa","2025-09-26"]
[]
[0,"ITEM:","Módulo Fotovoltaico, com potência de 570 Wp STC (ou de potência suficiente para o correto funcionamento do sistema), estrutura em liga de alumínio anodizado, caixa de junção IP 68, três diodos, eficiência superior a 19%, degradação no primeiro ano inferior a 3%, degradação do ano 2 ao 30 inferior a 0,5% ao ano, 10 anos de garantia, 20 anos de garantia de potência linear",{"$nulls":5},"UNIDADE DE MEDIDA:","Unid","QUANTIDADE:",null,null,null,"Tabela auxiliar de metodologias para exclusão de preços"]
[null,"LICITAÇÕES ANTERIORES",{"$nulls":12},"Licitações Anteriores"]
[null,"Órgão","Edital/Ano - Nº do Lote / Item","Quantidade","Valor Unitário","Data","índice de atualização (nome)","I0","If","Variação acumulada do índice (%)","Preço unitário atualizado","Utilizar?  (Sim/Não)",null,null,"Outliers","Por critério do(a) analista"]
[{"$nulls":9},{"$f":"IF(ISBLANK(E12),\"\",IF(ISNUMBER(H12),(I12-H12)/H12,0))","v":""},{"$f":"IF(ISBLANK(E12),\"\",E12*(1+J12))","v":""},{"$f":"IF(ISNUMBER(K12),IF($L$34<>$P$11,O12,P12),\"\")","v":""},null,null,{"$f":"IF(ISNUMBER(K12),IF(OR(K12<_xlfn.QUARTILE.INC($K$12:$K$31,1)-1.5*(_xlfn.QUARTILE.INC($K$12:$K$31,3)-_xlfn.QUARTILE.INC($K$12:$K$31,1)),K12>_xlfn.QUARTILE.INC($K$12:$K$31,3)+1.5*(_xlfn.QUARTILE.INC($K$12:$K$31,3)-_xlfn.QUARTILE.INC($K$12:$K$31,1))),\"Não\",\"Sim\"),\"\")","v":""}]
[{"$nulls":9},"","","",null,null,""]
[{"$nulls":9},"","","",null,null,""]
[{"$nulls":9},"","","",null,null,""]
[{"$nulls":9},"","","",null,null,""]
[{"$nulls":9},"","","",null,null,""]
[{"$nulls":9},"","","",null,null,""]
[null,"COTAÇÕES DE MERCADO",{"$nulls":12},"Cotações"]
[null,"Empresa",{"$nulls":7},"Data","Preço Unitário","Utilizar? (Sim/Não)",null,null,"Outliers","Por critério do(a) analista"]
[null,"https://loja.stentor.com.br/shop/produtodesk.php?cmpgn=ok&id=87709",{"$nulls":8},890,{"$f":"IF(ISNUMBER(K21),IF($L$34=$O$20,O21,IF($L$34=$P$20,P21,\"\")),\"\")","v":"Sim"},null,null,{"$f":"IF(ISNUMBER(K21),IF(OR(K21<_xlfn.QUARTILE.INC($K$12:$K$31,1)-1.5*(_xlfn.QUARTILE.INC($K$12:$K$31,3)-_xlfn.QUARTILE.INC($K$12:$K$31,1)),K21>_xlfn.QUARTILE.INC($K$12:$K$31,3)+1.5*(_xlfn.QUARTILE.INC($K$12:$K$31,3)-_xlfn.QUARTILE.INC($K$12:$K$31,1))),\"Não\",\"Sim\"),\"\")","v":"Sim"}]
[null,"https://www.coliseuferramentas.com.br/painel-fotovoltaico-placa-solar-monocristalino-570-watts-tsun",{"$nulls":8},739.99,"Sim",null,null,"Sim"]
[null,"https://www.energiatotal.com.br/painel-solar/painel-solar-570w-canadian-bifacial-cs6w-570tb-ag-topbihiku6?parceiro=6982&srsltid=AfmBOoroJzF8yeoabMtG660Wx26agzcuigRsN2c4jGkPfj1XG-cnkygQWaQ",{"$nulls":8},740.86,"Sim",null,null,"Sim"]
[{"$nulls":11},"",null,null,""]
[{"$nulls":11},"",null,null,""]
[{"$nulls":11},"",null,null,""]
[{"$nulls":11},"",null,null,""]
[{"$nulls":11},"",null,null,""]
[{"$nulls":11},"",null,null,""]
[{"$nulls":11},"",null,null,""]
[{"$nulls":11},"",null,null,""]
[null,"Observações:",{"$nulls":8},"Média:",{"$f":"IF($L$34=\"\",\"Selecione metodologia para exclusão de preços\",AVERAGE(IF($L$12:$L$31=\"Sim\",$K$12:$K$31)))","v":790.28},null,"Média (Cotações)",{"$f":"IF(COUNTIF(O21:O31,\"Sim\")<3,\"N/D (são necessários pelo menos 3 preços)\",AVERAGE(IF(O21:O31=\"Sim\",$K21:$K31)))","v":790.28},{"$f":"IF(COUNTIF(P21:P31,\"Sim\")<3,\"N/D (são necessários pelo menos 3 preços)\",AVERAGE(IF(P21:P31=\"Sim\",$K21:$K31)))","v":"N/D (são necessários pelo menos 3 preços)"}]
[{"$nulls":10},"Mediana:",{"$f":"IF($L$34=\"\",\"Selecione metodologia para exclusão de preços\",MEDIAN(IF($L$12:$L$31=\"Sim\",$K$12:$K$31)))","v":740.86},null,"Mediana (Cotações)",{"$f":"IF(COUNTIF(O21:O31,\"Sim\")<3,\"N/D (são necessários pelo menos 3 preços)\",MEDIAN(IF(O21:O31=\"Sim\",$K21:$K31)))","v":740.86},{"$f":"IF(COUNTIF(P21:P31,\"Sim\")<3,\"N/D (são necessários pelo menos 3 preços)\",MEDIAN(IF(P21:P31=\"Sim\",$K21:$K31)))","v":"N/D (são necessários pelo menos 3 preços)"}]
[null,"Metodologia de exclusão de preços adotada:",{"$nulls":9},{"$f":"IF(O37=\"\",INDEX(O20:P20,MATCH(MIN(#REF!),#REF!,0)),O37)","v":"Outliers"},null,"CV (Cotações)",{"$f":"IF(COUNTIF(O21:O31,\"Sim\")<3,\"N/D (são necessários pelo menos 3 preços)\",_xlfn.STDEV.S(IF(O21:O31=\"Sim\",$K21:$K31))/AVERAGE(IF(O21:O31=\"Sim\",$K21:$K31)))","v":0.10929999999999999},{"$f":"IF(COUNTIF(P21:P31,\"Sim\")<3,\"N/D (são necessários pelo menos 3 preços)\",_xlfn.STDEV.S(IF(P21:P31=\"Sim\",$K21:$K31))/AVERAGE(IF(P21:P31=\"Sim\",$K21:$K31)))","v":"N/D (são necessários pelo menos 3 preços)"}]
[{"$nulls":13},"Média",{"$f":"IF(SUM(COUNTIF($O$12:$O$18,\"Sim\")) + SUM(COUNTIF(O21:O31,\"Sim\")) < 3,\n   \"N/D (são necessários pelo menos 3 preços)\",\n   IFERROR(AVERAGE(_xlfn._xlws.FILTER($K$12:$K$18,$O$12:$O$18=\"Sim\"), _xlfn._xlws.FILTER($K$21:$K$31,O21:O31=\"Sim\")),O32))","v":790.28},{"$f":"IF(SUM(COUNTIF($P$12:$P$18,\"Sim\")) + SUM(COUNTIF(P21:P31,\"Sim\")) < 3,\n   \"N/D (são necessários pelo menos 3 preços)\",\n   IFERROR(AVERAGE(_xlfn._xlws.FILTER($K$12:$K$18,$P$12:$P$18=\"Sim\"), _xlfn._xlws.FILTER($K$21:$K$31,P21:P31=\"Sim\")),P32))","v":"N/D (são necessários pelo menos 3 preços)"}]
[{"$nulls":13},"Mediana",{"$f":"IF(SUM(COUNTIF($O$12:$O$18,\"Sim\")) + SUM(COUNTIF(O21:O31,\"Sim\")) < 3,\n   \"N/D (são necessários pelo menos 3 preços)\",\n   IFERROR(MEDIAN(_xlfn._xlws.FILTER($K$12:$K$18,$O$12:$O$18=\"Sim\"), _xlfn._xlws.FILTER($K$21:$K$31,O21:O31=\"Sim\")),O33))","v":740.86},{"$f":"IF(SUM(COUNTIF($P12:$P$18,\"Sim\")) + SUM(COUNTIF(P21:P31,\"Sim\")) < 3,\n   \"N/D (são necessários pelo menos 3 preços)\",\n   IFERROR(MEDIAN(_xlfn._xlws.FILTER($K$12:$K$18,$P$12:$P$18=\"Sim\"), _xlfn._xlws.FILTER($K$21:$K$31,P21:P31=\"Sim\")),P33))","v":"N/D (são necessários pelo menos 3 preços)"}]
[null,"COSOLIDAÇÃO DOS PREÇOS",{"$nulls":11},"Metodologia a adotar:",{"$f":"IF(INDEX(O20:P20,P37)=0,\"\",INDEX(O20:P20,P37))","v":"Outliers"},1]
[]
[null,"PREÇO UNITÁRIO ESTIMADO ADOTADO:",{"$nulls":9},{"$f":"IF($B$41=\"Mediana:\",L33,L32)","v":790.28}]
[]
[{"$f":"O20","v":"Outliers"},"Média:"]
[{"$f":"P20","v":"Por critério do(a) analista"}]

{"sheet":"Item 2 - 1;2;3-CV","index":9,"n_rows":41,"n_cols":16,"rows_kept":41,"cut":false,"hidden":false,"merged":[[32,11,34,11],[35,1,36,10],[35,11,36,11],[37,1,37,10],[25,1,25,8],[26,1,26,8],[27,1,27,8],[28,1,28,8],[29,1,29,8],[32,1,34,10],[24,1,24,8],[0,0,0,6],[8,2,8,7],[8,14,8,15],[9,1,9,11],[9,14,9,15],[18,1,18,11],[18,14,18,15],[19,1,19,8],[20,1,20,8],[21,1,21,8],[22,1,22,8],[23,1,23,8]]}
[]
[]
[]
[null,"Processo","59500.003319/2025-65"]
[null,"Responsável","Renato Chaves"]
[null,"Área de Origem","AI/GEE/UEE"]
[null,"Data da pesquisa","2025-09-26"]
[]
[null,"ITEM:","Par (macho e fêmea) de conectores terminais tipo MC4, de 2,5 a 6 mm², 1.500 Vcc, 30 A, IP67, próprio para instalações fotovoltaicas.",{"$nulls":5},"UNIDADE DE MEDIDA:","UNID","QUANTIDADE:",null,null,null,"Tabela auxiliar de metodologias para exclusão de preços"]
[null,"LICITAÇÕES ANTERIORES",{"$nulls":12},"Licitações Anteriores"]
[null,"Órgão","Edital/Ano - Nº do Lote / Item","Quantidade","Valor Unitário","Data","índice de atualização (nome)","I0","If","Variação acumulada do índice (%)","Preço unitário atualizado","Utilizar?  (Sim/Não)",null,null,"Outliers","Por critério do(a) analista"]
[{"$nulls":9},{"$f":"IF(ISBLANK(E12),\"\",IF(ISNUMBER(H12),(I12-H12)/H12,0))","v":""},{"$f":"IF(ISBLANK(E12),\"\",E12*(1+J12))","v":""},{"$f":"IF(ISNUMBER(K12),IF($L$33<>$P$11,O12,P12),\"\")","v":""},null,null,{"$f":"IF(ISNUMBER(K12),IF(OR(K12<_xlfn.QUARTILE.INC($K$12:$K$30,1)-1.5*(_xlfn.QUARTILE.INC($K$12:K30,3)-_xlfn.QUARTILE.INC($K$12:$K$30,1)),K12>_xlfn.QUARTILE.INC($K$12:$K$30,3)+1.5*(_xlfn.QUARTILE.INC($K$12:$K$30,3)-_xlfn.QUARTILE.INC($K$12:$K$30,1))),\"Não\",\"Sim\"),\"\")","v":""}]
[{"$nulls":9},"","","",null,null,{"$f":"IF(ISNUMBER(K13),IF(OR(K13<_xlfn.QUARTILE.INC($K$12:$K$30,1)-1.5*(_xlfn.QUARTILE.INC($K$12:K30,3)-_xlfn.QUARTILE.INC($K$12:$K$30,1)),K13>_xlfn.QUARTILE.INC($K$12:$K$30,3)+1.5*(_xlfn.QUARTILE.INC($K$12:$K$30,3)-_xlfn.QUARTILE.INC($K$12:$K$30,1))),\"Não\",\"Sim\"),\"\")","v":""}]
[{"$nulls":9},"","","",null,null,{"$f":"IF(ISNUMBER(K14),IF(OR(K14<_xlfn.QUARTILE.INC($K$12:$K$30,1)-1.5*(_xlfn.QUARTILE.INC($K$12:K31,3)-_xlfn.QUARTILE.INC($K$12:$K$30,1)),K14>_xlfn.QUARTILE.INC($K$12:$K$30,3)+1.5*(_xlfn.QUARTILE.INC($K$12:$K$30,3)-_xlfn.QUARTILE.INC($K$12:$K$30,1))),\"Não\",\"Sim\"),\"\")","v":""}]
[{"$nulls":9},"","","",null,null,{"$f":"IF(ISNUMBER(K15),IF(OR(K15<_xlfn.QUARTILE.INC($K$12:$K$30,1)-1.5*(_xlfn.QUARTILE.INC($K$12:K32,3)-_xlfn.QUARTILE.INC($K$12:$K$30,1)),K15>_xlfn.QUARTILE.INC($K$12:$K$30,3)+1.5*(_xlfn.QUARTILE.INC($K$12:$K$30,3)-_xlfn.QUARTILE.INC($K$12:$K$30,1))),\"Não\",\"Sim\"),\"\")","v":""}]
[{"$nulls":9},"","","",null,null,{"$f":"IF(ISNUMBER(K16),IF(OR(K16<_xlfn.QUARTILE.INC($K$12:$K$30,1)-1.5*(_xlfn.QUARTILE.INC($K$12:K33,3)-_xlfn.QUARTILE.INC($K$12:$K$30,1)),K16>_xlfn.QUARTILE.INC($K$12:$K$30,3)+1.5*(_xlfn.QUARTILE.INC($K$12:$K$30,3)-_xlfn.QUARTILE.INC($K$12:$K$30,1))),\"Não\",\"Sim\"),\"\")","v":""}]
[{"$nulls":9},"","","",null,null,{"$f":"IF(ISNUMBER(K17),IF(OR(K17<_xlfn.QUARTILE.INC($K$12:$K$30,1)-1.5*(_xlfn.QUARTILE.INC($K$12:K36,3)-_xlfn.QUARTILE.INC($K$12:$K$30,1)),K17>_xlfn.QUARTILE.INC($K$12:$K$30,3)+1.5*(_xlfn.QUARTILE.INC($K$12:$K$30,3)-_xlfn.QUARTILE.INC($K$12:$K$30,1))),\"Não\",\"Sim\"),\"\")","v":""}]
[{"$nulls":9},"","","",null,null,{"$f":"IF(ISNUMBER(K18),IF(OR(K18<_xlfn.QUARTILE.INC($K$12:$K$30,1)-1.5*(_xlfn.QUARTILE.INC($I$12:I38,3)-_xlfn.QUARTILE.INC($K$12:$K$30,1)),K18>_xlfn.QUARTILE.INC($K$12:$K$30,3)+1.5*(_xlfn.QUARTILE.INC($K$12:$K$30,3)-_xlfn.QUARTILE.INC($K$12:$K$30,1))),\"Não\",\"Sim\"),\"\")","v":""}]
[null,"COTAÇÕES DE MERCADO",{"$nulls":12},"Cotações"]
[null,"Empresa",{"$nulls":7},"Data","Preço Unitário","Utilizar? (Sim/Não)",null,null,"Outliers","Por critério do(a) analista"]
[null,"https://www.pandaenergiasolar.com/conector-mc4-y-flexivel-com-cabo-30-ctm-30a-1500vdc-pv-lty2-1",{"$nulls":7},"2025-09-26",47,{"$f":"IF(ISNUMBER(K21),IF($L$33=$O$20,O21,IF($L$33=$P$20,P21,\"\")),\"\")","v":"Sim"},null,null,{"$f":"IF(ISNUMBER(K21),IF(OR(K21<_xlfn.QUARTILE.INC($K$12:$K$30,1)-1.5*(_xlfn.QUARTILE.INC($K$12:$K$30,3)-_xlfn.QUARTILE.INC($K$12:$K$30,1)),K21>_xlfn.QUARTILE.INC($K$12:$K$30,3)+1.5*(_xlfn.QUARTILE.INC($K$12:$K$30,3)-_xlfn.QUARTILE.INC($K$12:$K$30,1))),\"Não\",\"Sim\"),\"\")","v":"Sim"}]
[null,"https://produto.mercadolivre.com.br/MLB-2808511937-conector-mc4-snetec-y2-2x1-vias-4mm-30a-1000v-painel-solar-_JM?matt_tool=44747869&matt_internal_campaign_id=&matt_word=&matt_source=google&matt_campaign_id=22603531439&matt_ad_group_id=183641039649&matt_match_type=&matt_network=g&matt_device=c&matt_creative=758138322197&matt_keyword=&matt_ad_position=&matt_ad_type=pla&matt_merchant_id=114217365&matt_product_id=MLB2808511937&matt_product_partition_id=2424646252682&matt_target_id=aud-1966490908987:pla-2424646252682&cq_src=google_ads&cq_cmp=22603531439&cq_net=g&cq_plt=gp&cq_med=pla&gad_source=1&gad_campaignid=22603531439&gbraid=0AAAAAD93qcAGxhbkP13rvIdXgiW3gXTPp&gclid=Cj0KCQjw58PGBhCkARIsADbDilzE3TxEfdoukcwyuvXCXmpBXXtq9IPJjxVWjwkeVgKZosz9ekIGEPcaAkC9EALw_wcB",{"$nulls":7},"2025-09-26",43.64,"Sim",null,null,"Sim"]
[null,"https://www.energyshop.com.br/conector-mc4-em-paralelo-macho-femea-par?parceiro=9109&gad_source=4&gad_campaignid=17182228213&gbraid=0AAAAADhl-GFKUbXzbZB9vsRivNYcvD-g6&gclid=Cj0KCQjw58PGBhCkARIsADbDily4OSDysWxfjFqFfasTRsEQcxYoAk2yufoSQz-zYMPFaCSMxsfu3KsaAmNLEALw_wcB",{"$nulls":7},"2025-09-26",39,"Sim",null,null,"Sim"]
[null,"https://shopee.com.br/product/322913314/17335935568?gads_t_sig=VTJGc2RHVmtYMTlxTFVSVVRrdENkVHQ3ZkZSUTMrR3pBWmZZNzdrcnRBMU9XaFhwVC9iemNxSlMvY3pScnZabHJLQmpsNXVzeXN5RDlxdjNpYjRVK2h1SjBxUG1lb0dyWGsxR1VTWmQ4WUNGV2xIOUpySmFhY1E0N2pCQ2hUVmhDb09ibU5NR3RiTEFTUUlSenMvTDZ3PT0",{"$nulls":7},"2025-09-26",48.41,"Sim",null,null,"Sim"]
[{"$nulls":11},"",null,null,""]
[{"$nulls":11},"",null,null,""]
[{"$nulls":11},"",null,null,""]
[{"$nulls":11},"",null,null,""]
[{"$nulls":11},"",null,null,""]
[{"$nulls":11},"",null,null,""]
[null,"Observações:",{"$nulls":8},"Média:",{"$f":"IF($L$33=\"\",\"Selecione metodologia para exclusão de preços\",AVERAGE(IF($L$12:$L$30=\"Sim\",$K$12:$K$30)))","v":44.51},null,"Média (Cotações)",{"$f":"IF(COUNTIF(O21:O30,\"Sim\")<3,\"N/D (são necessários pelo menos 3 preços)\",AVERAGE(IF(O21:O30=\"Sim\",$K21:$K30)))","v":44.51},{"$f":"IF(COUNTIF(P21:P30,\"Sim\")<3,\"N/D (são necessários pelo menos 3 preços)\",AVERAGE(IF(P21:P30=\"Sim\",$K21:$K30)))","v":"N/D (são necessários pelo menos 3 preços)"}]
[{"$nulls":10},"Mediana:",{"$f":"IF($L$33=\"\",\"Selecione metodologia para exclusão de preços\",MEDIAN(IF($L$12:$L$30=\"Sim\",$K$12:$K$30)))","v":45.32},null,"Mediana (Cotações)",{"$f":"IF(COUNTIF(O21:O30,\"Sim\")<3,\"N/D (são necessários pelo menos 3 preços)\",MEDIAN(IF(O21:O30=\"Sim\",$K21:$K30)))","v":45.32},{"$f":"IF(COUNTIF(P21:P30,\"Sim\")<3,\"N/D (são necessários pelo menos 3 preços)\",MEDIAN(IF(P21:P30=\"Sim\",$K21:$K30)))","v":"N/D (são necessários pelo menos 3 preços)"}]
[null,"Metodologia de exclusão de preços adotada:",{"$nulls":9},{"$f":"IF(O36=\"\",INDEX(O20:P20,MATCH(MIN(#REF!),#REF!,0)),O36)","v":"Outliers"},null,"CV (Cotações)",{"$f":"IF(COUNTIF(O21:O30,\"Sim\")<3,\"N/D (são necessários pelo menos 3 preços)\",_xlfn.STDEV.S(IF(O21:O30=\"Sim\",$K21:$K30))/AVERAGE(IF(O21:O30=\"Sim\",$K21:$K30)))","v":9.4E-2},{"$f":"IF(COUNTIF(P21:P30,\"Sim\")<3,\"N/D (são necessários pelo menos 3 preços)\",_xlfn.STDEV.S(IF(P21:P30=\"Sim\",$K21:$K30))/AVERAGE(IF(P21:P30=\"Sim\",$K21:$K30)))","v":"N/D (são necessários pelo menos 3 preços)"}]
[{"$nulls":13},"Média",{"$f":"IF(SUM(COUNTIF($O$12:$O$18,\"Sim\")) + SUM(COUNTIF(O21:O30,\"Sim\")) < 3,\n   \"N/D (são necessários pelo menos 3 preços)\",\n   IFERROR(AVERAGE(_xlfn._xlws.FILTER($K$12:$K$18,$O$12:$O$18=\"Sim\"), _xlfn._xlws.FILTER($K$21:$K$30,O21:O30=\"Sim\")),O31))","v":44.51},{"$f":"IF(SUM(COUNTIF($P$12:$P$18,\"Sim\")) + SUM(COUNTIF(P21:P30,\"Sim\")) < 3,\n   \"N/D (são necessários pelo menos 3 preços)\",\n   IFERROR(AVERAGE(_xlfn._xlws.FILTER($K$12:$K$18,$P$12:$P$18=\"Sim\"), _xlfn._xlws.FILTER($K$21:$K$30,P21:P30=\"Sim\")),P31))","v":"N/D (são necessários pelo menos 3 preços)"}]
[{"$nulls":13},"Mediana",{"$f":"IF(SUM(COUNTIF($O$12:$O$18,\"Sim\")) + SUM(COUNTIF(O21:O30,\"Sim\")) < 3,\n   \"N/D (são necessários pelo menos 3 preços)\",\n   IFERROR(MEDIAN(_xlfn._xlws.FILTER($K$12:$K$18,$O$12:$O$18=\"Sim\"), _xlfn._xlws.FILTER($K$21:$K$30,O21:O30=\"Sim\")),O32))","v":45.32},{"$f":"IF(SUM(COUNTIF($P12:$P$18,\"Sim\")) + SUM(COUNTIF(P21:P30,\"Sim\")) < 3,\n   \"N/D (são necessários pelo menos 3 preços)\",\n   IFERROR(MEDIAN(_xlfn._xlws.FILTER($K$12:$K$18,$P$12:$P$18=\"Sim\"), _xlfn._xlws.FILTER($K$21:$K$30,P21:P30=\"Sim\")),P32))","v":"N/D (são necessários pelo menos 3 preços)"}]
[null,"COSOLIDAÇÃO DOS PREÇOS",{"$nulls":11},"Metodologia a adotar:",{"$f":"IF(INDEX(O20:P20,P36)=0,\"\",INDEX(O20:P20,P36))","v":"Outliers"},1]
[]
[null,"PREÇO UNITÁRIO ESTIMADO ADOTADO:",{"$nulls":9},{"$f":"IF($B$40=\"Mediana:\",L32,L31)","v":44.51}]
[]
[{"$f":"O20","v":"Outliers"},"Média:"]
[{"$f":"P20","v":"Por critério do(a) analista"}]

{"sheet":"Item 3 - 1 CV","index":10,"n_rows":42,"n_cols":16,"rows_kept":42,"cut":false,"hidden":false,"merged":[[33,1,35,10],[33,11,35,11],[36,1,37,10],[36,11,37,11],[38,1,38,10],[30,1,30,8],[19,1,19,8],[20,1,20,8],[21,1,21,8],[22,1,22,8],[23,1,23,8],[24,1,24,8],[25,1,25,8],[26,1,26,8],[27,1,27,8],[28,1,28,8],[29,1,29,8],[18,1,18,11],[18,14,18,15],[0,0,0,6],[8,2,8,7],[8,14,8,15],[9,1,9,11],[9,14,9,15]]}
[]
[]
[]
[null,"Processo","59500.003319/2025-65"]
[null,"Responsável","Renato Chaves"]
[null,"Área de Origem","AI/GEE/UEE"]
[null,"Data da pesquisa","2025-09-26"]
[]
[null,"ITEM:","Estrutura de solo para módulos fotovoltaicos, 5 módulos instalados, pilastra travessa e mão francesa em aço galvanizado a fogo, longarina e acessórios em alumínio. Inclui todos os acessórios para correta fixação dos painéis.",{"$nulls":5},"UNIDADE DE MEDIDA:",null,"QUANTIDADE:",null,null,null,"Tabela auxiliar de metodologias para exclusão de preços"]
[null,"LICITAÇÕES ANTERIORES",{"$nulls":12},"Licitações Anteriores"]
[null,"Órgão","Edital/Ano - Nº do Lote / Item","Quantidade","Valor Unitário","Data","índice de atualização (nome)","I0","If","Variação acumulada do índice (%)","Preço unitário atualizado","Utilizar?  (Sim/Não)",null,null,"Outliers","Por critério do(a) analista"]
[{"$nulls":9},{"$f":"IF(ISBLANK(E12),\"\",IF(ISNUMBER(H12),(I12-H12)/H12,0))","v":""},{"$f":"IF(ISBLANK(E12),\"\",E12*(1+J12))","v":""},{"$f":"IF(ISNUMBER(K12),IF($L$34<>$P$11,O12,P12),\"\")","v":""},null,null,{"$f":"IF(ISNUMBER(K12),IF(OR(K12<_xlfn.QUARTILE.INC($K$12:$K$31,1)-1.5*(_xlfn.QUARTILE.INC($K$12:K31,3)-_xlfn.QUARTILE.INC($K$12:$K$31,1)),K12>_xlfn.QUARTILE.INC($K$12:$K$31,3)+1.5*(_xlfn.QUARTILE.INC($K$12:$K$31,3)-_xlfn.QUARTILE.INC($K$12:$K$31,1))),\"Não\",\"Sim\"),\"\")","v":""}]
[{"$nulls":9},"","","",null,null,{"$f":"IF(ISNUMBER(K13),IF(OR(K13<_xlfn.QUARTILE.INC($K$12:$K$31,1)-1.5*(_xlfn.QUARTILE.INC($K$12:K31,3)-_xlfn.QUARTILE.INC($K$12:$K$31,1)),K13>_xlfn.QUARTILE.INC($K$12:$K$31,3)+1.5*(_xlfn.QUARTILE.INC($K$12:$K$31,3)-_xlfn.QUARTILE.INC($K$12:$K$31,1))),\"Não\",\"Sim\"),\"\")","v":""}]
[{"$nulls":9},"","","",null,null,{"$f":"IF(ISNUMBER(K14),IF(OR(K14<_xlfn.QUARTILE.INC($K$12:$K$31,1)-1.5*(_xlfn.QUARTILE.INC($K$12:K32,3)-_xlfn.QUARTILE.INC($K$12:$K$31,1)),K14>_xlfn.QUARTILE.INC($K$12:$K$31,3)+1.5*(_xlfn.QUARTILE.INC($K$12:$K$31,3)-_xlfn.QUARTILE.INC($K$12:$K$31,1))),\"Não\",\"Sim\"),\"\")","v":""}]
[{"$nulls":9},"","","",null,null,{"$f":"IF(ISNUMBER(K15),IF(OR(K15<_xlfn.QUARTILE.INC($K$12:$K$31,1)-1.5*(_xlfn.QUARTILE.INC($K$12:K33,3)-_xlfn.QUARTILE.INC($K$12:$K$31,1)),K15>_xlfn.QUARTILE.INC($K$12:$K$31,3)+1.5*(_xlfn.QUARTILE.INC($K$12:$K$31,3)-_xlfn.QUARTILE.INC($K$12:$K$31,1))),\"Não\",\"Sim\"),\"\")","v":""}]
[{"$nulls":9},"","","",null,null,{"$f":"IF(ISNUMBER(K16),IF(OR(K16<_xlfn.QUARTILE.INC($K$12:$K$31,1)-1.5*(_xlfn.QUARTILE.INC($K$12:K34,3)-_xlfn.QUARTILE.INC($K$12:$K$31,1)),K16>_xlfn.QUARTILE.INC($K$12:$K$31,3)+1.5*(_xlfn.QUARTILE.INC($K$12:$K$31,3)-_xlfn.QUARTILE.INC($K$12:$K$31,1))),\"Não\",\"Sim\"),\"\")","v":""}]
[{"$nulls":9},"","","",null,null,{"$f":"IF(ISNUMBER(K17),IF(OR(K17<_xlfn.QUARTILE.INC($K$12:$K$31,1)-1.5*(_xlfn.QUARTILE.INC($K$12:K37,3)-_xlfn.QUARTILE.INC($K$12:$K$31,1)),K17>_xlfn.QUARTILE.INC($K$12:$K$31,3)+1.5*(_xlfn.QUARTILE.INC($K$12:$K$31,3)-_xlfn.QUARTILE.INC($K$12:$K$31,1))),\"Não\",\"Sim\"),\"\")","v":""}]
[{"$nulls":9},"","","",null,null,{"$f":"IF(ISNUMBER(K18),IF(OR(K18<_xlfn.QUARTILE.INC($K$12:$K$31,1)-1.5*(_xlfn.QUARTILE.INC($I$12:I39,3)-_xlfn.QUARTILE.INC($K$12:$K$31,1)),K18>_xlfn.QUARTILE.INC($K$12:$K$31,3)+1.5*(_xlfn.QUARTILE.INC($K$12:$K$31,3)-_xlfn.QUARTILE.INC($K$12:$K$31,1))),\"Não\",\"Sim\"),\"\")","v":""}]
[null,"COTAÇÕES DE MERCADO",{"$nulls":12},"Cotações"]
[null,"Empresa",{"$nulls":7},"Data","Preço Unitário","Utilizar? (Sim/Não)",null,null,"Outliers","Por critério do(a) analista"]
[null,"https://www.lojakasatec.com.br/www-lojakasatec-com-br/kit-fixacao/kit-de-fixacao-para-placa-solar-para-5-placas-em-solo-biposte?srsltid=AfmBOopvFfeGxR8wxh_abkleouAzBzcarFV9wl8i56FjLuA3UFuImP_Ax7s",{"$nulls":7},"2025-09-26",1638,{"$f":"IF(ISNUMBER(K21),IF($L$34=$O$20,O21,IF($L$34=$P$20,P21,\"\")),\"\")","v":"Sim"},null,null,{"$f":"IF(ISNUMBER(K21),IF(OR(K21<_xlfn.QUARTILE.INC($K$12:$K$31,1)-1.5*(_xlfn.QUARTILE.INC($K$12:$K$31,3)-_xlfn.QUARTILE.INC($K$12:$K$31,1)),K21>_xlfn.QUARTILE.INC($K$12:$K$31,3)+1.5*(_xlfn.QUARTILE.INC($K$12:$K$31,3)-_xlfn.QUARTILE.INC($K$12:$K$31,1))),\"Não\",\"Sim\"),\"\")","v":"Sim"}]
[null,"NEOSOLAR ENERGIA LTDA - CNPJ 12.420.339/0003-98",{"$nulls":7},"2025-09-26",1243.6300000000001,"Sim",null,null,"Sim"]
[null,"PERFIX SOLAR SUPORTES EM ALUMINIO - CNPJ 21.117.016/0001-59",{"$nulls":7},"2025-09-26",800.18,"Sim",null,null,"Sim"]
[null,"MODULAR ESTRUTURAS EM AÇO LTDA - 34.743.124/0001-89",{"$nulls":7},"2025-09-26",730.04,"Sim",null,null,"Sim"]
[{"$nulls":11},"",null,null,""]
[{"$nulls":11},"",null,null,""]
[{"$nulls":11},"",null,null,""]
[{"$nulls":11},"",null,null,""]
[{"$nulls":11},"",null,null,""]
[{"$nulls":11},"",null,null,""]
[{"$nulls":11},"",null,null,""]
[null,"Observações:",{"$nulls":8},"Média:",{"$f":"IF($L$34=\"\",\"Selecione metodologia para exclusão de preços\",AVERAGE(IF($L$12:$L$31=\"Sim\",$K$12:$K$31)))","v":1102.96},null,"Média (Cotações)",{"$f":"IF(COUNTIF(O21:O31,\"Sim\")<3,\"N/D (são necessários pelo menos 3 preços)\",AVERAGE(IF(O21:O31=\"Sim\",$K21:$K31)))","v":1102.96},{"$f":"IF(COUNTIF(P21:P31,\"Sim\")<3,\"N/D (são necessários pelo menos 3 preços)\",AVERAGE(IF(P21:P31=\"Sim\",$K21:$K31)))","v":"N/D (são necessários pelo menos 3 preços)"}]
[{"$nulls":10},"Mediana:",{"$f":"IF($L$34=\"\",\"Selecione metodologia para exclusão de preços\",MEDIAN(IF($L$12:$L$31=\"Sim\",$K$12:$K$31)))","v":1021.91},null,"Mediana (Cotações)",{"$f":"IF(COUNTIF(O21:O31,\"Sim\")<3,\"N/D (são necessários pelo menos 3 preços)\",MEDIAN(IF(O21:O31=\"Sim\",$K21:$K31)))","v":1021.91},{"$f":"IF(COUNTIF(P21:P31,\"Sim\")<3,\"N/D (são necessários pelo menos 3 preços)\",MEDIAN(IF(P21:P31=\"Sim\",$K21:$K31)))","v":"N/D (são necessários pelo menos 3 preços)"}]
[null,"Metodologia de exclusão de preços adotada:",{"$nulls":9},{"$f":"IF(O37=\"\",INDEX(O20:P20,MATCH(MIN(#REF!),#REF!,0)),O37)","v":"Outliers"},null,"CV (Cotações)",{"$f":"IF(COUNTIF(O21:O31,\"Sim\")<3,\"N/D (são necessários pelo menos 3 preços)\",_xlfn.STDEV.S(IF(O21:O31=\"Sim\",$K21:$K31))/AVERAGE(IF(O21:O31=\"Sim\",$K21:$K31)))","v":0.38350000000000001},{"$f":"IF(COUNTIF(P21:P31,\"Sim\")<3,\"N/D (são necessários pelo menos 3 preços)\",_xlfn.STDEV.S(IF(P21:P31=\"Sim\",$K21:$K31))/AVERAGE(IF(P21:P31=\"Sim\",$K21:$K31)))","v":"N/D (são necessários pelo menos 3 preços)"}]
[{"$nulls":13},"Média",{"$f":"IF(SUM(COUNTIF($O$12:$O$18,\"Sim\")) + SUM(COUNTIF(O21:O31,\"Sim\")) < 3,\n   \"N/D (são necessários pelo menos 3 preços)\",\n   IFERROR(AVERAGE(_xlfn._xlws.FILTER($K$12:$K$18,$O$12:$O$18=\"Sim\"), _xlfn._xlws.FILTER($K$21:$K$31,O21:O31=\"Sim\")),O32))","v":1102.96},{"$f":"IF(SUM(COUNTIF($P$12:$P$18,\"Sim\")) + SUM(COUNTIF(P21:P31,\"Sim\")) < 3,\n   \"N/D (são necessários pelo menos 3 preços)\",\n   IFERROR(AVERAGE(_xlfn._xlws.FILTER($K$12:$K$18,$P$12:$P$18=\"Sim\"), _xlfn._xlws.FILTER($K$21:$K$31,P21:P31=\"Sim\")),P32))","v":"N/D (são necessários pelo menos 3 preços)"}]
[{"$nulls":13},"Mediana",{"$f":"IF(SUM(COUNTIF($O$12:$O$18,\"Sim\")) + SUM(COUNTIF(O21:O31,\"Sim\")) < 3,\n   \"N/D (são necessários pelo menos 3 preços)\",\n   IFERROR(MEDIAN(_xlfn._xlws.FILTER($K$12:$K$18,$O$12:$O$18=\"Sim\"), _xlfn._xlws.FILTER($K$21:$K$31,O21:O31=\"Sim\")),O33))","v":1021.91},{"$f":"IF(SUM(COUNTIF($P12:$P$18,\"Sim\")) + SUM(COUNTIF(P21:P31,\"Sim\")) < 3,\n   \"N/D (são necessários pelo menos 3 preços)\",\n   IFERROR(MEDIAN(_xlfn._xlws.FILTER($K$12:$K$18,$P$12:$P$18=\"Sim\"), _xlfn._xlws.FILTER($K$21:$K$31,P21:P31=\"Sim\")),P33))","v":"N/D (são necessários pelo menos 3 preços)"}]
[null,"COSOLIDAÇÃO DOS PREÇOS",{"$nulls":11},"Metodologia a adotar:",{"$f":"IF(INDEX(O20:P20,P37)=0,\"\",INDEX(O20:P20,P37))","v":"Outliers"},1]
[]
[null,"PREÇO UNITÁRIO ESTIMADO ADOTADO:",{"$nulls":9},{"$f":"IF($B$41=\"Mediana:\",L33,L32)","v":1102.96}]
[]
[{"$f":"O20","v":"Outliers"},"Média:"]
[{"$f":"P20","v":"Por critério do(a) analista"}]

{"sheet":"Item 4 - 1;2;3 CV","index":11,"n_rows":42,"n_cols":16,"rows_kept":42,"cut":false,"hidden":false,"merged":[[33,1,35,10],[33,11,35,11],[36,1,37,10],[36,11,37,11],[38,1,38,10],[30,1,30,8],[19,1,19,8],[20,1,20,8],[21,1,21,8],[22,1,22,8],[23,1,23,8],[24,1,24,8],[25,1,25,8],[26,1,26,8],[27,1,27,8],[28,1,28,8],[29,1,29,8],[18,1,18,11],[18,14,18,15],[0,0,0,6],[8,2,8,7],[8,14,8,15],[9,1,9,11],[9,14,9,15]]}
[]
[]
[]
[null,"Processo","59500.003319/2025-65"]
[null,"Responsável","Renato Chaves"]
[null,"Área de Origem","AI/GEE/UEE"]
[null,"Data da pesquisa","2025-09-26"]
[]
[null,"ITEM:","Condutor de 4 mm², fios de cobre, têmpera mole, encordoamento classe 5 (extraflexível), isolação em composto termofixo livre de halogênio, retardante a chamas, cobertura em composto termofixo livre de halogênio, resistente a UV. Na cor vermelha.",{"$nulls":5},"UNIDADE DE MEDIDA:","METRO","QUANTIDADE:",null,null,null,"Tabela auxiliar de metodologias para exclusão de preços"]
[null,"LICITAÇÕES ANTERIORES",{"$nulls":12},"Licitações Anteriores"]
[null,"Órgão","Edital/Ano - Nº do Lote / Item","Quantidade","Valor Unitário","Data","índice de atualização (nome)","I0","If","Variação acumulada do índice (%)","Preço unitário atualizado","Utilizar?  (Sim/Não)",null,null,"Outliers","Por critério do(a) analista"]
[{"$nulls":9},{"$f":"IF(ISBLANK(E12),\"\",IF(ISNUMBER(H12),(I12-H12)/H12,0))","v":""},{"$f":"IF(ISBLANK(E12),\"\",E12*(1+J12))","v":""},{"$f":"IF(ISNUMBER(K12),IF($L$34<>$P$11,O12,P12),\"\")","v":""},null,null,{"$f":"IF(ISNUMBER(K12),IF(OR(K12<_xlfn.QUARTILE.INC($K$12:$K$31,1)-1.5*(_xlfn.QUARTILE.INC($K$12:K31,3)-_xlfn.QUARTILE.INC($K$12:$K$31,1)),K12>_xlfn.QUARTILE.INC($K$12:$K$31,3)+1.5*(_xlfn.QUARTILE.INC($K$12:$K$31,3)-_xlfn.QUARTILE.INC($K$12:$K$31,1))),\"Não\",\"Sim\"),\"\")","v":""}]
[{"$nulls":9},"","","",null,null,{"$f":"IF(ISNUMBER(K13),IF(OR(K13<_xlfn.QUARTILE.INC($K$12:$K$31,1)-1.5*(_xlfn.QUARTILE.INC($K$12:K31,3)-_xlfn.QUARTILE.INC($K$12:$K$31,1)),K13>_xlfn.QUARTILE.INC($K$12:$K$31,3)+1.5*(_xlfn.QUARTILE.INC($K$12:$K$31,3)-_xlfn.QUARTILE.INC($K$12:$K$31,1))),\"Não\",\"Sim\"),\"\")","v":""}]
[{"$nulls":9},"","","",null,null,{"$f":"IF(ISNUMBER(K14),IF(OR(K14<_xlfn.QUARTILE.INC($K$12:$K$31,1)-1.5*(_xlfn.QUARTILE.INC($K$12:K32,3)-_xlfn.QUARTILE.INC($K$12:$K$31,1)),K14>_xlfn.QUARTILE.INC($K$12:$K$31,3)+1.5*(_xlfn.QUARTILE.INC($K$12:$K$31,3)-_xlfn.QUARTILE.INC($K$12:$K$31,1))),\"Não\",\"Sim\"),\"\")","v":""}]
[{"$nulls":9},"","","",null,null,{"$f":"IF(ISNUMBER(K15),IF(OR(K15<_xlfn.QUARTILE.INC($K$12:$K$31,1)-1.5*(_xlfn.QUARTILE.INC($K$12:K33,3)-_xlfn.QUARTILE.INC($K$12:$K$31,1)),K15>_xlfn.QUARTILE.INC($K$12:$K$31,3)+1.5*(_xlfn.QUARTILE.INC($K$12:$K$31,3)-_xlfn.QUARTILE.INC($K$12:$K$31,1))),\"Não\",\"Sim\"),\"\")","v":""}]
[{"$nulls":9},"","","",null,null,{"$f":"IF(ISNUMBER(K16),IF(OR(K16<_xlfn.QUARTILE.INC($K$12:$K$31,1)-1.5*(_xlfn.QUARTILE.INC($K$12:K34,3)-_xlfn.QUARTILE.INC($K$12:$K$31,1)),K16>_xlfn.QUARTILE.INC($K$12:$K$31,3)+1.5*(_xlfn.QUARTILE.INC($K$12:$K$31,3)-_xlfn.QUARTILE.INC($K$12:$K$31,1))),\"Não\",\"Sim\"),\"\")","v":""}]
[{"$nulls":9},"","","",null,null,{"$f":"IF(ISNUMBER(K17),IF(OR(K17<_xlfn.QUARTILE.INC($K$12:$K$31,1)-1.5*(_xlfn.QUARTILE.INC($K$12:K37,3)-_xlfn.QUARTILE.INC($K$12:$K$31,1)),K17>_xlfn.QUARTILE.INC($K$12:$K$31,3)+1.5*(_xlfn.QUARTILE.INC($K$12:$K$31,3)-_xlfn.QUARTILE.INC($K$12:$K$31,1))),\"Não\",\"Sim\"),\"\")","v":""}]
[{"$nulls":9},"","","",null,null,{"$f":"IF(ISNUMBER(K18),IF(OR(K18<_xlfn.QUARTILE.INC($K$12:$K$31,1)-1.5*(_xlfn.QUARTILE.INC($I$12:I39,3)-_xlfn.QUARTILE.INC($K$12:$K$31,1)),K18>_xlfn.QUARTILE.INC($K$12:$K$31,3)+1.5*(_xlfn.QUARTILE.INC($K$12:$K$31,3)-_xlfn.QUARTILE.INC($K$12:$K$31,1))),\"Não\",\"Sim\"),\"\")","v":""}]
[null,"COTAÇÕES DE MERCADO",{"$nulls":12},"Cotações"]
[null,"Empresa",{"$nulls":7},"Data","Preço Unitário","Utilizar? (Sim/Não)",null,null,"Outliers","Por critério do(a) analista"]
[null,"https://www.lojaeletrica.com.br/cabo-solar-4mm-vermelho-prysmian.html",{"$nulls":7},"2025-09-26",5.3,{"$f":"IF(ISNUMBER(K21),IF($L$34=$O$20,O21,IF($L$34=$P$20,P21,\"\")),\"\")","v":"Sim"},null,null,{"$f":"IF(ISNUMBER(K21),IF(OR(K21<_xlfn.QUARTILE.INC($K$12:$K$31,1)-1.5*(_xlfn.QUARTILE.INC($K$12:$K$31,3)-_xlfn.QUARTILE.INC($K$12:$K$31,1)),K21>_xlfn.QUARTILE.INC($K$12:$K$31,3)+1.5*(_xlfn.QUARTILE.INC($K$12:$K$31,3)-_xlfn.QUARTILE.INC($K$12:$K$31,1))),\"Não\",\"Sim\"),\"\")","v":"Sim"}]
[null,"https://www.magazineluiza.com.br/cabo-solar-4mm2-metro-18kv-c-c-vermelho-cabomix/p/bd50kf1952/cj/catr/?&seller_id=solarprado&utm_source=google&utm_medium=cpc&utm_term=80674&utm_campaign=google_eco_per_ven_pla_ca_sor_3p_ci-cj-csp&utm_content=&partner_id=80674&gclsrc=aw.ds&gad_source=1&gad_campaignid=22825521530&gbraid=0AAAAAD4zZmRdXJT0KbEsBwcLTwPNQCNks&gclid=Cj0KCQjw58PGBhCkARIsADbDilzQBi-ksrGl24DaXAVlpJYsIdDyJubGviKDL3GgVhByrrKB8tk3AREaAremEALw_wcB",{"$nulls":7},"2025-09-26",6.2,"Sim",null,null,"Sim"]
[null,"https://loja.ccabos.com.br/produtos/cabo-400mm-solar-atox-classe-5-nbr-16612-1-8-kv-c-c/?variant=1122309877&pf=mc&srsltid=AfmBOora56vPkoGTvlgsay4ZZ426sPXLxc48DdeAw6MrHtCracSiLQqEBqQ",{"$nulls":7},"2025-09-26",4.75,"Sim",null,null,"Sim"]
[null,"https://www.soedral.com.br/produto/cabo-naxflex-1kv-hepr-40mm-vermelho-vendido-por-metro?utm_source=Site&utm_medium=GoogleShopping&utm_campaign=IntegracaoGoogle&srsltid=AfmBOoo0R1ZbU0BeGg0FUOD71QgYDoMWlUkwGb-lJa_gkE_hoEiIVYbOWsc",{"$nulls":7},"2025-09-26",4.5199999999999996,"Sim",null,null,"Sim"]
[{"$nulls":11},"",null,null,""]
[{"$nulls":11},"",null,null,""]
[{"$nulls":11},"",null,null,""]
[{"$nulls":11},"",null,null,""]
[{"$nulls":11},"",null,null,""]
[{"$nulls":11},"",null,null,""]
[{"$nulls":11},"",null,null,""]
[null,"Observações:",{"$nulls":8},"Média:",{"$f":"IF($L$34=\"\",\"Selecione metodologia para exclusão de preços\",AVERAGE(IF($L$12:$L$31=\"Sim\",$K$12:$K$31)))","v":5.19},null,"Média (Cotações)",{"$f":"IF(COUNTIF(O21:O31,\"Sim\")<3,\"N/D (são necessários pelo menos 3 preços)\",AVERAGE(IF(O21:O31=\"Sim\",$K21:$K31)))","v":5.19},{"$f":"IF(COUNTIF(P21:P31,\"Sim\")<3,\"N/D (são necessários pelo menos 3 preços)\",AVERAGE(IF(P21:P31=\"Sim\",$K21:$K31)))","v":"N/D (são necessários pelo menos 3 preços)"}]
[{"$nulls":10},"Mediana:",{"$f":"IF($L$34=\"\",\"Selecione metodologia para exclusão de preços\",MEDIAN(IF($L$12:$L$31=\"Sim\",$K$12:$K$31)))","v":5.03},null,"Mediana (Cotações)",{"$f":"IF(COUNTIF(O21:O31,\"Sim\")<3,\"N/D (são necessários pelo menos 3 preços)\",MEDIAN(IF(O21:O31=\"Sim\",$K21:$K31)))","v":5.03},{"$f":"IF(COUNTIF(P21:P31,\"Sim\")<3,\"N/D (são necessários pelo menos 3 preços)\",MEDIAN(IF(P21:P31=\"Sim\",$K21:$K31)))","v":"N/D (são necessários pelo menos 3 preços)"}]
[null,"Metodologia de exclusão de preços adotada:",{"$nulls":9},{"$f":"IF(O37=\"\",INDEX(O20:P20,MATCH(MIN(#REF!),#REF!,0)),O37)","v":"Outliers"},null,"CV (Cotações)",{"$f":"IF(COUNTIF(O21:O31,\"Sim\")<3,\"N/D (são necessários pelo menos 3 preços)\",_xlfn.STDEV.S(IF(O21:O31=\"Sim\",$K21:$K31))/AVERAGE(IF(O21:O31=\"Sim\",$K21:$K31)))","v":0.1439},{"$f":"IF(COUNTIF(P21:P31,\"Sim\")<3,\"N/D (são necessários pelo menos 3 preços)\",_xlfn.STDEV.S(IF(P21:P31=\"Sim\",$K21:$K31))/AVERAGE(IF(P21:P31=\"Sim\",$K21:$K31)))","v":"N/D (são necessários pelo menos 3 preços)"}]
[{"$nulls":13},"Média",{"$f":"IF(SUM(COUNTIF($O$12:$O$18,\"Sim\")) + SUM(COUNTIF(O21:O31,\"Sim\")) < 3,\n   \"N/D (são necessários pelo menos 3 preços)\",\n   IFERROR(AVERAGE(_xlfn._xlws.FILTER($K$12:$K$18,$O$12:$O$18=\"Sim\"), _xlfn._xlws.FILTER($K$21:$K$31,O21:O31=\"Sim\")),O32))","v":5.19},{"$f":"IF(SUM(COUNTIF($P$12:$P$18,\"Sim\")) + SUM(COUNTIF(P21:P31,\"Sim\")) < 3,\n   \"N/D (são necessários pelo menos 3 preços)\",\n   IFERROR(AVERAGE(_xlfn._xlws.FILTER($K$12:$K$18,$P$12:$P$18=\"Sim\"), _xlfn._xlws.FILTER($K$21:$K$31,P21:P31=\"Sim\")),P32))","v":"N/D (são necessários pelo menos 3 preços)"}]
[{"$nulls":13},"Mediana",{"$f":"IF(SUM(COUNTIF($O$12:$O$18,\"Sim\")) + SUM(COUNTIF(O21:O31,\"Sim\")) < 3,\n   \"N/D (são necessários pelo menos 3 preços)\",\n   IFERROR(MEDIAN(_xlfn._xlws.FILTER($K$12:$K$18,$O$12:$O$18=\"Sim\"), _xlfn._xlws.FILTER($K$21:$K$31,O21:O31=\"Sim\")),O33))","v":5.03},{"$f":"IF(SUM(COUNTIF($P12:$P$18,\"Sim\")) + SUM(COUNTIF(P21:P31,\"Sim\")) < 3,\n   \"N/D (são necessários pelo menos 3 preços)\",\n   IFERROR(MEDIAN(_xlfn._xlws.FILTER($K$12:$K$18,$P$12:$P$18=\"Sim\"), _xlfn._xlws.FILTER($K$21:$K$31,P21:P31=\"Sim\")),P33))","v":"N/D (são necessários pelo menos 3 preços)"}]
[null,"COSOLIDAÇÃO DOS PREÇOS",{"$nulls":11},"Metodologia a adotar:",{"$f":"IF(INDEX(O20:P20,P37)=0,\"\",INDEX(O20:P20,P37))","v":"Outliers"},1]
[]
[null,"PREÇO UNITÁRIO ESTIMADO ADOTADO:",{"$nulls":9},{"$f":"IF($B$41=\"Mediana:\",L33,L32)","v":5.19}]
[]
[{"$f":"O20","v":"Outliers"},"Média:"]
[{"$f":"P20","v":"Por critério do(a) analista"}]

{"sheet":"Item 5 - 1;2;3 CV","index":12,"n_rows":42,"n_cols":16,"rows_kept":42,"cut":false,"hidden":false,"merged":[[33,1,35,10],[33,11,35,11],[36,1,37,10],[36,11,37,11],[38,1,38,10],[30,1,30,8],[19,1,19,8],[20,1,20,8],[21,1,21,8],[22,1,22,8],[23,1,23,8],[24,1,24,8],[25,1,25,8],[26,1,26,8],[27,1,27,8],[28,1,28,8],[29,1,29,8],[18,1,18,11],[18,14,18,15],[0,0,0,6],[8,2,8,7],[8,14,8,15],[9,1,9,11],[9,14,9,15]]}
[]
[]
[]
[null,"Processo","59500.003319/2025-65"]
[null,"Responsável","Renato Chaves"]
[null,"Área de Origem","AI/GEE/UEE"]
[null,"Data da pesquisa","2025-09-26"]
[]
[null,"ITEM:","Condutor de 4 mm², fios de cobre, têmpera mole, encordoamento classe 5 (extraflexível), isolação em composto termofixo livre de halogênio, retardante a chamas, cobertura em composto termofixo livre de halogênio, resistente a UV. Na cor preta",{"$nulls":5},"UNIDADE DE MEDIDA:","Metro","QUANTIDADE:",null,null,null,"Tabela auxiliar de metodologias para exclusão de preços"]
[null,"LICITAÇÕES ANTERIORES",{"$nulls":12},"Licitações Anteriores"]
[null,"Órgão","Edital/Ano - Nº do Lote / Item","Quantidade","Valor Unitário","Data","índice de atualização (nome)","I0","If","Variação acumulada do índice (%)","Preço unitário atualizado","Utilizar?  (Sim/Não)",null,null,"Outliers","Por critério do(a) analista"]
[{"$nulls":9},{"$f":"IF(ISBLANK(E12),\"\",IF(ISNUMBER(H12),(I12-H12)/H12,0))","v":""},{"$f":"IF(ISBLANK(E12),\"\",E12*(1+J12))","v":""},{"$f":"IF(ISNUMBER(K12),IF($L$34<>$P$11,O12,P12),\"\")","v":""},null,null,{"$f":"IF(ISNUMBER(K12),IF(OR(K12<_xlfn.QUARTILE.INC($K$12:$K$31,1)-1.5*(_xlfn.QUARTILE.INC($K$12:K31,3)-_xlfn.QUARTILE.INC($K$12:$K$31,1)),K12>_xlfn.QUARTILE.INC($K$12:$K$31,3)+1.5*(_xlfn.QUARTILE.INC($K$12:$K$31,3)-_xlfn.QUARTILE.INC($K$12:$K$31,1))),\"Não\",\"Sim\"),\"\")","v":""}]
[{"$nulls":9},"","","",null,null,{"$f":"IF(ISNUMBER(K13),IF(OR(K13<_xlfn.QUARTILE.INC($K$12:$K$31,1)-1.5*(_xlfn.QUARTILE.INC($K$12:K31,3)-_xlfn.QUARTILE.INC($K$12:$K$31,1)),K13>_xlfn.QUARTILE.INC($K$12:$K$31,3)+1.5*(_xlfn.QUARTILE.INC($K$12:$K$31,3)-_xlfn.QUARTILE.INC($K$12:$K$31,1))),\"Não\",\"Sim\"),\"\")","v":""}]
[{"$nulls":9},"","","",null,null,{"$f":"IF(ISNUMBER(K14),IF(OR(K14<_xlfn.QUARTILE.INC($K$12:$K$31,1)-1.5*(_xlfn.QUARTILE.INC($K$12:K32,3)-_xlfn.QUARTILE.INC($K$12:$K$31,1)),K14>_xlfn.QUARTILE.INC($K$12:$K$31,3)+1.5*(_xlfn.QUARTILE.INC($K$12:$K$31,3)-_xlfn.QUARTILE.INC($K$12:$K$31,1))),\"Não\",\"Sim\"),\"\")","v":""}]
[{"$nulls":9},"","","",null,null,{"$f":"IF(ISNUMBER(K15),IF(OR(K15<_xlfn.QUARTILE.INC($K$12:$K$31,1)-1.5*(_xlfn.QUARTILE.INC($K$12:K33,3)-_xlfn.QUARTILE.INC($K$12:$K$31,1)),K15>_xlfn.QUARTILE.INC($K$12:$K$31,3)+1.5*(_xlfn.QUARTILE.INC($K$12:$K$31,3)-_xlfn.QUARTILE.INC($K$12:$K$31,1))),\"Não\",\"Sim\"),\"\")","v":""}]
[{"$nulls":9},"","","",null,null,{"$f":"IF(ISNUMBER(K16),IF(OR(K16<_xlfn.QUARTILE.INC($K$12:$K$31,1)-1.5*(_xlfn.QUARTILE.INC($K$12:K34,3)-_xlfn.QUARTILE.INC($K$12:$K$31,1)),K16>_xlfn.QUARTILE.INC($K$12:$K$31,3)+1.5*(_xlfn.QUARTILE.INC($K$12:$K$31,3)-_xlfn.QUARTILE.INC($K$12:$K$31,1))),\"Não\",\"Sim\"),\"\")","v":""}]
[{"$nulls":9},"","","",null,null,{"$f":"IF(ISNUMBER(K17),IF(OR(K17<_xlfn.QUARTILE.INC($K$12:$K$31,1)-1.5*(_xlfn.QUARTILE.INC($K$12:K37,3)-_xlfn.QUARTILE.INC($K$12:$K$31,1)),K17>_xlfn.QUARTILE.INC($K$12:$K$31,3)+1.5*(_xlfn.QUARTILE.INC($K$12:$K$31,3)-_xlfn.QUARTILE.INC($K$12:$K$31,1))),\"Não\",\"Sim\"),\"\")","v":""}]
[{"$nulls":9},"","","",null,null,{"$f":"IF(ISNUMBER(K18),IF(OR(K18<_xlfn.QUARTILE.INC($K$12:$K$31,1)-1.5*(_xlfn.QUARTILE.INC($I$12:I39,3)-_xlfn.QUARTILE.INC($K$12:$K$31,1)),K18>_xlfn.QUARTILE.INC($K$12:$K$31,3)+1.5*(_xlfn.QUARTILE.INC($K$12:$K$31,3)-_xlfn.QUARTILE.INC($K$12:$K$31,1))),\"Não\",\"Sim\"),\"\")","v":""}]
[null,"COTAÇÕES DE MERCADO",{"$nulls":12},"Cotações"]
[null,"Empresa",{"$nulls":7},"Data","Preço Unitário","Utilizar? (Sim/Não)",null,null,"Outliers","Por critério do(a) analista"]
[null,"https://www.lojaeletrica.com.br/cabo-solar-4mm-preto-prysmian.html",{"$nulls":7},"2025-09-26",5.3,{"$f":"IF(ISNUMBER(K21),IF($L$34=$O$20,O21,IF($L$34=$P$20,P21,\"\")),\"\")","v":"Sim"},null,null,{"$f":"IF(ISNUMBER(K21),IF(OR(K21<_xlfn.QUARTILE.INC($K$12:$K$31,1)-1.5*(_xlfn.QUARTILE.INC($K$12:$K$31,3)-_xlfn.QUARTILE.INC($K$12:$K$31,1)),K21>_xlfn.QUARTILE.INC($K$12:$K$31,3)+1.5*(_xlfn.QUARTILE.INC($K$12:$K$31,3)-_xlfn.QUARTILE.INC($K$12:$K$31,1))),\"Não\",\"Sim\"),\"\")","v":"Sim"}]
[null,"https://loja.trxsolar.com/acessorios/cabo-fotovoltaico-4mm-preto?srsltid=AfmBOorCU_WO9uogzkLmyEAglqD9nP44OzTx5XbrNmElS_0gPjBuB_B9",{"$nulls":7},"2025-09-26",6.9,"Não",null,null,"Não"]
[null,"https://www.energiatotal.com.br/variedades/cabos-e-conectores/cabo-solar-preto-4mm-1-8kv-metro?parceiro=6982&srsltid=AfmBOopJ-rc3welv8G9T7BgVMf0CBMNt2_0Qv8KW586xMdJxd-QCfuBhB_E",{"$nulls":7},"2025-09-26",4.93,"Sim",null,null,"Sim"]
[null,"https://www.lojaeletrica.com.br/cabo-solar-4mm-preto-kript.html?mp_feed=MTozOmorR0Fncldyb21hK0NOU1c3ZWZvUHgzdE5pVzVuRFcxUjRoOEU4bz0=&srsltid=AfmBOopw4mKvdnQOLJg1bK7nztBsmL5szNSmx5hNU20pegjIBkACYfl-Sfs",{"$nulls":7},"2025-09-26",4.8899999999999997,"Sim",null,null,"Sim"]
[null,"https://www.eletrotrafo.com.br/cabo-solar-maxx-18kvcc-flex-60mm2-pt-classe-5-nbr-16612--cabel-22880001/p?idsku=18573&gad_source=4&gad_campaignid=19733025744&gbraid=0AAAAAClsUAPOeyliTib-KJ-OI18pVaS3z&gclid=Cj0KCQjw58PGBhCkARIsADbDilzVt3G0e8nvc4OpGehenSSLQnu-qoYvnJ4fWxa4QMVPrtxFBvWvhOMaAlb2EALw_wcB",{"$nulls":7},"2025-09-26",4.6500000000000004,"Sim",null,null,"Sim"]
[null,"https://www.buscape.com.br/offer?oid=1245086915&sortorder=-1&pagesize=-1&pla=2025-09-22T11:04:54.091672421&og=19221&gad_source=4&gad_campaignid=18725867418&gbraid=0AAAAAD-OhXbdpVfQ0aaz3lXpeGQxqwtIB&gclid=Cj0KCQjw58PGBhCkARIsADbDilyOK9eoBKKqn18WpjcUYmF-cbv_ZR1g7akEcKAIJbrfsNIYtUXDRsYaAgCCEALw_wcB",{"$nulls":7},"2025-09-26",5.04,"Sim",null,null,"Sim"]
[{"$nulls":11},"",null,null,""]
[{"$nulls":11},"",null,null,""]
[{"$nulls":11},"",null,null,""]
[{"$nulls":11},"",null,null,""]
[{"$nulls":11},"",null,null,""]
[null,"Observações:",{"$nulls":8},"Média:",{"$f":"IF($L$34=\"\",\"Selecione metodologia para exclusão de preços\",AVERAGE(IF($L$12:$L$31=\"Sim\",$K$12:$K$31)))","v":4.96},null,"Média (Cotações)",{"$f":"IF(COUNTIF(O21:O31,\"Sim\")<3,\"N/D (são necessários pelo menos 3 preços)\",AVERAGE(IF(O21:O31=\"Sim\",$K21:$K31)))","v":4.96},{"$f":"IF(COUNTIF(P21:P31,\"Sim\")<3,\"N/D (são necessários pelo menos 3 preços)\",AVERAGE(IF(P21:P31=\"Sim\",$K21:$K31)))","v":"N/D (são necessários pelo menos 3 preços)"}]
[{"$nulls":10},"Mediana:",{"$f":"IF($L$34=\"\",\"Selecione metodologia para exclusão de preços\",MEDIAN(IF($L$12:$L$31=\"Sim\",$K$12:$K$31)))","v":4.93},null,"Mediana (Cotações)",{"$f":"IF(COUNTIF(O21:O31,\"Sim\")<3,\"N/D (são necessários pelo menos 3 preços)\",MEDIAN(IF(O21:O31=\"Sim\",$K21:$K31)))","v":4.93},{"$f":"IF(COUNTIF(P21:P31,\"Sim\")<3,\"N/D (são necessários pelo menos 3 preços)\",MEDIAN(IF(P21:P31=\"Sim\",$K21:$K31)))","v":"N/D (são necessários pelo menos 3 preços)"}]
[null,"Metodologia de exclusão de preços adotada:",{"$nulls":9},{"$f":"IF(O37=\"\",INDEX(O20:P20,MATCH(MIN(#REF!),#REF!,0)),O37)","v":"Outliers"},null,"CV (Cotações)",{"$f":"IF(COUNTIF(O21:O31,\"Sim\")<3,\"N/D (são necessários pelo menos 3 preços)\",_xlfn.STDEV.S(IF(O21:O31=\"Sim\",$K21:$K31))/AVERAGE(IF(O21:O31=\"Sim\",$K21:$K31)))","v":4.7699999999999999E-2},{"$f":"IF(COUNTIF(P21:P31,\"Sim\")<3,\"N/D (são necessários pelo menos 3 preços)\",_xlfn.STDEV.S(IF(P21:P31=\"Sim\",$K21:$K31))/AVERAGE(IF(P21:P31=\"Sim\",$K21:$K31)))","v":"N/D (são necessários pelo menos 3 preços)"}]
[{"$nulls":13},"Média",{"$f":"IF(SUM(COUNTIF($O$12:$O$18,\"Sim\")) + SUM(COUNTIF(O21:O31,\"Sim\")) < 3,\n   \"N/D (são necessários pelo menos 3 preços)\",\n   IFERROR(AVERAGE(_xlfn._xlws.FILTER($K$12:$K$18,$O$12:$O$18=\"Sim\"), _xlfn._xlws.FILTER($K$21:$K$31,O21:O31=\"Sim\")),O32))","v":4.96},{"$f":"IF(SUM(COUNTIF($P$12:$P$18,\"Sim\")) + SUM(COUNTIF(P21:P31,\"Sim\")) < 3,\n   \"N/D (são necessários pelo menos 3 preços)\",\n   IFERROR(AVERAGE(_xlfn._xlws.FILTER($K$12:$K$18,$P$12:$P$18=\"Sim\"), _xlfn._xlws.FILTER($K$21:$K$31,P21:P31=\"Sim\")),P32))","v":"N/D (são necessários pelo menos 3 preços)"}]
[{"$nulls":13},"Mediana",{"$f":"IF(SUM(COUNTIF($O$12:$O$18,\"Sim\")) + SUM(COUNTIF(O21:O31,\"Sim\")) < 3,\n   \"N/D (são necessários pelo menos 3 preços)\",\n   IFERROR(MEDIAN(_xlfn._xlws.FILTER($K$12:$K$18,$O$12:$O$18=\"Sim\"), _xlfn._xlws.FILTER($K$21:$K$31,O21:O31=\"Sim\")),O33))","v":4.93},{"$f":"IF(SUM(COUNTIF($P12:$P$18,\"Sim\")) + SUM(COUNTIF(P21:P31,\"Sim\")) < 3,\n   \"N/D (são necessários pelo menos 3 preços)\",\n   IFERROR(MEDIAN(_xlfn._xlws.FILTER($K$12:$K$18,$P$12:$P$18=\"Sim\"), _xlfn._xlws.FILTER($K$21:$K$31,P21:P31=\"Sim\")),P33))","v":"N/D (são necessários pelo menos 3 preços)"}]
[null,"COSOLIDAÇÃO DOS PREÇOS",{"$nulls":11},"Metodologia a adotar:",{"$f":"IF(INDEX(O20:P20,P37)=0,\"\",INDEX(O20:P20,P37))","v":"Outliers"},1]
[]
[null,"PREÇO UNITÁRIO ESTIMADO ADOTADO:",{"$nulls":9},{"$f":"IF($B$41=\"Mediana:\",L33,L32)","v":4.96}]
[]
[{"$f":"O20","v":"Outliers"},"Média:"]
[{"$f":"P20","v":"Por critério do(a) analista"}]

{"sheet":"Item 6 - 1 CV","index":13,"n_rows":42,"n_cols":16,"rows_kept":42,"cut":false,"hidden":false,"merged":[[33,1,35,10],[33,11,35,11],[36,1,37,10],[36,11,37,11],[38,1,38,10],[30,1,30,8],[19,1,19,8],[20,1,20,8],[21,1,21,8],[22,1,22,8],[23,1,23,8],[24,1,24,8],[25,1,25,8],[26,1,26,8],[27,1,27,8],[28,1,28,8],[29,1,29,8],[18,1,18,11],[18,14,18,15],[0,0,0,6],[8,2,8,7],[8,14,8,15],[9,1,9,11],[9,14,9,15]]}
[]
[]
[]
[null,"Processo","59500.003319/2025-65"]
[null,"Responsável","Renato Chaves"]
[null,"Área de Origem","AI/GEE/UEE"]
[null,"Data da pesquisa","2025-09-26"]
[]
[null,"ITEM:","Driver solar fotovoltaico, apropriado para motores de 1 CV, operação off-grid: Eficiência mínima 95%, grau de proteção IP20, resfriamento natural ou com cooler integrado, garantia mínima de 5 anos, tensão de saída compatível com a motobomba, frequência 60 Hz, com sistema de partida suave da bomba e controle de velocidade, atender em plenitude os requisitos do sistema a ser instalado. Entrada de corrente contínua (CC) compatível com a quantidade de painéis fotovoltaicos propostos, com no mínimo 1 MPPT (maximum power point tracking) com faixa de tensão de operação compatível com os módulos fotovoltaicos, baixa tensão mínima para funcionamento. Saída de corrente alternada (CA) compatível com o sistema projetado, até 1 CV, temperatura de operação até 60 ºc, trifásico ou monofásico. Possuir, no mínimo as seguintes proteções: Sub e sobre tensão CC, sobreaquecimento, surtos de tensão (CC), proteção de bomba travada, proteção de curto-circuito, proteção contra funcionamento a seco e sobrecarga.",{"$nulls":5},"UNIDADE DE MEDIDA:","Unidade","QUANTIDADE:",null,null,null,"Tabela auxiliar de metodologias para exclusão de preços"]
[null,"LICITAÇÕES ANTERIORES",{"$nulls":12},"Licitações Anteriores"]
[null,"Órgão","Edital/Ano - Nº do Lote / Item","Quantidade","Valor Unitário","Data","índice de atualização (nome)","I0","If","Variação acumulada do índice (%)","Preço unitário atualizado","Utilizar?  (Sim/Não)",null,null,"Outliers","Por critério do(a) analista"]
[{"$nulls":9},{"$f":"IF(ISBLANK(E12),\"\",IF(ISNUMBER(H12),(I12-H12)/H12,0))","v":""},{"$f":"IF(ISBLANK(E12),\"\",E12*(1+J12))","v":""},{"$f":"IF(ISNUMBER(K12),IF($L$34<>$P$11,O12,P12),\"\")","v":""},null,null,{"$f":"IF(ISNUMBER(K12),IF(OR(K12<_xlfn.QUARTILE.INC($K$12:$K$31,1)-1.5*(_xlfn.QUARTILE.INC($K$12:K31,3)-_xlfn.QUARTILE.INC($K$12:$K$31,1)),K12>_xlfn.QUARTILE.INC($K$12:$K$31,3)+1.5*(_xlfn.QUARTILE.INC($K$12:$K$31,3)-_xlfn.QUARTILE.INC($K$12:$K$31,1))),\"Não\",\"Sim\"),\"\")","v":""}]
[{"$nulls":9},"","","",null,null,{"$f":"IF(ISNUMBER(K13),IF(OR(K13<_xlfn.QUARTILE.INC($K$12:$K$31,1)-1.5*(_xlfn.QUARTILE.INC($K$12:K31,3)-_xlfn.QUARTILE.INC($K$12:$K$31,1)),K13>_xlfn.QUARTILE.INC($K$12:$K$31,3)+1.5*(_xlfn.QUARTILE.INC($K$12:$K$31,3)-_xlfn.QUARTILE.INC($K$12:$K$31,1))),\"Não\",\"Sim\"),\"\")","v":""}]
[{"$nulls":9},"","","",null,null,{"$f":"IF(ISNUMBER(K14),IF(OR(K14<_xlfn.QUARTILE.INC($K$12:$K$31,1)-1.5*(_xlfn.QUARTILE.INC($K$12:K32,3)-_xlfn.QUARTILE.INC($K$12:$K$31,1)),K14>_xlfn.QUARTILE.INC($K$12:$K$31,3)+1.5*(_xlfn.QUARTILE.INC($K$12:$K$31,3)-_xlfn.QUARTILE.INC($K$12:$K$31,1))),\"Não\",\"Sim\"),\"\")","v":""}]
[{"$nulls":9},"","","",null,null,{"$f":"IF(ISNUMBER(K15),IF(OR(K15<_xlfn.QUARTILE.INC($K$12:$K$31,1)-1.5*(_xlfn.QUARTILE.INC($K$12:K33,3)-_xlfn.QUARTILE.INC($K$12:$K$31,1)),K15>_xlfn.QUARTILE.INC($K$12:$K$31,3)+1.5*(_xlfn.QUARTILE.INC($K$12:$K$31,3)-_xlfn.QUARTILE.INC($K$12:$K$31,1))),\"Não\",\"Sim\"),\"\")","v":""}]
[{"$nulls":9},"","","",null,null,{"$f":"IF(ISNUMBER(K16),IF(OR(K16<_xlfn.QUARTILE.INC($K$12:$K$31,1)-1.5*(_xlfn.QUARTILE.INC($K$12:K34,3)-_xlfn.QUARTILE.INC($K$12:$K$31,1)),K16>_xlfn.QUARTILE.INC($K$12:$K$31,3)+1.5*(_xlfn.QUARTILE.INC($K$12:$K$31,3)-_xlfn.QUARTILE.INC($K$12:$K$31,1))),\"Não\",\"Sim\"),\"\")","v":""}]
[{"$nulls":9},"","","",null,null,{"$f":"IF(ISNUMBER(K17),IF(OR(K17<_xlfn.QUARTILE.INC($K$12:$K$31,1)-1.5*(_xlfn.QUARTILE.INC($K$12:K37,3)-_xlfn.QUARTILE.INC($K$12:$K$31,1)),K17>_xlfn.QUARTILE.INC($K$12:$K$31,3)+1.5*(_xlfn.QUARTILE.INC($K$12:$K$31,3)-_xlfn.QUARTILE.INC($K$12:$K$31,1))),\"Não\",\"Sim\"),\"\")","v":""}]
[{"$nulls":9},"","","",null,null,{"$f":"IF(ISNUMBER(K18),IF(OR(K18<_xlfn.QUARTILE.INC($K$12:$K$31,1)-1.5*(_xlfn.QUARTILE.INC($I$12:I39,3)-_xlfn.QUARTILE.INC($K$12:$K$31,1)),K18>_xlfn.QUARTILE.INC($K$12:$K$31,3)+1.5*(_xlfn.QUARTILE.INC($K$12:$K$31,3)-_xlfn.QUARTILE.INC($K$12:$K$31,1))),\"Não\",\"Sim\"),\"\")","v":""}]
[null,"COTAÇÕES DE MERCADO",{"$nulls":12},"Cotações"]
[null,"Empresa",{"$nulls":7},"Data","Preço Unitário","Utilizar? (Sim/Não)",null,null,"Outliers","Por critério do(a) analista"]
[null,"SGV SOLAR - CPNJ 42.326.882/0001-20 ",{"$nulls":7},"2025-09-26",1040,{"$f":"IF(ISNUMBER(K21),IF($L$34=$O$20,O21,IF($L$34=$P$20,P21,\"\")),\"\")","v":"Sim"},null,null,{"$f":"IF(ISNUMBER(K21),IF(OR(K21<_xlfn.QUARTILE.INC($K$12:$K$31,1)-1.5*(_xlfn.QUARTILE.INC($K$12:$K$31,3)-_xlfn.QUARTILE.INC($K$12:$K$31,1)),K21>_xlfn.QUARTILE.INC($K$12:$K$31,3)+1.5*(_xlfn.QUARTILE.INC($K$12:$K$31,3)-_xlfn.QUARTILE.INC($K$12:$K$31,1))),\"Não\",\"Sim\"),\"\")","v":"Sim"}]
[null,"https://www.ecommerce.automatize.eng.br/drive-bomba-solar-weg-cfw500-1cv-220v-43a-075kw-monofasico/up/MLBU2519795789?pdp_filters=category%3AMLB30187%7Cseller_id%3A160168883%7Citem_id%3AMLB3888486897",{"$nulls":7},"2025-09-26",2229,"Sim",null,null,"Sim"]
[null,"https://loja.waldesa.com.br/chave-de-partida/inversor-de-frequencia-weg-220-cfw500a04p3b2nb20g2?parceiro=3",{"$nulls":7},"2025-09-26",1500,"Sim",null,null,"Sim"]
[{"$nulls":11},"",null,null,""]
[{"$nulls":11},"",null,null,""]
[{"$nulls":11},"",null,null,""]
[{"$nulls":11},"",null,null,""]
[{"$nulls":11},"",null,null,""]
[{"$nulls":11},"",null,null,""]
[{"$nulls":11},"",null,null,""]
[{"$nulls":11},"",null,null,""]
[null,"Observações:",{"$nulls":8},"Média:",{"$f":"IF($L$34=\"\",\"Selecione metodologia para exclusão de preços\",AVERAGE(IF($L$12:$L$31=\"Sim\",$K$12:$K$31)))","v":1589.67},null,"Média (Cotações)",{"$f":"IF(COUNTIF(O21:O31,\"Sim\")<3,\"N/D (são necessários pelo menos 3 preços)\",AVERAGE(IF(O21:O31=\"Sim\",$K21:$K31)))","v":1589.67},{"$f":"IF(COUNTIF(P21:P31,\"Sim\")<3,\"N/D (são necessários pelo menos 3 preços)\",AVERAGE(IF(P21:P31=\"Sim\",$K21:$K31)))","v":"N/D (são necessários pelo menos 3 preços)"}]
[{"$nulls":10},"Mediana:",{"$f":"IF($L$34=\"\",\"Selecione metodologia para exclusão de preços\",MEDIAN(IF($L$12:$L$31=\"Sim\",$K$12:$K$31)))","v":1500},null,"Mediana (Cotações)",{"$f":"IF(COUNTIF(O21:O31,\"Sim\")<3,\"N/D (são necessários pelo menos 3 preços)\",MEDIAN(IF(O21:O31=\"Sim\",$K21:$K31)))","v":1500},{"$f":"IF(COUNTIF(P21:P31,\"Sim\")<3,\"N/D (são necessários pelo menos 3 preços)\",MEDIAN(IF(P21:P31=\"Sim\",$K21:$K31)))","v":"N/D (são necessários pelo menos 3 preços)"}]
[null,"Metodologia de exclusão de preços adotada:",{"$nulls":9},{"$f":"IF(O37=\"\",INDEX(O20:P20,MATCH(MIN(#REF!),#REF!,0)),O37)","v":"Outliers"},null,"CV (Cotações)",{"$f":"IF(COUNTIF(O21:O31,\"Sim\")<3,\"N/D (são necessários pelo menos 3 preços)\",_xlfn.STDEV.S(IF(O21:O31=\"Sim\",$K21:$K31))/AVERAGE(IF(O21:O31=\"Sim\",$K21:$K31)))","v":0.37719999999999998},{"$f":"IF(COUNTIF(P21:P31,\"Sim\")<3,\"N/D (são necessários pelo menos 3 preços)\",_xlfn.STDEV.S(IF(P21:P31=\"Sim\",$K21:$K31))/AVERAGE(IF(P21:P31=\"Sim\",$K21:$K31)))","v":"N/D (são necessários pelo menos 3 preços)"}]
[{"$nulls":13},"Média",{"$f":"IF(SUM(COUNTIF($O$12:$O$18,\"Sim\")) + SUM(COUNTIF(O21:O31,\"Sim\")) < 3,\n   \"N/D (são necessários pelo menos 3 preços)\",\n   IFERROR(AVERAGE(_xlfn._xlws.FILTER($K$12:$K$18,$O$12:$O$18=\"Sim\"), _xlfn._xlws.FILTER($K$21:$K$31,O21:O31=\"Sim\")),O32))","v":1589.67},{"$f":"IF(SUM(COUNTIF($P$12:$P$18,\"Sim\")) + SUM(COUNTIF(P21:P31,\"Sim\")) < 3,\n   \"N/D (são necessários pelo menos 3 preços)\",\n   IFERROR(AVERAGE(_xlfn._xlws.FILTER($K$12:$K$18,$P$12:$P$18=\"Sim\"), _xlfn._xlws.FILTER($K$21:$K$31,P21:P31=\"Sim\")),P32))","v":"N/D (são necessários pelo menos 3 preços)"}]
[{"$nulls":13},"Mediana",{"$f":"IF(SUM(COUNTIF($O$12:$O$18,\"Sim\")) + SUM(COUNTIF(O21:O31,\"Sim\")) < 3,\n   \"N/D (são necessários pelo menos 3 preços)\",\n   IFERROR(MEDIAN(_xlfn._xlws.FILTER($K$12:$K$18,$O$12:$O$18=\"Sim\"), _xlfn._xlws.FILTER($K$21:$K$31,O21:O31=\"Sim\")),O33))","v":1500},{"$f":"IF(SUM(COUNTIF($P12:$P$18,\"Sim\")) + SUM(COUNTIF(P21:P31,\"Sim\")) < 3,\n   \"N/D (são necessários pelo menos 3 preços)\",\n   IFERROR(MEDIAN(_xlfn._xlws.FILTER($K$12:$K$18,$P$12:$P$18=\"Sim\"), _xlfn._xlws.FILTER($K$21:$K$31,P21:P31=\"Sim\")),P33))","v":"N/D (são necessários pelo menos 3 preços)"}]
[null,"COSOLIDAÇÃO DOS PREÇOS",{"$nulls":11},"Metodologia a adotar:",{"$f":"IF(INDEX(O20:P20,P37)=0,\"\",INDEX(O20:P20,P37))","v":"Outliers"},1]
[]
[null,"PREÇO UNITÁRIO ESTIMADO ADOTADO:",{"$nulls":9},{"$f":"IF($B$41=\"Mediana:\",L33,L32)","v":1589.67}]
[]
[{"$f":"O20","v":"Outliers"},"Média:"]
[{"$f":"P20","v":"Por critério do(a) analista"}]

{"sheet":"Item 9 - 1;2;3 CV","index":14,"n_rows":42,"n_cols":16,"rows_kept":42,"cut":false,"hidden":false,"merged":[[33,1,35,10],[33,11,35,11],[36,1,37,10],[36,11,37,11],[38,1,38,10],[30,1,30,8],[19,1,19,8],[20,1,20,8],[21,1,21,8],[22,1,22,8],[23,1,23,8],[24,1,24,8],[25,1,25,8],[26,1,26,8],[27,1,27,8],[28,1,28,8],[29,1,29,8],[18,1,18,11],[18,14,18,15],[0,0,0,6],[8,2,8,7],[8,14,8,15],[9,1,9,11],[9,14,9,15]]}
[]
[]
[]
[null,"Processo","59500.003319/2025-65"]
[null,"Responsável","Renato Chaves"]
[null,"Área de Origem","AI/GEE/UEE"]
[null,"Data da pesquisa","2025-09-26"]
[]
[null,"ITEM:","Haste para aterramento, cobreada alta camada, Ø 3/4″ x 2,40 m (Ø 17,3 mm – Efetivo)",{"$nulls":5},"UNIDADE DE MEDIDA:",null,"QUANTIDADE:",null,null,null,"Tabela auxiliar de metodologias para exclusão de preços"]
[null,"LICITAÇÕES ANTERIORES",{"$nulls":12},"Licitações Anteriores"]
[null,"Órgão","Edital/Ano - Nº do Lote / Item","Quantidade","Valor Unitário","Data","índice de atualização (nome)","I0","If","Variação acumulada do índice (%)","Preço unitário atualizado","Utilizar?  (Sim/Não)",null,null,"Outliers","Por critério do(a) analista"]
[{"$nulls":9},{"$f":"IF(ISBLANK(E12),\"\",IF(ISNUMBER(H12),(I12-H12)/H12,0))","v":""},{"$f":"IF(ISBLANK(E12),\"\",E12*(1+J12))","v":""},{"$f":"IF(ISNUMBER(K12),IF($L$34<>$P$11,O12,P12),\"\")","v":""},null,null,{"$f":"IF(ISNUMBER(K12),IF(OR(K12<_xlfn.QUARTILE.INC($K$12:$K$31,1)-1.5*(_xlfn.QUARTILE.INC($K$12:K31,3)-_xlfn.QUARTILE.INC($K$12:$K$31,1)),K12>_xlfn.QUARTILE.INC($K$12:$K$31,3)+1.5*(_xlfn.QUARTILE.INC($K$12:$K$31,3)-_xlfn.QUARTILE.INC($K$12:$K$31,1))),\"Não\",\"Sim\"),\"\")","v":""}]
[{"$nulls":9},"","","",null,null,{"$f":"IF(ISNUMBER(K13),IF(OR(K13<_xlfn.QUARTILE.INC($K$12:$K$31,1)-1.5*(_xlfn.QUARTILE.INC($K$12:K31,3)-_xlfn.QUARTILE.INC($K$12:$K$31,1)),K13>_xlfn.QUARTILE.INC($K$12:$K$31,3)+1.5*(_xlfn.QUARTILE.INC($K$12:$K$31,3)-_xlfn.QUARTILE.INC($K$12:$K$31,1))),\"Não\",\"Sim\"),\"\")","v":""}]
[{"$nulls":9},"","","",null,null,{"$f":"IF(ISNUMBER(K14),IF(OR(K14<_xlfn.QUARTILE.INC($K$12:$K$31,1)-1.5*(_xlfn.QUARTILE.INC($K$12:K32,3)-_xlfn.QUARTILE.INC($K$12:$K$31,1)),K14>_xlfn.QUARTILE.INC($K$12:$K$31,3)+1.5*(_xlfn.QUARTILE.INC($K$12:$K$31,3)-_xlfn.QUARTILE.INC($K$12:$K$31,1))),\"Não\",\"Sim\"),\"\")","v":""}]
[{"$nulls":9},"","","",null,null,{"$f":"IF(ISNUMBER(K15),IF(OR(K15<_xlfn.QUARTILE.INC($K$12:$K$31,1)-1.5*(_xlfn.QUARTILE.INC($K$12:K33,3)-_xlfn.QUARTILE.INC($K$12:$K$31,1)),K15>_xlfn.QUARTILE.INC($K$12:$K$31,3)+1.5*(_xlfn.QUARTILE.INC($K$12:$K$31,3)-_xlfn.QUARTILE.INC($K$12:$K$31,1))),\"Não\",\"Sim\"),\"\")","v":""}]
[{"$nulls":9},"","","",null,null,{"$f":"IF(ISNUMBER(K16),IF(OR(K16<_xlfn.QUARTILE.INC($K$12:$K$31,1)-1.5*(_xlfn.QUARTILE.INC($K$12:K34,3)-_xlfn.QUARTILE.INC($K$12:$K$31,1)),K16>_xlfn.QUARTILE.INC($K$12:$K$31,3)+1.5*(_xlfn.QUARTILE.INC($K$12:$K$31,3)-_xlfn.QUARTILE.INC($K$12:$K$31,1))),\"Não\",\"Sim\"),\"\")","v":""}]
[{"$nulls":9},"","","",null,null,{"$f":"IF(ISNUMBER(K17),IF(OR(K17<_xlfn.QUARTILE.INC($K$12:$K$31,1)-1.5*(_xlfn.QUARTILE.INC($K$12:K37,3)-_xlfn.QUARTILE.INC($K$12:$K$31,1)),K17>_xlfn.QUARTILE.INC($K$12:$K$31,3)+1.5*(_xlfn.QUARTILE.INC($K$12:$K$31,3)-_xlfn.QUARTILE.INC($K$12:$K$31,1))),\"Não\",\"Sim\"),\"\")","v":""}]
[{"$nulls":9},"","","",null,null,{"$f":"IF(ISNUMBER(K18),IF(OR(K18<_xlfn.QUARTILE.INC($K$12:$K$31,1)-1.5*(_xlfn.QUARTILE.INC($I$12:I39,3)-_xlfn.QUARTILE.INC($K$12:$K$31,1)),K18>_xlfn.QUARTILE.INC($K$12:$K$31,3)+1.5*(_xlfn.QUARTILE.INC($K$12:$K$31,3)-_xlfn.QUARTILE.INC($K$12:$K$31,1))),\"Não\",\"Sim\"),\"\")","v":""}]
[null,"COTAÇÕES DE MERCADO",{"$nulls":12},"Cotações"]
[null,"Empresa",{"$nulls":7},"Data","Preço Unitário","Utilizar? (Sim/Não)",null,null,"Outliers","Por critério do(a) analista"]
[null,"https://www.mercadolivre.com.br/barra-de-aterramento-34-x-240-metros-1750mm/up/MLBU1749172842?pdp_filters=item_id:MLB4340457526",{"$nulls":7},"2025-09-26",120.84,{"$f":"IF(ISNUMBER(K21),IF($L$34=$O$20,O21,IF($L$34=$P$20,P21,\"\")),\"\")","v":"Sim"},null,null,{"$f":"IF(ISNUMBER(K21),IF(OR(K21<_xlfn.QUARTILE.INC($K$12:$K$31,1)-1.5*(_xlfn.QUARTILE.INC($K$12:$K$31,3)-_xlfn.QUARTILE.INC($K$12:$K$31,1)),K21>_xlfn.QUARTILE.INC($K$12:$K$31,3)+1.5*(_xlfn.QUARTILE.INC($K$12:$K$31,3)-_xlfn.QUARTILE.INC($K$12:$K$31,1))),\"Não\",\"Sim\"),\"\")","v":"Sim"}]
[null,"https://www.dimensional.com.br/haste-aterramento-ponta-lisa-3-4-2400-mm-baixa-camada-ih834-intelli-/p?idsku=190370&gad_source=4&gad_campaignid=22665017757&gbraid=0AAAAADgOTvs7ZXk6Svmpo4Cz_AjiwSnI9&gclid=Cj0KCQjw58PGBhCkARIsADbDily1vn_z60SfhKKDy1LS5KFcBRxfNmRgIVIFC9tYbNFbzqMX42WGcGAaAgwREALw_wcB",{"$nulls":7},"2025-09-26",156.59,"Sim",null,null,"Sim"]
[null,"https://www.plenobras.com.br/646a59cad496504d21de32da/haste-cobreada-para-aterramento-34%22x24m-alta-camada-olivo?srsltid=AfmBOopOFCV-V5dtZyz_M14gQrnTVL8sJeZVd6UsrRmzf1uZzWGRrl_OM70",{"$nulls":7},"2025-09-26",179.97,"Sim",null,null,"Sim"]
[null,"https://www.sveletrica.com/haste-de-aterramento-baixa-camada-3-4-x-2-40m-ih-0834-2864-00a00002gk/p?idsku=1399&srsltid=AfmBOopPpPsTZzYmca_xcfqH-1tPyvVrQ3dyUJZH6iTb2XtjRLFOPNXMybg",{"$nulls":7},"2025-09-26",109.95,"Sim",null,null,"Sim"]
[{"$nulls":11},"",null,null,""]
[{"$nulls":11},"",null,null,""]
[{"$nulls":11},"",null,null,""]
[{"$nulls":11},"",null,null,""]
[{"$nulls":11},"",null,null,""]
[{"$nulls":11},"",null,null,""]
[{"$nulls":11},"",null,null,""]
[null,"Observações:",{"$nulls":8},"Média:",{"$f":"IF($L$34=\"\",\"Selecione metodologia para exclusão de preços\",AVERAGE(IF($L$12:$L$31=\"Sim\",$K$12:$K$31)))","v":141.84},null,"Média (Cotações)",{"$f":"IF(COUNTIF(O21:O31,\"Sim\")<3,\"N/D (são necessários pelo menos 3 preços)\",AVERAGE(IF(O21:O31=\"Sim\",$K21:$K31)))","v":141.84},{"$f":"IF(COUNTIF(P21:P31,\"Sim\")<3,\"N/D (são necessários pelo menos 3 preços)\",AVERAGE(IF(P21:P31=\"Sim\",$K21:$K31)))","v":"N/D (são necessários pelo menos 3 preços)"}]
[{"$nulls":10},"Mediana:",{"$f":"IF($L$34=\"\",\"Selecione metodologia para exclusão de preços\",MEDIAN(IF($L$12:$L$31=\"Sim\",$K$12:$K$31)))","v":138.72},null,"Mediana (Cotações)",{"$f":"IF(COUNTIF(O21:O31,\"Sim\")<3,\"N/D (são necessários pelo menos 3 preços)\",MEDIAN(IF(O21:O31=\"Sim\",$K21:$K31)))","v":138.72},{"$f":"IF(COUNTIF(P21:P31,\"Sim\")<3,\"N/D (são necessários pelo menos 3 preços)\",MEDIAN(IF(P21:P31=\"Sim\",$K21:$K31)))","v":"N/D (são necessários pelo menos 3 preços)"}]
[null,"Metodologia de exclusão de preços adotada:",{"$nulls":9},{"$f":"IF(O37=\"\",INDEX(O20:P20,MATCH(MIN(#REF!),#REF!,0)),O37)","v":"Outliers"},null,"CV (Cotações)",{"$f":"IF(COUNTIF(O21:O31,\"Sim\")<3,\"N/D (são necessários pelo menos 3 preços)\",_xlfn.STDEV.S(IF(O21:O31=\"Sim\",$K21:$K31))/AVERAGE(IF(O21:O31=\"Sim\",$K21:$K31)))","v":0.22770000000000001},{"$f":"IF(COUNTIF(P21:P31,\"Sim\")<3,\"N/D (são necessários pelo menos 3 preços)\",_xlfn.STDEV.S(IF(P21:P31=\"Sim\",$K21:$K31))/AVERAGE(IF(P21:P31=\"Sim\",$K21:$K31)))","v":"N/D (são necessários pelo menos 3 preços)"}]
[{"$nulls":13},"Média",{"$f":"IF(SUM(COUNTIF($O$12:$O$18,\"Sim\")) + SUM(COUNTIF(O21:O31,\"Sim\")) < 3,\n   \"N/D (são necessários pelo menos 3 preços)\",\n   IFERROR(AVERAGE(_xlfn._xlws.FILTER($K$12:$K$18,$O$12:$O$18=\"Sim\"), _xlfn._xlws.FILTER($K$21:$K$31,O21:O31=\"Sim\")),O32))","v":141.84},{"$f":"IF(SUM(COUNTIF($P$12:$P$18,\"Sim\")) + SUM(COUNTIF(P21:P31,\"Sim\")) < 3,\n   \"N/D (são necessários pelo menos 3 preços)\",\n   IFERROR(AVERAGE(_xlfn._xlws.FILTER($K$12:$K$18,$P$12:$P$18=\"Sim\"), _xlfn._xlws.FILTER($K$21:$K$31,P21:P31=\"Sim\")),P32))","v":"N/D (são necessários pelo menos 3 preços)"}]
[{"$nulls":13},"Mediana",{"$f":"IF(SUM(COUNTIF($O$12:$O$18,\"Sim\")) + SUM(COUNTIF(O21:O31,\"Sim\")) < 3,\n   \"N/D (são necessários pelo menos 3 preços)\",\n   IFERROR(MEDIAN(_xlfn._xlws.FILTER($K$12:$K$18,$O$12:$O$18=\"Sim\"), _xlfn._xlws.FILTER($K$21:$K$31,O21:O31=\"Sim\")),O33))","v":138.72},{"$f":"IF(SUM(COUNTIF($P12:$P$18,\"Sim\")) + SUM(COUNTIF(P21:P31,\"Sim\")) < 3,\n   \"N/D (são necessários pelo menos 3 preços)\",\n   IFERROR(MEDIAN(_xlfn._xlws.FILTER($K$12:$K$18,$P$12:$P$18=\"Sim\"), _xlfn._xlws.FILTER($K$21:$K$31,P21:P31=\"Sim\")),P33))","v":"N/D (são necessários pelo menos 3 preços)"}]
[null,"COSOLIDAÇÃO DOS PREÇOS",{"$nulls":11},"Metodologia a adotar:",{"$f":"IF(INDEX(O20:P20,P37)=0,\"\",INDEX(O20:P20,P37))","v":"Outliers"},1]
[]
[null,"PREÇO UNITÁRIO ESTIMADO ADOTADO:",{"$nulls":9},{"$f":"IF($B$41=\"Mediana:\",L33,L32)","v":141.84}]
[]
[{"$f":"O20","v":"Outliers"},"Média:"]
[{"$f":"P20","v":"Por critério do(a) analista"}]

{"sheet":"Item 12 - 1;2;3 CV","index":15,"n_rows":42,"n_cols":16,"rows_kept":42,"cut":false,"hidden":false,"merged":[[33,1,35,10],[33,11,35,11],[36,1,37,10],[36,11,37,11],[38,1,38,10],[30,1,30,8],[19,1,19,8],[20,1,20,8],[21,1,21,8],[22,1,22,8],[23,1,23,8],[24,1,24,8],[25,1,25,8],[26,1,26,8],[27,1,27,8],[28,1,28,8],[29,1,29,8],[18,1,18,11],[18,14,18,15],[0,0,0,6],[8,2,8,7],[8,14,8,15],[9,1,9,11],[9,14,9,15]]}
[]
[]
[]
[null,"Processo","59500.003319/2025-65"]
[null,"Responsável","Renato Chaves"]
[null,"Área de Origem","AI/GEE/UEE"]
[null,"Data da pesquisa","2025-09-26"]
[]
[null,"ITEM:","String-box CC, composta de: 1 conjunto de DPS por string, com proteção classe II, apropriado para uso em sistemas fotovoltaicos, 1040 Vdc, corrente de descarga máxima 40 kA, corrente de descarga nominal de 18 kA, nível de proteção inferior a 3,5 kV, 3 polos (positivo, negativo e terra), com indicador de operação verde (em serviço) e vermelho (defeito). 1 chave seccionadora de até 32A, para corrente contínua, 1.000 Vdc, 2 polos, adequado para uso em sistemas fotovoltaicos com conexão de condutores de 2,5 até 10 mm², para instalação em trilho DIN e com jumpers tipo barramento. 1 caixa de proteção para stringbox em policarbonato, de sobrepor, trilho DIN, IP 65, proteção UV, e adequada para uso em sistemas fotovoltaicos. Deverão ser fixados através de trilho DIN",{"$nulls":5},"UNIDADE DE MEDIDA:",null,"QUANTIDADE:",null,null,null,"Tabela auxiliar de metodologias para exclusão de preços"]
[null,"LICITAÇÕES ANTERIORES",{"$nulls":12},"Licitações Anteriores"]
[null,"Órgão","Edital/Ano - Nº do Lote / Item","Quantidade","Valor Unitário","Data","índice de atualização (nome)","I0","If","Variação acumulada do índice (%)","Preço unitário atualizado","Utilizar?  (Sim/Não)",null,null,"Outliers","Por critério do(a) analista"]
[{"$nulls":9},{"$f":"IF(ISBLANK(E12),\"\",IF(ISNUMBER(H12),(I12-H12)/H12,0))","v":""},{"$f":"IF(ISBLANK(E12),\"\",E12*(1+J12))","v":""},{"$f":"IF(ISNUMBER(K12),IF($L$34<>$P$11,O12,P12),\"\")","v":""},null,null,{"$f":"IF(ISNUMBER(K12),IF(OR(K12<_xlfn.QUARTILE.INC($K$12:$K$31,1)-1.5*(_xlfn.QUARTILE.INC($K$12:K31,3)-_xlfn.QUARTILE.INC($K$12:$K$31,1)),K12>_xlfn.QUARTILE.INC($K$12:$K$31,3)+1.5*(_xlfn.QUARTILE.INC($K$12:$K$31,3)-_xlfn.QUARTILE.INC($K$12:$K$31,1))),\"Não\",\"Sim\"),\"\")","v":""}]
[{"$nulls":9},"","","",null,null,{"$f":"IF(ISNUMBER(K13),IF(OR(K13<_xlfn.QUARTILE.INC($K$12:$K$31,1)-1.5*(_xlfn.QUARTILE.INC($K$12:K31,3)-_xlfn.QUARTILE.INC($K$12:$K$31,1)),K13>_xlfn.QUARTILE.INC($K$12:$K$31,3)+1.5*(_xlfn.QUARTILE.INC($K$12:$K$31,3)-_xlfn.QUARTILE.INC($K$12:$K$31,1))),\"Não\",\"Sim\"),\"\")","v":""}]
[{"$nulls":9},"","","",null,null,{"$f":"IF(ISNUMBER(K14),IF(OR(K14<_xlfn.QUARTILE.INC($K$12:$K$31,1)-1.5*(_xlfn.QUARTILE.INC($K$12:K32,3)-_xlfn.QUARTILE.INC($K$12:$K$31,1)),K14>_xlfn.QUARTILE.INC($K$12:$K$31,3)+1.5*(_xlfn.QUARTILE.INC($K$12:$K$31,3)-_xlfn.QUARTILE.INC($K$12:$K$31,1))),\"Não\",\"Sim\"),\"\")","v":""}]
[{"$nulls":9},"","","",null,null,{"$f":"IF(ISNUMBER(K15),IF(OR(K15<_xlfn.QUARTILE.INC($K$12:$K$31,1)-1.5*(_xlfn.QUARTILE.INC($K$12:K33,3)-_xlfn.QUARTILE.INC($K$12:$K$31,1)),K15>_xlfn.QUARTILE.INC($K$12:$K$31,3)+1.5*(_xlfn.QUARTILE.INC($K$12:$K$31,3)-_xlfn.QUARTILE.INC($K$12:$K$31,1))),\"Não\",\"Sim\"),\"\")","v":""}]
[{"$nulls":9},"","","",null,null,{"$f":"IF(ISNUMBER(K16),IF(OR(K16<_xlfn.QUARTILE.INC($K$12:$K$31,1)-1.5*(_xlfn.QUARTILE.INC($K$12:K34,3)-_xlfn.QUARTILE.INC($K$12:$K$31,1)),K16>_xlfn.QUARTILE.INC($K$12:$K$31,3)+1.5*(_xlfn.QUARTILE.INC($K$12:$K$31,3)-_xlfn.QUARTILE.INC($K$12:$K$31,1))),\"Não\",\"Sim\"),\"\")","v":""}]
[{"$nulls":9},"","","",null,null,{"$f":"IF(ISNUMBER(K17),IF(OR(K17<_xlfn.QUARTILE.INC($K$12:$K$31,1)-1.5*(_xlfn.QUARTILE.INC($K$12:K37,3)-_xlfn.QUARTILE.INC($K$12:$K$31,1)),K17>_xlfn.QUARTILE.INC($K$12:$K$31,3)+1.5*(_xlfn.QUARTILE.INC($K$12:$K$31,3)-_xlfn.QUARTILE.INC($K$12:$K$31,1))),\"Não\",\"Sim\"),\"\")","v":""}]
[{"$nulls":9},"","","",null,null,{"$f":"IF(ISNUMBER(K18),IF(OR(K18<_xlfn.QUARTILE.INC($K$12:$K$31,1)-1.5*(_xlfn.QUARTILE.INC($I$12:I39,3)-_xlfn.QUARTILE.INC($K$12:$K$31,1)),K18>_xlfn.QUARTILE.INC($K$12:$K$31,3)+1.5*(_xlfn.QUARTILE.INC($K$12:$K$31,3)-_xlfn.QUARTILE.INC($K$12:$K$31,1))),\"Não\",\"Sim\"),\"\")","v":""}]
[null,"COTAÇÕES DE MERCADO",{"$nulls":12},"Cotações"]
[null,"Empresa",{"$nulls":7},"Data","Preço Unitário","Utilizar? (Sim/Não)",null,null,"Outliers","Por critério do(a) analista"]
[null,"https://www.minhacasasolar.com.br/string-box-clamper-solar-sb-1e-1s-1040v-32a-pc-01-01-81380",{"$nulls":7},"2025-09-26",429.03,{"$f":"IF(ISNUMBER(K21),IF($L$34=$O$20,O21,IF($L$34=$P$20,P21,\"\")),\"\")","v":"Sim"},null,null,{"$f":"IF(ISNUMBER(K21),IF(OR(K21<_xlfn.QUARTILE.INC($K$12:$K$31,1)-1.5*(_xlfn.QUARTILE.INC($K$12:$K$31,3)-_xlfn.QUARTILE.INC($K$12:$K$31,1)),K21>_xlfn.QUARTILE.INC($K$12:$K$31,3)+1.5*(_xlfn.QUARTILE.INC($K$12:$K$31,3)-_xlfn.QUARTILE.INC($K$12:$K$31,1))),\"Não\",\"Sim\"),\"\")","v":"Sim"}]
[null,"NEOSOLAR ENERGIA LTDA - CNPJ 12.420.339/0003-98",{"$nulls":7},"2025-09-26",462.35,"Sim",null,null,"Sim"]
[null,"https://www.magazineluiza.com.br/stringbox-01-entradas-01-saidas-32a-1040v-clamper-sbc-01-01/p/dkj55kkg5g/cj/rrle/?seller_id=minhacasasolar&region_id=123462&utm_source=google&utm_medium=cpc&utm_term=80674&utm_campaign=google_eco_per_ven_pla_ca_sor_3p_ci-cj-csp&utm_content=&partner_id=80674&gclsrc=aw.ds&gad_source=4&gad_campaignid=22825521530&gbraid=0AAAAAD4zZmToFafzlDmRMQ9Eu65MlTvBZ&gclid=CjwKCAjw89jGBhB0EiwA2o1On_rmXQaQIzD3BFm1hT2W2NmnjZxBMFuWxZB_xcE0rBY0HXOzZhVCXhoCaeYQAvD_BwE",{"$nulls":7},"2025-09-26",489.1,"Sim",null,null,"Sim"]
[null,"https://www.andra.com.br/caixa-padrao-solar-string-box-1040v-32a-1-entrada-1-saida-020007-clamper/p?idsku=14371&gad_source=4&gad_campaignid=21096278380&gbraid=0AAAAApkqR1sjLbfYuUZa_-9TvEkvR8br6&gclid=CjwKCAjw89jGBhB0EiwA2o1On_zn05_yMgXMvvUEFmO2vMTty45IrDLddxu1a73xth_ia_BDUAhUBRoC8EAQAvD_BwE",{"$nulls":7},"2025-09-26",565.66,"Sim",null,null,"Sim"]
[null,"https://www.eletrotrafo.com.br/quadro-string-box-2e-2s-sb-1040v-32a-ref--020008-clamper-07660017/p?idsku=9384&gad_source=4&gad_campaignid=19733025744&gbraid=0AAAAAClsUAPbx4Rt0Za1dIXQtQy1ORdvC&gclid=CjwKCAjw89jGBhB0EiwA2o1On2vcJNX0k_dEX_S9m_v1-zZuxpHmpGk0uuawPa2tpfujM43vI1MS_xoC1CsQAvD_BwE",{"$nulls":7},"2025-09-26",628.99,"Sim",null,null,"Sim"]
[{"$nulls":11},"",null,null,""]
[{"$nulls":11},"",null,null,""]
[{"$nulls":11},"",null,null,""]
[{"$nulls":11},"",null,null,""]
[{"$nulls":11},"",null,null,""]
[{"$nulls":11},"",null,null,""]
[null,"Observações:",{"$nulls":8},"Média:",{"$f":"IF($L$34=\"\",\"Selecione metodologia para exclusão de preços\",AVERAGE(IF($L$12:$L$31=\"Sim\",$K$12:$K$31)))","v":515.03},null,"Média (Cotações)",{"$f":"IF(COUNTIF(O21:O31,\"Sim\")<3,\"N/D (são necessários pelo menos 3 preços)\",AVERAGE(IF(O21:O31=\"Sim\",$K21:$K31)))","v":515.03},{"$f":"IF(COUNTIF(P21:P31,\"Sim\")<3,\"N/D (são necessários pelo menos 3 preços)\",AVERAGE(IF(P21:P31=\"Sim\",$K21:$K31)))","v":"N/D (são necessários pelo menos 3 preços)"}]
[{"$nulls":10},"Mediana:",{"$f":"IF($L$34=\"\",\"Selecione metodologia para exclusão de preços\",MEDIAN(IF($L$12:$L$31=\"Sim\",$K$12:$K$31)))","v":489.1},null,"Mediana (Cotações)",{"$f":"IF(COUNTIF(O21:O31,\"Sim\")<3,\"N/D (são necessários pelo menos 3 preços)\",MEDIAN(IF(O21:O31=\"Sim\",$K21:$K31)))","v":489.1},{"$f":"IF(COUNTIF(P21:P31,\"Sim\")<3,\"N/D (são necessários pelo menos 3 preços)\",MEDIAN(IF(P21:P31=\"Sim\",$K21:$K31)))","v":"N/D (são necessários pelo menos 3 preços)"}]
[null,"Metodologia de exclusão de preços adotada:",{"$nulls":9},{"$f":"IF(O37=\"\",INDEX(O20:P20,MATCH(MIN(#REF!),#REF!,0)),O37)","v":"Outliers"},null,"CV (Cotações)",{"$f":"IF(COUNTIF(O21:O31,\"Sim\")<3,\"N/D (são necessários pelo menos 3 preços)\",_xlfn.STDEV.S(IF(O21:O31=\"Sim\",$K21:$K31))/AVERAGE(IF(O21:O31=\"Sim\",$K21:$K31)))","v":0.15770000000000001},{"$f":"IF(COUNTIF(P21:P31,\"Sim\")<3,\"N/D (são necessários pelo menos 3 preços)\",_xlfn.STDEV.S(IF(P21:P31=\"Sim\",$K21:$K31))/AVERAGE(IF(P21:P31=\"Sim\",$K21:$K31)))","v":"N/D (são necessários pelo menos 3 preços)"}]
[{"$nulls":13},"Média",{"$f":"IF(SUM(COUNTIF($O$12:$O$18,\"Sim\")) + SUM(COUNTIF(O21:O31,\"Sim\")) < 3,\n   \"N/D (são necessários pelo menos 3 preços)\",\n   IFERROR(AVERAGE(_xlfn._xlws.FILTER($K$12:$K$18,$O$12:$O$18=\"Sim\"), _xlfn._xlws.FILTER($K$21:$K$31,O21:O31=\"Sim\")),O32))","v":515.03},{"$f":"IF(SUM(COUNTIF($P$12:$P$18,\"Sim\")) + SUM(COUNTIF(P21:P31,\"Sim\")) < 3,\n   \"N/D (são necessários pelo menos 3 preços)\",\n   IFERROR(AVERAGE(_xlfn._xlws.FILTER($K$12:$K$18,$P$12:$P$18=\"Sim\"), _xlfn._xlws.FILTER($K$21:$K$31,P21:P31=\"Sim\")),P32))","v":"N/D (são necessários pelo menos 3 preços)"}]
[{"$nulls":13},"Mediana",{"$f":"IF(SUM(COUNTIF($O$12:$O$18,\"Sim\")) + SUM(COUNTIF(O21:O31,\"Sim\")) < 3,\n   \"N/D (são necessários pelo menos 3 preços)\",\n   IFERROR(MEDIAN(_xlfn._xlws.FILTER($K$12:$K$18,$O$12:$O$18=\"Sim\"), _xlfn._xlws.FILTER($K$21:$K$31,O21:O31=\"Sim\")),O33))","v":489.1},{"$f":"IF(SUM(COUNTIF($P12:$P$18,\"Sim\")) + SUM(COUNTIF(P21:P31,\"Sim\")) < 3,\n   \"N/D (são necessários pelo menos 3 preços)\",\n   IFERROR(MEDIAN(_xlfn._xlws.FILTER($K$12:$K$18,$P$12:$P$18=\"Sim\"), _xlfn._xlws.FILTER($K$21:$K$31,P21:P31=\"Sim\")),P33))","v":"N/D (são necessários pelo menos 3 preços)"}]
[null,"COSOLIDAÇÃO DOS PREÇOS",{"$nulls":11},"Metodologia a adotar:",{"$f":"IF(INDEX(O20:P20,P37)=0,\"\",INDEX(O20:P20,P37))","v":"Outliers"},1]
[]
[null,"PREÇO UNITÁRIO ESTIMADO ADOTADO:",{"$nulls":9},{"$f":"IF($B$41=\"Mediana:\",L33,L32)","v":515.03}]
[]
[{"$f":"O20","v":"Outliers"},"Média:"]
[{"$f":"P20","v":"Por critério do(a) analista"}]

{"sheet":"Item 1 - 3 CV","index":16,"n_rows":42,"n_cols":16,"rows_kept":42,"cut":false,"hidden":false,"merged":[[33,1,35,10],[33,11,35,11],[36,1,37,10],[36,11,37,11],[38,1,38,10],[30,1,30,8],[19,1,19,8],[20,1,20,8],[21,1,21,8],[22,1,22,8],[23,1,23,8],[24,1,24,8],[25,1,25,8],[26,1,26,8],[27,1,27,8],[28,1,28,8],[29,1,29,8],[18,1,18,11],[18,14,18,15],[0,0,0,6],[8,2,8,7],[8,14,8,15],[9,1,9,11],[9,14,9,15]]}
[]
[]
[]
[null,"Processo","59500.003319/2025-65"]
[null,"Responsável","Renato Chaves"]
[null,"Área de Origem","AI/GEE/UEE"]
[null,"Data da pesquisa","2025-09-26"]
[]
[null,"ITEM:","Módulo Fotovoltaico, com potência de 700 Wp STC, (ou de potência suficiente para o correto funcionamento do sistema), estrutura em liga de alumínio anodizado, caixa de junção IP 68, três diodos, eficiência superior a 19%, degradação no primeiro ano inferior a 3%, degradação do ano 2 ao 30 inferior a 0,5% ao ano, 10 anos de garantia, 20 anos de garantia de potência linear.",{"$nulls":5},"UNIDADE DE MEDIDA:","UND","QUANTIDADE:",null,null,null,"Tabela auxiliar de metodologias para exclusão de preços"]
[null,"LICITAÇÕES ANTERIORES",{"$nulls":12},"Licitações Anteriores"]
[null,"Órgão","Edital/Ano - Nº do Lote / Item","Quantidade","Valor Unitário","Data","índice de atualização (nome)","I0","If","Variação acumulada do índice (%)","Preço unitário atualizado","Utilizar?  (Sim/Não)",null,null,"Outliers","Por critério do(a) analista"]
[{"$nulls":9},{"$f":"IF(ISBLANK(E12),\"\",IF(ISNUMBER(H12),(I12-H12)/H12,0))","v":""},{"$f":"IF(ISBLANK(E12),\"\",E12*(1+J12))","v":""},{"$f":"IF(ISNUMBER(K12),IF($L$34<>$P$11,O12,P12),\"\")","v":""},null,null,{"$f":"IF(ISNUMBER(K12),IF(OR(K12<_xlfn.QUARTILE.INC($K$12:$K$31,1)-1.5*(_xlfn.QUARTILE.INC($K$12:$K$31,3)-_xlfn.QUARTILE.INC($K$12:$K$31,1)),K12>_xlfn.QUARTILE.INC($K$12:$K$31,3)+1.5*(_xlfn.QUARTILE.INC($K$12:$K$31,3)-_xlfn.QUARTILE.INC($K$12:$K$31,1))),\"Não\",\"Sim\"),\"\")","v":""}]
[{"$nulls":9},"","","",null,null,""]
[{"$nulls":9},"","","",null,null,""]
[{"$nulls":9},"","","",null,null,""]
[{"$nulls":9},"","","",null,null,""]
[{"$nulls":9},"","","",null,null,""]
[{"$nulls":9},"","","",null,null,""]
[null,"COTAÇÕES DE MERCADO",{"$nulls":12},"Cotações"]
[null,"Empresa",{"$nulls":7},"Data","Preço Unitário","Utilizar? (Sim/Não)",null,null,"Outliers","Por critério do(a) analista"]
[null,"https://recargasolar.shop/produtos/painel-solar-700w-trina-n-type-bifacial/?gad_source=4&gad_campaignid=22444455006&gbraid=0AAAAAqbM9HYgOm-N_j3-yT_iqLaYmXDXq&gclid=Cj0KCQjw3aLHBhDTARIsAIRij5_NzJlFmoCMAPmogN0aqV3G3Ac6RTxuNt54navynTDfcS4MSW2XU2YaAqH1EALw_wcB",{"$nulls":8},699,{"$f":"IF(ISNUMBER(K21),IF($L$34=$O$20,O21,IF($L$34=$P$20,P21,\"\")),\"\")","v":"Sim"},null,null,{"$f":"IF(ISNUMBER(K21),IF(OR(K21<_xlfn.QUARTILE.INC($K$12:$K$31,1)-1.5*(_xlfn.QUARTILE.INC($K$12:$K$31,3)-_xlfn.QUARTILE.INC($K$12:$K$31,1)),K21>_xlfn.QUARTILE.INC($K$12:$K$31,3)+1.5*(_xlfn.QUARTILE.INC($K$12:$K$31,3)-_xlfn.QUARTILE.INC($K$12:$K$31,1))),\"Não\",\"Sim\"),\"\")","v":"Sim"}]
[null,"https://www.apexenergiasolar.com.br/painel-solar/painel-solar-700w-dah-solar-bifacial?srsltid=AfmBOorgEryWImOfDCyomV622Q9x79ETQH-8aF9-JDq5s8czPEsDKzq2vdE",{"$nulls":8},900.06,"Sim",null,null,"Sim"]
[null,"https://www.lojaeletrica.com.br/painel-solar-700w-132-celulas-monocristalino-n-type-bifacial-trina.html?mp_feed=MTozOmRCU0kvODdRSjZuOVZNdDVTVlFzOVZ6bDRXdlVkc3dpV3NtcHo2ND0=&srsltid=AfmBOoo9I7mf0yKCbXt07r8F1QouYzNyQZJLmOSv3XxRhzzWhkJ1Obsqv_A",{"$nulls":8},1030.5999999999999,"Sim",null,null,"Sim"]
[null,"https://www.buyersenergy.com.br/produtos/painel-solar-700w-bifacial-renepv/?variant=1327859114&pf=mc&srsltid=AfmBOop6DxN6BMX1kUkZb8YxOTh672gKOEPyGYkH3has8XLuclFhmGtIhHs",{"$nulls":8},734,"Sim",null,null,"Sim"]
[{"$nulls":11},"",null,null,""]
[{"$nulls":11},"",null,null,""]
[{"$nulls":11},"",null,null,""]
[{"$nulls":11},"",null,null,""]
[{"$nulls":11},"",null,null,""]
[{"$nulls":11},"",null,null,""]
[{"$nulls":11},"",null,null,""]
[null,"Observações:",{"$nulls":8},"Média:",{"$f":"IF($L$34=\"\",\"Selecione metodologia para exclusão de preços\",AVERAGE(IF($L$12:$L$31=\"Sim\",$K$12:$K$31)))","v":840.92},null,"Média (Cotações)",{"$f":"IF(COUNTIF(O21:O31,\"Sim\")<3,\"N/D (são necessários pelo menos 3 preços)\",AVERAGE(IF(O21:O31=\"Sim\",$K21:$K31)))","v":840.92},{"$f":"IF(COUNTIF(P21:P31,\"Sim\")<3,\"N/D (são necessários pelo menos 3 preços)\",AVERAGE(IF(P21:P31=\"Sim\",$K21:$K31)))","v":"N/D (são necessários pelo menos 3 preços)"}]
[{"$nulls":10},"Mediana:",{"$f":"IF($L$34=\"\",\"Selecione metodologia para exclusão de preços\",MEDIAN(IF($L$12:$L$31=\"Sim\",$K$12:$K$31)))","v":817.03},null,"Mediana (Cotações)",{"$f":"IF(COUNTIF(O21:O31,\"Sim\")<3,\"N/D (são necessários pelo menos 3 preços)\",MEDIAN(IF(O21:O31=\"Sim\",$K21:$K31)))","v":817.03},{"$f":"IF(COUNTIF(P21:P31,\"Sim\")<3,\"N/D (são necessários pelo menos 3 preços)\",MEDIAN(IF(P21:P31=\"Sim\",$K21:$K31)))","v":"N/D (são necessários pelo menos 3 preços)"}]
[null,"Metodologia de exclusão de preços adotada:",{"$nulls":9},{"$f":"IF(O37=\"\",INDEX(O20:P20,MATCH(MIN(#REF!),#REF!,0)),O37)","v":"Outliers"},null,"CV (Cotações)",{"$f":"IF(COUNTIF(O21:O31,\"Sim\")<3,\"N/D (são necessários pelo menos 3 preços)\",_xlfn.STDEV.S(IF(O21:O31=\"Sim\",$K21:$K31))/AVERAGE(IF(O21:O31=\"Sim\",$K21:$K31)))","v":0.183},{"$f":"IF(COUNTIF(P21:P31,\"Sim\")<3,\"N/D (são necessários pelo menos 3 preços)\",_xlfn.STDEV.S(IF(P21:P31=\"Sim\",$K21:$K31))/AVERAGE(IF(P21:P31=\"Sim\",$K21:$K31)))","v":"N/D (são necessários pelo menos 3 preços)"}]
[{"$nulls":13},"Média",{"$f":"IF(SUM(COUNTIF($O$12:$O$18,\"Sim\")) + SUM(COUNTIF(O21:O31,\"Sim\")) < 3,\n   \"N/D (são necessários pelo menos 3 preços)\",\n   IFERROR(AVERAGE(_xlfn._xlws.FILTER($K$12:$K$18,$O$12:$O$18=\"Sim\"), _xlfn._xlws.FILTER($K$21:$K$31,O21:O31=\"Sim\")),O32))","v":840.92},{"$f":"IF(SUM(COUNTIF($P$12:$P$18,\"Sim\")) + SUM(COUNTIF(P21:P31,\"Sim\")) < 3,\n   \"N/D (são necessários pelo menos 3 preços)\",\n   IFERROR(AVERAGE(_xlfn._xlws.FILTER($K$12:$K$18,$P$12:$P$18=\"Sim\"), _xlfn._xlws.FILTER($K$21:$K$31,P21:P31=\"Sim\")),P32))","v":"N/D (são necessários pelo menos 3 preços)"}]
[{"$nulls":13},"Mediana",{"$f":"IF(SUM(COUNTIF($O$12:$O$18,\"Sim\")) + SUM(COUNTIF(O21:O31,\"Sim\")) < 3,\n   \"N/D (são necessários pelo menos 3 preços)\",\n   IFERROR(MEDIAN(_xlfn._xlws.FILTER($K$12:$K$18,$O$12:$O$18=\"Sim\"), _xlfn._xlws.FILTER($K$21:$K$31,O21:O31=\"Sim\")),O33))","v":817.03},{"$f":"IF(SUM(COUNTIF($P12:$P$18,\"Sim\")) + SUM(COUNTIF(P21:P31,\"Sim\")) < 3,\n   \"N/D (são necessários pelo menos 3 preços)\",\n   IFERROR(MEDIAN(_xlfn._xlws.FILTER($K$12:$K$18,$P$12:$P$18=\"Sim\"), _xlfn._xlws.FILTER($K$21:$K$31,P21:P31=\"Sim\")),P33))","v":"N/D (são necessários pelo menos 3 preços)"}]
[null,"COSOLIDAÇÃO DOS PREÇOS",{"$nulls":11},"Metodologia a adotar:",{"$f":"IF(INDEX(O20:P20,P37)=0,\"\",INDEX(O20:P20,P37))","v":"Outliers"},1]
[]
[null,"PREÇO UNITÁRIO ESTIMADO ADOTADO:",{"$nulls":9},{"$f":"IF($B$41=\"Mediana:\",L33,L32)","v":840.92}]
[]
[{"$f":"O20","v":"Outliers"},"Média:"]
[{"$f":"P20","v":"Por critério do(a) analista"}]

{"sheet":"Item 3 - 2 CV","index":17,"n_rows":41,"n_cols":16,"rows_kept":41,"cut":false,"hidden":false,"merged":[[32,11,34,11],[35,1,36,10],[35,11,36,11],[37,1,37,10],[25,1,25,8],[26,1,26,8],[27,1,27,8],[28,1,28,8],[29,1,29,8],[32,1,34,10],[24,1,24,8],[0,0,0,6],[8,2,8,7],[8,14,8,15],[9,1,9,11],[9,14,9,15],[18,1,18,11],[18,14,18,15],[19,1,19,8],[20,1,20,8],[21,1,21,8],[22,1,22,8],[23,1,23,8]]}
[]
[]
[]
[null,"Processo","59500.003319/2025-65"]
[null,"Responsável","Renato Chaves"]
[null,"Área de Origem","AI/GEE/UEE"]
[null,"Data da pesquisa","2025-09-26"]
[]
[null,"ITEM:","Estrutura de solo para módulos fotovoltaicos, 6 módulos instalados, pilastra travessa e mão francesa em aço galvanizado a fogo, longarina e acessórios em alumínio. Inclui todos os acessórios para correta fixação dos painéis.",{"$nulls":5},"UNIDADE DE MEDIDA:","Unidade","QUANTIDADE:",null,null,null,"Tabela auxiliar de metodologias para exclusão de preços"]
[null,"LICITAÇÕES ANTERIORES",{"$nulls":12},"Licitações Anteriores"]
[null,"Órgão","Edital/Ano - Nº do Lote / Item","Quantidade","Valor Unitário","Data","índice de atualização (nome)","I0","If","Variação acumulada do índice (%)","Preço unitário atualizado","Utilizar?  (Sim/Não)",null,null,"Outliers","Por critério do(a) analista"]
[{"$nulls":9},{"$f":"IF(ISBLANK(E12),\"\",IF(ISNUMBER(H12),(I12-H12)/H12,0))","v":""},{"$f":"IF(ISBLANK(E12),\"\",E12*(1+J12))","v":""},{"$f":"IF(ISNUMBER(K12),IF($L$33<>$P$11,O12,P12),\"\")","v":""},null,null,{"$f":"IF(ISNUMBER(K12),IF(OR(K12<_xlfn.QUARTILE.INC($K$12:$K$30,1)-1.5*(_xlfn.QUARTILE.INC($K$12:K30,3)-_xlfn.QUARTILE.INC($K$12:$K$30,1)),K12>_xlfn.QUARTILE.INC($K$12:$K$30,3)+1.5*(_xlfn.QUARTILE.INC($K$12:$K$30,3)-_xlfn.QUARTILE.INC($K$12:$K$30,1))),\"Não\",\"Sim\"),\"\")","v":""}]
[{"$nulls":9},"","","",null,null,{"$f":"IF(ISNUMBER(K13),IF(OR(K13<_xlfn.QUARTILE.INC($K$12:$K$30,1)-1.5*(_xlfn.QUARTILE.INC($K$12:K30,3)-_xlfn.QUARTILE.INC($K$12:$K$30,1)),K13>_xlfn.QUARTILE.INC($K$12:$K$30,3)+1.5*(_xlfn.QUARTILE.INC($K$12:$K$30,3)-_xlfn.QUARTILE.INC($K$12:$K$30,1))),\"Não\",\"Sim\"),\"\")","v":""}]
[{"$nulls":9},"","","",null,null,{"$f":"IF(ISNUMBER(K14),IF(OR(K14<_xlfn.QUARTILE.INC($K$12:$K$30,1)-1.5*(_xlfn.QUARTILE.INC($K$12:K31,3)-_xlfn.QUARTILE.INC($K$12:$K$30,1)),K14>_xlfn.QUARTILE.INC($K$12:$K$30,3)+1.5*(_xlfn.QUARTILE.INC($K$12:$K$30,3)-_xlfn.QUARTILE.INC($K$12:$K$30,1))),\"Não\",\"Sim\"),\"\")","v":""}]
[{"$nulls":9},"","","",null,null,{"$f":"IF(ISNUMBER(K15),IF(OR(K15<_xlfn.QUARTILE.INC($K$12:$K$30,1)-1.5*(_xlfn.QUARTILE.INC($K$12:K32,3)-_xlfn.QUARTILE.INC($K$12:$K$30,1)),K15>_xlfn.QUARTILE.INC($K$12:$K$30,3)+1.5*(_xlfn.QUARTILE.INC($K$12:$K$30,3)-_xlfn.QUARTILE.INC($K$12:$K$30,1))),\"Não\",\"Sim\"),\"\")","v":""}]
[{"$nulls":9},"","","",null,null,{"$f":"IF(ISNUMBER(K16),IF(OR(K16<_xlfn.QUARTILE.INC($K$12:$K$30,1)-1.5*(_xlfn.QUARTILE.INC($K$12:K33,3)-_xlfn.QUARTILE.INC($K$12:$K$30,1)),K16>_xlfn.QUARTILE.INC($K$12:$K$30,3)+1.5*(_xlfn.QUARTILE.INC($K$12:$K$30,3)-_xlfn.QUARTILE.INC($K$12:$K$30,1))),\"Não\",\"Sim\"),\"\")","v":""}]
[{"$nulls":9},"","","",null,null,{"$f":"IF(ISNUMBER(K17),IF(OR(K17<_xlfn.QUARTILE.INC($K$12:$K$30,1)-1.5*(_xlfn.QUARTILE.INC($K$12:K36,3)-_xlfn.QUARTILE.INC($K$12:$K$30,1)),K17>_xlfn.QUARTILE.INC($K$12:$K$30,3)+1.5*(_xlfn.QUARTILE.INC($K$12:$K$30,3)-_xlfn.QUARTILE.INC($K$12:$K$30,1))),\"Não\",\"Sim\"),\"\")","v":""}]
[{"$nulls":9},"","","",null,null,{"$f":"IF(ISNUMBER(K18),IF(OR(K18<_xlfn.QUARTILE.INC($K$12:$K$30,1)-1.5*(_xlfn.QUARTILE.INC($I$12:I38,3)-_xlfn.QUARTILE.INC($K$12:$K$30,1)),K18>_xlfn.QUARTILE.INC($K$12:$K$30,3)+1.5*(_xlfn.QUARTILE.INC($K$12:$K$30,3)-_xlfn.QUARTILE.INC($K$12:$K$30,1))),\"Não\",\"Sim\"),\"\")","v":""}]
[null,"COTAÇÕES DE MERCADO",{"$nulls":12},"Cotações"]
[null,"Empresa",{"$nulls":7},"Data","Preço Unitário","Utilizar? (Sim/Não)",null,null,"Outliers","Por critério do(a) analista"]
[null,"https://www.martinsenergy.com.br/j6sicoi0d-estrutura-solar-solar-group-kit-fixacao-triangulo-laje?srsltid=AfmBOooecxuIxIS5omHMzCa9WdMtyxCMVcxzrXJTr7gRLWKMs1sT2eA60eg",{"$nulls":7},"2025-09-26",1633.9,{"$f":"IF(ISNUMBER(K21),IF($L$33=$O$20,O21,IF($L$33=$P$20,P21,\"\")),\"\")","v":"Sim"},null,null,{"$f":"IF(ISNUMBER(K21),IF(OR(K21<_xlfn.QUARTILE.INC($K$12:$K$30,1)-1.5*(_xlfn.QUARTILE.INC($K$12:$K$30,3)-_xlfn.QUARTILE.INC($K$12:$K$30,1)),K21>_xlfn.QUARTILE.INC($K$12:$K$30,3)+1.5*(_xlfn.QUARTILE.INC($K$12:$K$30,3)-_xlfn.QUARTILE.INC($K$12:$K$30,1))),\"Não\",\"Sim\"),\"\")","v":"Sim"}]
[null,"https://www.montrial.com/carports-solar-estrutura-de-garagem-solar-sequencial-para-modulos-solares-com-/prod-10676165/",{"$nulls":7},"2025-09-26",1982.38,"Sim",null,null,"Sim"]
[null,"PERFIX SOLAR SUPORTES EM ALUMÍNIO - CNPJ 21.117.016/0001-59",{"$nulls":7},"2025-09-26",1073.1199999999999,"Sim",null,null,"Sim"]
[null,"MODULAR ESTRUTURAS EM AÇO LTDA - CNPJ 34.743.124/0001-89",{"$nulls":7},"2025-09-26",1016.7,"Sim",null,null,"Sim"]
[{"$nulls":11},"",null,null,""]
[{"$nulls":11},"",null,null,""]
[{"$nulls":11},"",null,null,""]
[{"$nulls":11},"",null,null,""]
[{"$nulls":11},"",null,null,""]
[{"$nulls":11},"",null,null,""]
[null,"Observações:",{"$nulls":8},"Média:",{"$f":"IF($L$33=\"\",\"Selecione metodologia para exclusão de preços\",AVERAGE(IF($L$12:$L$30=\"Sim\",$K$12:$K$30)))","v":1426.53},null,"Média (Cotações)",{"$f":"IF(COUNTIF(O21:O30,\"Sim\")<3,\"N/D (são necessários pelo menos 3 preços)\",AVERAGE(IF(O21:O30=\"Sim\",$K21:$K30)))","v":1426.53},{"$f":"IF(COUNTIF(P21:P30,\"Sim\")<3,\"N/D (são necessários pelo menos 3 preços)\",AVERAGE(IF(P21:P30=\"Sim\",$K21:$K30)))","v":"N/D (são necessários pelo menos 3 preços)"}]
[{"$nulls":10},"Mediana:",{"$f":"IF($L$33=\"\",\"Selecione metodologia para exclusão de preços\",MEDIAN(IF($L$12:$L$30=\"Sim\",$K$12:$K$30)))","v":1353.51},null,"Mediana (Cotações)",{"$f":"IF(COUNTIF(O21:O30,\"Sim\")<3,\"N/D (são necessários pelo menos 3 preços)\",MEDIAN(IF(O21:O30=\"Sim\",$K21:$K30)))","v":1353.51},{"$f":"IF(COUNTIF(P21:P30,\"Sim\")<3,\"N/D (são necessários pelo menos 3 preços)\",MEDIAN(IF(P21:P30=\"Sim\",$K21:$K30)))","v":"N/D (são necessários pelo menos 3 preços)"}]
[null,"Metodologia de exclusão de preços adotada:",{"$nulls":9},{"$f":"IF(O36=\"\",INDEX(O20:P20,MATCH(MIN(#REF!),#REF!,0)),O36)","v":"Outliers"},null,"CV (Cotações)",{"$f":"IF(COUNTIF(O21:O30,\"Sim\")<3,\"N/D (são necessários pelo menos 3 preços)\",_xlfn.STDEV.S(IF(O21:O30=\"Sim\",$K21:$K30))/AVERAGE(IF(O21:O30=\"Sim\",$K21:$K30)))","v":0.32500000000000001},{"$f":"IF(COUNTIF(P21:P30,\"Sim\")<3,\"N/D (são necessários pelo menos 3 preços)\",_xlfn.STDEV.S(IF(P21:P30=\"Sim\",$K21:$K30))/AVERAGE(IF(P21:P30=\"Sim\",$K21:$K30)))","v":"N/D (são necessários pelo menos 3 preços)"}]
[{"$nulls":13},"Média",{"$f":"IF(SUM(COUNTIF($O$12:$O$18,\"Sim\")) + SUM(COUNTIF(O21:O30,\"Sim\")) < 3,\n   \"N/D (são necessários pelo menos 3 preços)\",\n   IFERROR(AVERAGE(_xlfn._xlws.FILTER($K$12:$K$18,$O$12:$O$18=\"Sim\"), _xlfn._xlws.FILTER($K$21:$K$30,O21:O30=\"Sim\")),O31))","v":1426.53},{"$f":"IF(SUM(COUNTIF($P$12:$P$18,\"Sim\")) + SUM(COUNTIF(P21:P30,\"Sim\")) < 3,\n   \"N/D (são necessários pelo menos 3 preços)\",\n   IFERROR(AVERAGE(_xlfn._xlws.FILTER($K$12:$K$18,$P$12:$P$18=\"Sim\"), _xlfn._xlws.FILTER($K$21:$K$30,P21:P30=\"Sim\")),P31))","v":"N/D (são necessários pelo menos 3 preços)"}]
[{"$nulls":13},"Mediana",{"$f":"IF(SUM(COUNTIF($O$12:$O$18,\"Sim\")) + SUM(COUNTIF(O21:O30,\"Sim\")) < 3,\n   \"N/D (são necessários pelo menos 3 preços)\",\n   IFERROR(MEDIAN(_xlfn._xlws.FILTER($K$12:$K$18,$O$12:$O$18=\"Sim\"), _xlfn._xlws.FILTER($K$21:$K$30,O21:O30=\"Sim\")),O32))","v":1353.51},{"$f":"IF(SUM(COUNTIF($P12:$P$18,\"Sim\")) + SUM(COUNTIF(P21:P30,\"Sim\")) < 3,\n   \"N/D (são necessários pelo menos 3 preços)\",\n   IFERROR(MEDIAN(_xlfn._xlws.FILTER($K$12:$K$18,$P$12:$P$18=\"Sim\"), _xlfn._xlws.FILTER($K$21:$K$30,P21:P30=\"Sim\")),P32))","v":"N/D (são necessários pelo menos 3 preços)"}]
[null,"COSOLIDAÇÃO DOS PREÇOS",{"$nulls":11},"Metodologia a adotar:",{"$f":"IF(INDEX(O20:P20,P36)=0,\"\",INDEX(O20:P20,P36))","v":"Outliers"},1]
[]
[null,"PREÇO UNITÁRIO ESTIMADO ADOTADO:",{"$nulls":9},{"$f":"IF($B$40=\"Mediana:\",L32,L31)","v":1426.53}]
[]
[{"$f":"O20","v":"Outliers"},"Média:"]
[{"$f":"P20","v":"Por critério do(a) analista"}]

{"sheet":"Item 6 - 2 CV","index":18,"n_rows":40,"n_cols":16,"rows_kept":40,"cut":false,"hidden":false,"merged":[[31,1,33,10],[31,11,33,11],[34,1,35,10],[34,11,35,11],[36,1,36,10],[24,1,24,8],[25,1,25,8],[26,1,26,8],[27,1,27,8],[28,1,28,8],[19,1,19,8],[20,1,20,8],[21,1,21,8],[22,1,22,8],[23,1,23,8],[18,1,18,11],[18,14,18,15],[0,0,0,6],[8,2,8,7],[8,14,8,15],[9,1,9,11],[9,14,9,15]]}
[]
[]
[]
[null,"Processo","59500.003319/2025-65"]
[null,"Responsável","Renato Chaves"]
[null,"Área de Origem","AI/GEE/UEE"]
[null,"Data da pesquisa","2025-09-26"]
[]
[null,"ITEM:","Driver solar fotovoltaico, apropriado para motores de 2 CV, operação off-grid: Eficiência mínima 95%, grau de proteção IP20, resfriamento natural ou com cooler integrado, garantia mínima de 5 anos, tensão de saída compatível com a motobomba, frequência 60 Hz, com sistema de partida suave da bomba e controle de velocidade, atender em plenitude os requisitos do sistema a ser instalado. Entrada de corrente contínua (CC) compatível com a quantidade de painéis fotovoltaicos propostos, com no mínimo 1 MPPT (maximum power point tracking) com faixa de tensão de operação compatível com os módulos fotovoltaicos, baixa tensão mínima para funcionamento. Saída de corrente alternada (CA) compatível com o sistema projetado, até 2 CV, temperatura de operação até 60 ºC, trifásico ou monofásico. Possuir, no mínimo as seguintes proteções: Sub e sobre tensão CC, sobreaquecimento, surtos de tensão (CC), proteção de bomba travada, proteção de curto-circuito, proteção contra funcionamento a seco e sobrecarga. ",{"$nulls":5},"UNIDADE DE MEDIDA:","Unidade","QUANTIDADE:",null,null,null,"Tabela auxiliar de metodologias para exclusão de preços"]
[null,"LICITAÇÕES ANTERIORES",{"$nulls":12},"Licitações Anteriores"]
[null,"Órgão","Edital/Ano - Nº do Lote / Item","Quantidade","Valor Unitário","Data","índice de atualização (nome)","I0","If","Variação acumulada do índice (%)","Preço unitário atualizado","Utilizar?  (Sim/Não)",null,null,"Outliers","Por critério do(a) analista"]
[{"$nulls":9},{"$f":"IF(ISBLANK(E12),\"\",IF(ISNUMBER(H12),(I12-H12)/H12,0))","v":""},{"$f":"IF(ISBLANK(E12),\"\",E12*(1+J12))","v":""},{"$f":"IF(ISNUMBER(K12),IF($L$32<>$P$11,O12,P12),\"\")","v":""},null,null,{"$f":"IF(ISNUMBER(K12),IF(OR(K12<_xlfn.QUARTILE.INC($K$12:$K$29,1)-1.5*(_xlfn.QUARTILE.INC($K$12:K29,3)-_xlfn.QUARTILE.INC($K$12:$K$29,1)),K12>_xlfn.QUARTILE.INC($K$12:$K$29,3)+1.5*(_xlfn.QUARTILE.INC($K$12:$K$29,3)-_xlfn.QUARTILE.INC($K$12:$K$29,1))),\"Não\",\"Sim\"),\"\")","v":""}]
[{"$nulls":9},"","","",null,null,{"$f":"IF(ISNUMBER(K13),IF(OR(K13<_xlfn.QUARTILE.INC($K$12:$K$29,1)-1.5*(_xlfn.QUARTILE.INC($K$12:K29,3)-_xlfn.QUARTILE.INC($K$12:$K$29,1)),K13>_xlfn.QUARTILE.INC($K$12:$K$29,3)+1.5*(_xlfn.QUARTILE.INC($K$12:$K$29,3)-_xlfn.QUARTILE.INC($K$12:$K$29,1))),\"Não\",\"Sim\"),\"\")","v":""}]
[{"$nulls":9},"","","",null,null,{"$f":"IF(ISNUMBER(K14),IF(OR(K14<_xlfn.QUARTILE.INC($K$12:$K$29,1)-1.5*(_xlfn.QUARTILE.INC($K$12:K30,3)-_xlfn.QUARTILE.INC($K$12:$K$29,1)),K14>_xlfn.QUARTILE.INC($K$12:$K$29,3)+1.5*(_xlfn.QUARTILE.INC($K$12:$K$29,3)-_xlfn.QUARTILE.INC($K$12:$K$29,1))),\"Não\",\"Sim\"),\"\")","v":""}]
[{"$nulls":9},"","","",null,null,{"$f":"IF(ISNUMBER(K15),IF(OR(K15<_xlfn.QUARTILE.INC($K$12:$K$29,1)-1.5*(_xlfn.QUARTILE.INC($K$12:K31,3)-_xlfn.QUARTILE.INC($K$12:$K$29,1)),K15>_xlfn.QUARTILE.INC($K$12:$K$29,3)+1.5*(_xlfn.QUARTILE.INC($K$12:$K$29,3)-_xlfn.QUARTILE.INC($K$12:$K$29,1))),\"Não\",\"Sim\"),\"\")","v":""}]
[{"$nulls":9},"","","",null,null,{"$f":"IF(ISNUMBER(K16),IF(OR(K16<_xlfn.QUARTILE.INC($K$12:$K$29,1)-1.5*(_xlfn.QUARTILE.INC($K$12:K32,3)-_xlfn.QUARTILE.INC($K$12:$K$29,1)),K16>_xlfn.QUARTILE.INC($K$12:$K$29,3)+1.5*(_xlfn.QUARTILE.INC($K$12:$K$29,3)-_xlfn.QUARTILE.INC($K$12:$K$29,1))),\"Não\",\"Sim\"),\"\")","v":""}]
[{"$nulls":9},"","","",null,null,{"$f":"IF(ISNUMBER(K17),IF(OR(K17<_xlfn.QUARTILE.INC($K$12:$K$29,1)-1.5*(_xlfn.QUARTILE.INC($K$12:K35,3)-_xlfn.QUARTILE.INC($K$12:$K$29,1)),K17>_xlfn.QUARTILE.INC($K$12:$K$29,3)+1.5*(_xlfn.QUARTILE.INC($K$12:$K$29,3)-_xlfn.QUARTILE.INC($K$12:$K$29,1))),\"Não\",\"Sim\"),\"\")","v":""}]
[{"$nulls":9},"","","",null,null,{"$f":"IF(ISNUMBER(K18),IF(OR(K18<_xlfn.QUARTILE.INC($K$12:$K$29,1)-1.5*(_xlfn.QUARTILE.INC($I$12:I37,3)-_xlfn.QUARTILE.INC($K$12:$K$29,1)),K18>_xlfn.QUARTILE.INC($K$12:$K$29,3)+1.5*(_xlfn.QUARTILE.INC($K$12:$K$29,3)-_xlfn.QUARTILE.INC($K$12:$K$29,1))),\"Não\",\"Sim\"),\"\")","v":""}]
[null,"COTAÇÕES DE MERCADO",{"$nulls":12},"Cotações"]
[null,"Empresa",{"$nulls":7},"Data","Preço Unitário","Utilizar? (Sim/Não)",null,null,"Outliers","Por critério do(a) analista"]
[null,"SGV SOLAR - CPNJ 42.326.882/0001-20 ",{"$nulls":8},1475.6,{"$f":"IF(ISNUMBER(K21),IF($L$32=$O$20,O21,IF($L$32=$P$20,P21,\"\")),\"\")","v":"Sim"},null,null,{"$f":"IF(ISNUMBER(K21),IF(OR(K21<_xlfn.QUARTILE.INC($K$12:$K$29,1)-1.5*(_xlfn.QUARTILE.INC($K$12:$K$29,3)-_xlfn.QUARTILE.INC($K$12:$K$29,1)),K21>_xlfn.QUARTILE.INC($K$12:$K$29,3)+1.5*(_xlfn.QUARTILE.INC($K$12:$K$29,3)-_xlfn.QUARTILE.INC($K$12:$K$29,1))),\"Não\",\"Sim\"),\"\")","v":"Sim"}]
[null,"https://oceantech-automation.com.br/produtos/inversor-de-frequencia-2cv-1-5kw-delta-220v-7a-monofasico/?variant=368436737&pf=mc&utm_id=Shopping&utm_campaign=20389401256&utm_source=google&utm_medium=pago_google&utm_content=&utm_term=&gad_source=4&gad_campaignid=20385062627&gbraid=0AAAAAp9slaKiBLz628x8BMQPq4m6lobNy&gclid=CjwKCAjw89jGBhB0EiwA2o1OnwsVIAbYqQNxIV2428EpECS39pA5h1cAixNUGCGLLFYL0-2vQvMQahoC2SoQAvD_BwE",{"$nulls":7},"2025-09-26",849,"Sim",null,null,"Sim"]
[null,"https://www.gmcautomacao.com.br/inversor-de-frequencia-2cv-7a-15kw-220v-monotrifasico/up/MLBU1111671208",{"$nulls":7},"2025-09-26",890,"Sim",null,null,"Sim"]
[null,"https://www.lojapolicompcomponentes.com.br/produtos/inversor-de-frequencia-1-5kw-2cv-220v-7a/?pf=gs&variant=681191505&srsltid=AfmBOopFfHGtIHl30jeOR-eA39SpBv8KOpZceN2cw14L-7NnCUj8myQTtX8",{"$nulls":7},"2025-09-26",858.9,"Sim",null,null,"Sim"]
[null,"https://www.ecommerce.automatize.eng.br/drive-bomba-solar-weg-cfw500-2cv-7a-trifasico/p/MLB42508199?pdp_filters=category%3AMLB30187%7Cseller_id%3A160168883%7Citem_id%3AMLB5177110924",{"$nulls":7},"2025-09-26",2819,"Sim",null,null,"Sim"]
[null,"https://www.apexenergiasolar.com.br/bomba-solar/inversor-solar-drive-weg-cfw500-2cv-380v?srsltid=AfmBOopX_8iRC222U5hvI0yiAvkbusODhjtpU24rd6lgs6-YDN0qptVaclk",{"$nulls":7},"2025-09-26",2149,"Sim",null,null,"Sim"]
[{"$nulls":11},"",null,null,""]
[{"$nulls":11},"",null,null,""]
[{"$nulls":11},"",null,null,""]
[null,"Observações:",{"$nulls":8},"Média:",{"$f":"IF($L$32=\"\",\"Selecione metodologia para exclusão de preços\",AVERAGE(IF($L$12:$L$29=\"Sim\",$K$12:$K$29)))","v":1506.92},null,"Média (Cotações)",{"$f":"IF(COUNTIF(O21:O29,\"Sim\")<3,\"N/D (são necessários pelo menos 3 preços)\",AVERAGE(IF(O21:O29=\"Sim\",$K21:$K29)))","v":1506.92},{"$f":"IF(COUNTIF(P21:P29,\"Sim\")<3,\"N/D (são necessários pelo menos 3 preços)\",AVERAGE(IF(P21:P29=\"Sim\",$K21:$K29)))","v":"N/D (são necessários pelo menos 3 preços)"}]
[{"$nulls":10},"Mediana:",{"$f":"IF($L$32=\"\",\"Selecione metodologia para exclusão de preços\",MEDIAN(IF($L$12:$L$29=\"Sim\",$K$12:$K$29)))","v":1182.8},null,"Mediana (Cotações)",{"$f":"IF(COUNTIF(O21:O29,\"Sim\")<3,\"N/D (são necessários pelo menos 3 preços)\",MEDIAN(IF(O21:O29=\"Sim\",$K21:$K29)))","v":1182.8},{"$f":"IF(COUNTIF(P21:P29,\"Sim\")<3,\"N/D (são necessários pelo menos 3 preços)\",MEDIAN(IF(P21:P29=\"Sim\",$K21:$K29)))","v":"N/D (são necessários pelo menos 3 preços)"}]
[null,"Metodologia de exclusão de preços adotada:",{"$nulls":9},{"$f":"IF(O35=\"\",INDEX(O20:P20,MATCH(MIN(#REF!),#REF!,0)),O35)","v":"Outliers"},null,"CV (Cotações)",{"$f":"IF(COUNTIF(O21:O29,\"Sim\")<3,\"N/D (são necessários pelo menos 3 preços)\",_xlfn.STDEV.S(IF(O21:O29=\"Sim\",$K21:$K29))/AVERAGE(IF(O21:O29=\"Sim\",$K21:$K29)))","v":0.54469999999999996},{"$f":"IF(COUNTIF(P21:P29,\"Sim\")<3,\"N/D (são necessários pelo menos 3 preços)\",_xlfn.STDEV.S(IF(P21:P29=\"Sim\",$K21:$K29))/AVERAGE(IF(P21:P29=\"Sim\",$K21:$K29)))","v":"N/D (são necessários pelo menos 3 preços)"}]
[{"$nulls":13},"Média",{"$f":"IF(SUM(COUNTIF($O$12:$O$18,\"Sim\")) + SUM(COUNTIF(O21:O29,\"Sim\")) < 3,\n   \"N/D (são necessários pelo menos 3 preços)\",\n   IFERROR(AVERAGE(_xlfn._xlws.FILTER($K$12:$K$18,$O$12:$O$18=\"Sim\"), _xlfn._xlws.FILTER($K$21:$K$29,O21:O29=\"Sim\")),O30))","v":1506.92},{"$f":"IF(SUM(COUNTIF($P$12:$P$18,\"Sim\")) + SUM(COUNTIF(P21:P29,\"Sim\")) < 3,\n   \"N/D (são necessários pelo menos 3 preços)\",\n   IFERROR(AVERAGE(_xlfn._xlws.FILTER($K$12:$K$18,$P$12:$P$18=\"Sim\"), _xlfn._xlws.FILTER($K$21:$K$29,P21:P29=\"Sim\")),P30))","v":"N/D (são necessários pelo menos 3 preços)"}]
[{"$nulls":13},"Mediana",{"$f":"IF(SUM(COUNTIF($O$12:$O$18,\"Sim\")) + SUM(COUNTIF(O21:O29,\"Sim\")) < 3,\n   \"N/D (são necessários pelo menos 3 preços)\",\n   IFERROR(MEDIAN(_xlfn._xlws.FILTER($K$12:$K$18,$O$12:$O$18=\"Sim\"), _xlfn._xlws.FILTER($K$21:$K$29,O21:O29=\"Sim\")),O31))","v":1182.8},{"$f":"IF(SUM(COUNTIF($P12:$P$18,\"Sim\")) + SUM(COUNTIF(P21:P29,\"Sim\")) < 3,\n   \"N/D (são necessários pelo menos 3 preços)\",\n   IFERROR(MEDIAN(_xlfn._xlws.FILTER($K$12:$K$18,$P$12:$P$18=\"Sim\"), _xlfn._xlws.FILTER($K$21:$K$29,P21:P29=\"Sim\")),P31))","v":"N/D (são necessários pelo menos 3 preços)"}]
[null,"COSOLIDAÇÃO DOS PREÇOS",{"$nulls":11},"Metodologia a adotar:",{"$f":"IF(INDEX(O20:P20,P35)=0,\"\",INDEX(O20:P20,P35))","v":"Outliers"},1]
[]
[null,"PREÇO UNITÁRIO ESTIMADO ADOTADO:",{"$nulls":9},{"$f":"IF($B$39=\"Mediana:\",L31,L30)","v":1506.92}]
[]
[{"$f":"O20","v":"Outliers"},"Média:"]
[{"$f":"P20","v":"Por critério do(a) analista"}]

{"sheet":"Item 3 - 3 CV","index":19,"n_rows":41,"n_cols":16,"rows_kept":41,"cut":false,"hidden":false,"merged":[[32,11,34,11],[35,1,36,10],[35,11,36,11],[37,1,37,10],[25,1,25,8],[26,1,26,8],[27,1,27,8],[28,1,28,8],[29,1,29,8],[32,1,34,10],[24,1,24,8],[0,0,0,6],[8,2,8,7],[8,14,8,15],[9,1,9,11],[9,14,9,15],[18,1,18,11],[18,14,18,15],[19,1,19,8],[20,1,20,8],[21,1,21,8],[22,1,22,8],[23,1,23,8]]}
[]
[]
[]
[null,"Processo","59500.003319/2025-65"]
[null,"Responsável","Renato Chaves"]
[null,"Área de Origem","AI/GEE/UEE"]
[null,"Data da pesquisa","2025-09-26"]
[]
[null,"ITEM:","Estrutura de solo para módulos fotovoltaicos, 8 módulos instalados, pilastra travessa e mão francesa em aço galvanizado a fogo, longarina e acessórios em alumínio. Inclui todos os acessórios para correta fixação dos painéis",{"$nulls":5},"UNIDADE DE MEDIDA:","Unidade","QUANTIDADE:",null,null,null,"Tabela auxiliar de metodologias para exclusão de preços"]
[null,"LICITAÇÕES ANTERIORES",{"$nulls":12},"Licitações Anteriores"]
[null,"Órgão","Edital/Ano - Nº do Lote / Item","Quantidade","Valor Unitário","Data","índice de atualização (nome)","I0","If","Variação acumulada do índice (%)","Preço unitário atualizado","Utilizar?  (Sim/Não)",null,null,"Outliers","Por critério do(a) analista"]
[{"$nulls":9},{"$f":"IF(ISBLANK(E12),\"\",IF(ISNUMBER(H12),(I12-H12)/H12,0))","v":""},{"$f":"IF(ISBLANK(E12),\"\",E12*(1+J12))","v":""},{"$f":"IF(ISNUMBER(K12),IF($L$33<>$P$11,O12,P12),\"\")","v":""},null,null,{"$f":"IF(ISNUMBER(K12),IF(OR(K12<_xlfn.QUARTILE.INC($K$12:$K$30,1)-1.5*(_xlfn.QUARTILE.INC($K$12:K30,3)-_xlfn.QUARTILE.INC($K$12:$K$30,1)),K12>_xlfn.QUARTILE.INC($K$12:$K$30,3)+1.5*(_xlfn.QUARTILE.INC($K$12:$K$30,3)-_xlfn.QUARTILE.INC($K$12:$K$30,1))),\"Não\",\"Sim\"),\"\")","v":""}]
[{"$nulls":9},"","","",null,null,{"$f":"IF(ISNUMBER(K13),IF(OR(K13<_xlfn.QUARTILE.INC($K$12:$K$30,1)-1.5*(_xlfn.QUARTILE.INC($K$12:K30,3)-_xlfn.QUARTILE.INC($K$12:$K$30,1)),K13>_xlfn.QUARTILE.INC($K$12:$K$30,3)+1.5*(_xlfn.QUARTILE.INC($K$12:$K$30,3)-_xlfn.QUARTILE.INC($K$12:$K$30,1))),\"Não\",\"Sim\"),\"\")","v":""}]
[{"$nulls":9},"","","",null,null,{"$f":"IF(ISNUMBER(K14),IF(OR(K14<_xlfn.QUARTILE.INC($K$12:$K$30,1)-1.5*(_xlfn.QUARTILE.INC($K$12:K31,3)-_xlfn.QUARTILE.INC($K$12:$K$30,1)),K14>_xlfn.QUARTILE.INC($K$12:$K$30,3)+1.5*(_xlfn.QUARTILE.INC($K$12:$K$30,3)-_xlfn.QUARTILE.INC($K$12:$K$30,1))),\"Não\",\"Sim\"),\"\")","v":""}]
[{"$nulls":9},"","","",null,null,{"$f":"IF(ISNUMBER(K15),IF(OR(K15<_xlfn.QUARTILE.INC($K$12:$K$30,1)-1.5*(_xlfn.QUARTILE.INC($K$12:K32,3)-_xlfn.QUARTILE.INC($K$12:$K$30,1)),K15>_xlfn.QUARTILE.INC($K$12:$K$30,3)+1.5*(_xlfn.QUARTILE.INC($K$12:$K$30,3)-_xlfn.QUARTILE.INC($K$12:$K$30,1))),\"Não\",\"Sim\"),\"\")","v":""}]
[{"$nulls":9},"","","",null,null,{"$f":"IF(ISNUMBER(K16),IF(OR(K16<_xlfn.QUARTILE.INC($K$12:$K$30,1)-1.5*(_xlfn.QUARTILE.INC($K$12:K33,3)-_xlfn.QUARTILE.INC($K$12:$K$30,1)),K16>_xlfn.QUARTILE.INC($K$12:$K$30,3)+1.5*(_xlfn.QUARTILE.INC($K$12:$K$30,3)-_xlfn.QUARTILE.INC($K$12:$K$30,1))),\"Não\",\"Sim\"),\"\")","v":""}]
[{"$nulls":9},"","","",null,null,{"$f":"IF(ISNUMBER(K17),IF(OR(K17<_xlfn.QUARTILE.INC($K$12:$K$30,1)-1.5*(_xlfn.QUARTILE.INC($K$12:K36,3)-_xlfn.QUARTILE.INC($K$12:$K$30,1)),K17>_xlfn.QUARTILE.INC($K$12:$K$30,3)+1.5*(_xlfn.QUARTILE.INC($K$12:$K$30,3)-_xlfn.QUARTILE.INC($K$12:$K$30,1))),\"Não\",\"Sim\"),\"\")","v":""}]
[{"$nulls":9},"","","",null,null,{"$f":"IF(ISNUMBER(K18),IF(OR(K18<_xlfn.QUARTILE.INC($K$12:$K$30,1)-1.5*(_xlfn.QUARTILE.INC($I$12:I38,3)-_xlfn.QUARTILE.INC($K$12:$K$30,1)),K18>_xlfn.QUARTILE.INC($K$12:$K$30,3)+1.5*(_xlfn.QUARTILE.INC($K$12:$K$30,3)-_xlfn.QUARTILE.INC($K$12:$K$30,1))),\"Não\",\"Sim\"),\"\")","v":""}]
[null,"COTAÇÕES DE MERCADO",{"$nulls":12},"Cotações"]
[null,"Empresa",{"$nulls":7},"Data","Preço Unitário","Utilizar? (Sim/Não)",null,null,"Outliers","Por critério do(a) analista"]
[null,"https://www.martinsenergy.com.br/j6sicoi0d-estrutura-solar-solar-group-kit-fixacao-triangulo-laje?srsltid=AfmBOoqgT1XLabSm1ni0ObcrfuyEornR3b5gbFI095hBLVcQytfTqnYMjKg",{"$nulls":7},"2025-09-26",1633.9,{"$f":"IF(ISNUMBER(K21),IF($L$33=$O$20,O21,IF($L$33=$P$20,P21,\"\")),\"\")","v":"Sim"},null,null,{"$f":"IF(ISNUMBER(K21),IF(OR(K21<_xlfn.QUARTILE.INC($K$12:$K$30,1)-1.5*(_xlfn.QUARTILE.INC($K$12:$K$30,3)-_xlfn.QUARTILE.INC($K$12:$K$30,1)),K21>_xlfn.QUARTILE.INC($K$12:$K$30,3)+1.5*(_xlfn.QUARTILE.INC($K$12:$K$30,3)-_xlfn.QUARTILE.INC($K$12:$K$30,1))),\"Não\",\"Sim\"),\"\")","v":"Sim"}]
[null,"https://www.portalenergy.com.br/estrutura-fotovoltaico-romagnole?utm_source=Site&utm_medium=GoogleMerchant&utm_campaign=GoogleMerchant&srsltid=AfmBOoqztlKygQfkyzgCtepYDN4E1hW6cXM_SSUAbrxQjMQeAyQWc0u9obU",{"$nulls":7},"2025-09-26",1664.85,"Sim",null,null,"Sim"]
[null,"PERFIX SOLAR SUPORTES EM ALUMÍNIO - CNPJ 21.117.016/0001-59",{"$nulls":7},"2025-09-26",1380.76,"Sim",null,null,"Sim"]
[null,"MODULAR ESTRUTURAS EM AÇO LTDA - CNPJ 34.743.124/0001-89",{"$nulls":7},"2025-09-26",1355.6,"Sim",null,null,"Sim"]
[{"$nulls":11},"",null,null,""]
[{"$nulls":11},"",null,null,""]
[{"$nulls":11},"",null,null,""]
[{"$nulls":11},"",null,null,""]
[{"$nulls":11},"",null,null,""]
[{"$nulls":11},"",null,null,""]
[null,"Observações:",{"$nulls":8},"Média:",{"$f":"IF($L$33=\"\",\"Selecione metodologia para exclusão de preços\",AVERAGE(IF($L$12:$L$30=\"Sim\",$K$12:$K$30)))","v":1508.78},null,"Média (Cotações)",{"$f":"IF(COUNTIF(O21:O30,\"Sim\")<3,\"N/D (são necessários pelo menos 3 preços)\",AVERAGE(IF(O21:O30=\"Sim\",$K21:$K30)))","v":1508.78},{"$f":"IF(COUNTIF(P21:P30,\"Sim\")<3,\"N/D (são necessários pelo menos 3 preços)\",AVERAGE(IF(P21:P30=\"Sim\",$K21:$K30)))","v":"N/D (são necessários pelo menos 3 preços)"}]
[{"$nulls":10},"Mediana:",{"$f":"IF($L$33=\"\",\"Selecione metodologia para exclusão de preços\",MEDIAN(IF($L$12:$L$30=\"Sim\",$K$12:$K$30)))","v":1507.33},null,"Mediana (Cotações)",{"$f":"IF(COUNTIF(O21:O30,\"Sim\")<3,\"N/D (são necessários pelo menos 3 preços)\",MEDIAN(IF(O21:O30=\"Sim\",$K21:$K30)))","v":1507.33},{"$f":"IF(COUNTIF(P21:P30,\"Sim\")<3,\"N/D (são necessários pelo menos 3 preços)\",MEDIAN(IF(P21:P30=\"Sim\",$K21:$K30)))","v":"N/D (são necessários pelo menos 3 preços)"}]
[null,"Metodologia de exclusão de preços adotada:",{"$nulls":9},{"$f":"IF(O36=\"\",INDEX(O20:P20,MATCH(MIN(#REF!),#REF!,0)),O36)","v":"Outliers"},null,"CV (Cotações)",{"$f":"IF(COUNTIF(O21:O30,\"Sim\")<3,\"N/D (são necessários pelo menos 3 preços)\",_xlfn.STDEV.S(IF(O21:O30=\"Sim\",$K21:$K30))/AVERAGE(IF(O21:O30=\"Sim\",$K21:$K30)))","v":0.1081},{"$f":"IF(COUNTIF(P21:P30,\"Sim\")<3,\"N/D (são necessários pelo menos 3 preços)\",_xlfn.STDEV.S(IF(P21:P30=\"Sim\",$K21:$K30))/AVERAGE(IF(P21:P30=\"Sim\",$K21:$K30)))","v":"N/D (são necessários pelo menos 3 preços)"}]
[{"$nulls":13},"Média",{"$f":"IF(SUM(COUNTIF($O$12:$O$18,\"Sim\")) + SUM(COUNTIF(O21:O30,\"Sim\")) < 3,\n   \"N/D (são necessários pelo menos 3 preços)\",\n   IFERROR(AVERAGE(_xlfn._xlws.FILTER($K$12:$K$18,$O$12:$O$18=\"Sim\"), _xlfn._xlws.FILTER($K$21:$K$30,O21:O30=\"Sim\")),O31))","v":1508.78},{"$f":"IF(SUM(COUNTIF($P$12:$P$18,\"Sim\")) + SUM(COUNTIF(P21:P30,\"Sim\")) < 3,\n   \"N/D (são necessários pelo menos 3 preços)\",\n   IFERROR(AVERAGE(_xlfn._xlws.FILTER($K$12:$K$18,$P$12:$P$18=\"Sim\"), _xlfn._xlws.FILTER($K$21:$K$30,P21:P30=\"Sim\")),P31))","v":"N/D (são necessários pelo menos 3 preços)"}]
[{"$nulls":13},"Mediana",{"$f":"IF(SUM(COUNTIF($O$12:$O$18,\"Sim\")) + SUM(COUNTIF(O21:O30,\"Sim\")) < 3,\n   \"N/D (são necessários pelo menos 3 preços)\",\n   IFERROR(MEDIAN(_xlfn._xlws.FILTER($K$12:$K$18,$O$12:$O$18=\"Sim\"), _xlfn._xlws.FILTER($K$21:$K$30,O21:O30=\"Sim\")),O32))","v":1507.33},{"$f":"IF(SUM(COUNTIF($P12:$P$18,\"Sim\")) + SUM(COUNTIF(P21:P30,\"Sim\")) < 3,\n   \"N/D (são necessários pelo menos 3 preços)\",\n   IFERROR(MEDIAN(_xlfn._xlws.FILTER($K$12:$K$18,$P$12:$P$18=\"Sim\"), _xlfn._xlws.FILTER($K$21:$K$30,P21:P30=\"Sim\")),P32))","v":"N/D (são necessários pelo menos 3 preços)"}]
[null,"COSOLIDAÇÃO DOS PREÇOS",{"$nulls":11},"Metodologia a adotar:",{"$f":"IF(INDEX(O20:P20,P36)=0,\"\",INDEX(O20:P20,P36))","v":"Outliers"},1]
[]
[null,"PREÇO UNITÁRIO ESTIMADO ADOTADO:",{"$nulls":9},{"$f":"IF($B$40=\"Mediana:\",L32,L31)","v":1508.78}]
[]
[{"$f":"O20","v":"Outliers"},"Média:"]
[{"$f":"P20","v":"Por critério do(a) analista"}]

{"sheet":"Item 6 - 3 CV","index":20,"n_rows":39,"n_cols":16,"rows_kept":39,"cut":false,"hidden":false,"merged":[[30,1,32,10],[30,11,32,11],[33,1,34,10],[33,11,34,11],[35,1,35,10],[27,1,27,8],[19,1,19,8],[20,1,20,8],[21,1,21,8],[0,0,0,6],[8,2,8,7],[22,1,22,8],[23,1,23,8],[24,1,24,8],[25,1,25,8],[26,1,26,8],[8,14,8,15],[9,1,9,11],[9,14,9,15],[18,1,18,11],[18,14,18,15]]}
[]
[]
[]
[null,"Processo","59500.003319/2025-65"]
[null,"Responsável","Renato Chaves"]
[null,"Área de Origem","AI/GEE/UEE"]
[null,"Data da pesquisa","2025-09-26"]
[]
[null,"ITEM:","Driver solar fotovoltaico, apropriado para motores de 3 CV, operação off-grid: Eficiência mínima 95%, grau de proteção IP20, resfriamento natural ou com cooler integrado, garantia mínima de 5 anos, tensão de saída compatível com a motobomba, frequência 60 Hz, com sistema de partida suave da bomba e controle de velocidade, atender em plenitude os requisitos do sistema a ser instalado. Entrada de corrente contínua (CC) compatível com a quantidade de painéis fotovoltaicos propostos, com no mínimo 1 MPPT (maximum power point tracking) com faixa de tensão de operação compatível com os módulos fotovoltaicos, baixa tensão mínima para funcionamento. Saída de corrente alternada (CA) compatível com o sistema projetado, até 3 CV, temperatura de operação até 60 ºC, trifásico ou monofásico. Possuir, no mínimo as seguintes proteções: Sub e sobre tensão CC, sobreaquecimento, surtos de tensão (CC), proteção de bomba travada, proteção de curto-circuito, proteção contra funcionamento a seco e sobrecarga.",{"$nulls":5},"UNIDADE DE MEDIDA:","Unidade","QUANTIDADE:",null,null,null,"Tabela auxiliar de metodologias para exclusão de preços"]
[null,"LICITAÇÕES ANTERIORES",{"$nulls":12},"Licitações Anteriores"]
[null,"Órgão","Edital/Ano - Nº do Lote / Item","Quantidade","Valor Unitário","Data","índice de atualização (nome)","I0","If","Variação acumulada do índice (%)","Preço unitário atualizado","Utilizar?  (Sim/Não)",null,null,"Outliers","Por critério do(a) analista"]
[{"$nulls":9},{"$f":"IF(ISBLANK(E12),\"\",IF(ISNUMBER(H12),(I12-H12)/H12,0))","v":""},{"$f":"IF(ISBLANK(E12),\"\",E12*(1+J12))","v":""},{"$f":"IF(ISNUMBER(K12),IF($L$31<>$P$11,O12,P12),\"\")","v":""},null,null,{"$f":"IF(ISNUMBER(K12),IF(OR(K12<_xlfn.QUARTILE.INC($K$12:$K$28,1)-1.5*(_xlfn.QUARTILE.INC($K$12:K28,3)-_xlfn.QUARTILE.INC($K$12:$K$28,1)),K12>_xlfn.QUARTILE.INC($K$12:$K$28,3)+1.5*(_xlfn.QUARTILE.INC($K$12:$K$28,3)-_xlfn.QUARTILE.INC($K$12:$K$28,1))),\"Não\",\"Sim\"),\"\")","v":""}]
[{"$nulls":9},"","","",null,null,{"$f":"IF(ISNUMBER(K13),IF(OR(K13<_xlfn.QUARTILE.INC($K$12:$K$28,1)-1.5*(_xlfn.QUARTILE.INC($K$12:K28,3)-_xlfn.QUARTILE.INC($K$12:$K$28,1)),K13>_xlfn.QUARTILE.INC($K$12:$K$28,3)+1.5*(_xlfn.QUARTILE.INC($K$12:$K$28,3)-_xlfn.QUARTILE.INC($K$12:$K$28,1))),\"Não\",\"Sim\"),\"\")","v":""}]
[{"$nulls":9},"","","",null,null,{"$f":"IF(ISNUMBER(K14),IF(OR(K14<_xlfn.QUARTILE.INC($K$12:$K$28,1)-1.5*(_xlfn.QUARTILE.INC($K$12:K29,3)-_xlfn.QUARTILE.INC($K$12:$K$28,1)),K14>_xlfn.QUARTILE.INC($K$12:$K$28,3)+1.5*(_xlfn.QUARTILE.INC($K$12:$K$28,3)-_xlfn.QUARTILE.INC($K$12:$K$28,1))),\"Não\",\"Sim\"),\"\")","v":""}]
[{"$nulls":9},"","","",null,null,{"$f":"IF(ISNUMBER(K15),IF(OR(K15<_xlfn.QUARTILE.INC($K$12:$K$28,1)-1.5*(_xlfn.QUARTILE.INC($K$12:K30,3)-_xlfn.QUARTILE.INC($K$12:$K$28,1)),K15>_xlfn.QUARTILE.INC($K$12:$K$28,3)+1.5*(_xlfn.QUARTILE.INC($K$12:$K$28,3)-_xlfn.QUARTILE.INC($K$12:$K$28,1))),\"Não\",\"Sim\"),\"\")","v":""}]
[{"$nulls":9},"","","",null,null,{"$f":"IF(ISNUMBER(K16),IF(OR(K16<_xlfn.QUARTILE.INC($K$12:$K$28,1)-1.5*(_xlfn.QUARTILE.INC($K$12:K31,3)-_xlfn.QUARTILE.INC($K$12:$K$28,1)),K16>_xlfn.QUARTILE.INC($K$12:$K$28,3)+1.5*(_xlfn.QUARTILE.INC($K$12:$K$28,3)-_xlfn.QUARTILE.INC($K$12:$K$28,1))),\"Não\",\"Sim\"),\"\")","v":""}]
[{"$nulls":9},"","","",null,null,{"$f":"IF(ISNUMBER(K17),IF(OR(K17<_xlfn.QUARTILE.INC($K$12:$K$28,1)-1.5*(_xlfn.QUARTILE.INC($K$12:K34,3)-_xlfn.QUARTILE.INC($K$12:$K$28,1)),K17>_xlfn.QUARTILE.INC($K$12:$K$28,3)+1.5*(_xlfn.QUARTILE.INC($K$12:$K$28,3)-_xlfn.QUARTILE.INC($K$12:$K$28,1))),\"Não\",\"Sim\"),\"\")","v":""}]
[{"$nulls":9},"","","",null,null,{"$f":"IF(ISNUMBER(K18),IF(OR(K18<_xlfn.QUARTILE.INC($K$12:$K$28,1)-1.5*(_xlfn.QUARTILE.INC($I$12:I36,3)-_xlfn.QUARTILE.INC($K$12:$K$28,1)),K18>_xlfn.QUARTILE.INC($K$12:$K$28,3)+1.5*(_xlfn.QUARTILE.INC($K$12:$K$28,3)-_xlfn.QUARTILE.INC($K$12:$K$28,1))),\"Não\",\"Sim\"),\"\")","v":""}]
[null,"COTAÇÕES DE MERCADO",{"$nulls":12},"Cotações"]
[null,"Empresa",{"$nulls":7},"Data","Preço Unitário","Utilizar? (Sim/Não)",null,null,"Outliers","Por critério do(a) analista"]
[null,"https://oceantech-automation.com.br/produtos/inversor-de-frequencia-3cv-2-2kw-dovol-220v-10-0a/?variant=349657234&pf=mc&srsltid=AfmBOoq3a6aLsZvJ0RFSCC6l575CZPrOGP9nvMqW9qPdnyFFiBRoAvkb61Q",{"$nulls":7},"2025-09-26",1190,{"$f":"IF(ISNUMBER(K21),IF($L$31=$O$20,O21,IF($L$31=$P$20,P21,\"\")),\"\")","v":"Sim"},null,null,{"$f":"IF(ISNUMBER(K21),IF(OR(K21<_xlfn.QUARTILE.INC($K$12:$K$28,1)-1.5*(_xlfn.QUARTILE.INC($K$12:$K$28,3)-_xlfn.QUARTILE.INC($K$12:$K$28,1)),K21>_xlfn.QUARTILE.INC($K$12:$K$28,3)+1.5*(_xlfn.QUARTILE.INC($K$12:$K$28,3)-_xlfn.QUARTILE.INC($K$12:$K$28,1))),\"Não\",\"Sim\"),\"\")","v":"Sim"}]
[null,"https://www.kmabrasil.com.br/produto/inversores-de-frequencia/trifasico-220v-p-trifasico/926-inversor-de-frequencia-cfw500-3cv-ent-trifasico-220v-saida-trifasico-220v-9-6a-weg-11575776?srsltid=AfmBOorFHRSWELwYG8Y_Aih3UQZafvvvPjKbypfRwtibTkde5z29G6xKvyE",{"$nulls":7},"2025-09-26",2339,"Sim",null,null,"Sim"]
[null,"https://www.ecommerce.automatize.eng.br/drive-bomba-solar-weg-cfw500-3cv-10a-monotrif/p/MLB47278483?pdp_filters=category%3AMLB30187%7Cseller_id%3A160168883%7Citem_id%3AMLB4009250759",{"$nulls":7},"2025-09-26",2699,"Sim",null,null,"Sim"]
[{"$nulls":11},"",null,null,""]
[{"$nulls":11},"",null,null,""]
[{"$nulls":11},"",null,null,""]
[{"$nulls":11},"",null,null,""]
[{"$nulls":11},"",null,null,""]
[null,"Observações:",{"$nulls":8},"Média:",{"$f":"IF($L$31=\"\",\"Selecione metodologia para exclusão de preços\",AVERAGE(IF($L$12:$L$28=\"Sim\",$K$12:$K$28)))","v":2076},null,"Média (Cotações)",{"$f":"IF(COUNTIF(O21:O28,\"Sim\")<3,\"N/D (são necessários pelo menos 3 preços)\",AVERAGE(IF(O21:O28=\"Sim\",$K21:$K28)))","v":2076},{"$f":"IF(COUNTIF(P21:P28,\"Sim\")<3,\"N/D (são necessários pelo menos 3 preços)\",AVERAGE(IF(P21:P28=\"Sim\",$K21:$K28)))","v":"N/D (são necessários pelo menos 3 preços)"}]
[{"$nulls":10},"Mediana:",{"$f":"IF($L$31=\"\",\"Selecione metodologia para exclusão de preços\",MEDIAN(IF($L$12:$L$28=\"Sim\",$K$12:$K$28)))","v":2339},null,"Mediana (Cotações)",{"$f":"IF(COUNTIF(O21:O28,\"Sim\")<3,\"N/D (são necessários pelo menos 3 preços)\",MEDIAN(IF(O21:O28=\"Sim\",$K21:$K28)))","v":2339},{"$f":"IF(COUNTIF(P21:P28,\"Sim\")<3,\"N/D (são necessários pelo menos 3 preços)\",MEDIAN(IF(P21:P28=\"Sim\",$K21:$K28)))","v":"N/D (são necessários pelo menos 3 preços)"}]
[null,"Metodologia de exclusão de preços adotada:",{"$nulls":9},{"$f":"IF(O34=\"\",INDEX(O20:P20,MATCH(MIN(#REF!),#REF!,0)),O34)","v":"Outliers"},null,"CV (Cotações)",{"$f":"IF(COUNTIF(O21:O28,\"Sim\")<3,\"N/D (são necessários pelo menos 3 preços)\",_xlfn.STDEV.S(IF(O21:O28=\"Sim\",$K21:$K28))/AVERAGE(IF(O21:O28=\"Sim\",$K21:$K28)))","v":0.37959999999999999},{"$f":"IF(COUNTIF(P21:P28,\"Sim\")<3,\"N/D (são necessários pelo menos 3 preços)\",_xlfn.STDEV.S(IF(P21:P28=\"Sim\",$K21:$K28))/AVERAGE(IF(P21:P28=\"Sim\",$K21:$K28)))","v":"N/D (são necessários pelo menos 3 preços)"}]
[{"$nulls":13},"Média",{"$f":"IF(SUM(COUNTIF($O$12:$O$18,\"Sim\")) + SUM(COUNTIF(O21:O28,\"Sim\")) < 3,\n   \"N/D (são necessários pelo menos 3 preços)\",\n   IFERROR(AVERAGE(_xlfn._xlws.FILTER($K$12:$K$18,$O$12:$O$18=\"Sim\"), _xlfn._xlws.FILTER($K$21:$K$28,O21:O28=\"Sim\")),O29))","v":2076},{"$f":"IF(SUM(COUNTIF($P$12:$P$18,\"Sim\")) + SUM(COUNTIF(P21:P28,\"Sim\")) < 3,\n   \"N/D (são necessários pelo menos 3 preços)\",\n   IFERROR(AVERAGE(_xlfn._xlws.FILTER($K$12:$K$18,$P$12:$P$18=\"Sim\"), _xlfn._xlws.FILTER($K$21:$K$28,P21:P28=\"Sim\")),P29))","v":"N/D (são necessários pelo menos 3 preços)"}]
[{"$nulls":13},"Mediana",{"$f":"IF(SUM(COUNTIF($O$12:$O$18,\"Sim\")) + SUM(COUNTIF(O21:O28,\"Sim\")) < 3,\n   \"N/D (são necessários pelo menos 3 preços)\",\n   IFERROR(MEDIAN(_xlfn._xlws.FILTER($K$12:$K$18,$O$12:$O$18=\"Sim\"), _xlfn._xlws.FILTER($K$21:$K$28,O21:O28=\"Sim\")),O30))","v":2339},{"$f":"IF(SUM(COUNTIF($P12:$P$18,\"Sim\")) + SUM(COUNTIF(P21:P28,\"Sim\")) < 3,\n   \"N/D (são necessários pelo menos 3 preços)\",\n   IFERROR(MEDIAN(_xlfn._xlws.FILTER($K$12:$K$18,$P$12:$P$18=\"Sim\"), _xlfn._xlws.FILTER($K$21:$K$28,P21:P28=\"Sim\")),P30))","v":"N/D (são necessários pelo menos 3 preços)"}]
[null,"COSOLIDAÇÃO DOS PREÇOS",{"$nulls":11},"Metodologia a adotar:",{"$f":"IF(INDEX(O20:P20,P34)=0,\"\",INDEX(O20:P20,P34))","v":"Outliers"},1]
[]
[null,"PREÇO UNITÁRIO ESTIMADO ADOTADO:",{"$nulls":9},{"$f":"IF($B$38=\"Mediana:\",L30,L29)","v":2076}]
[]
[{"$f":"O20","v":"Outliers"},"Média:"]
[{"$f":"P20","v":"Por critério do(a) analista"}]